Body Name,Date Paid,Transaction Number,Amount,Supplier Name,Supplier Type,Expense Area,Cost Centre Description,Expense Type
Cambridgeshire County Council,16-Sep-21,51301642512,"-52,186.54",Focus Care Agency,CARE ESTABLISHMENT,LAC Placements,Placements - supported accommodation,Agency Placements - In County
Cambridgeshire County Council,16-Sep-21,51301642514,"-50,387.00",Focus Care Agency,CARE ESTABLISHMENT,LAC Placements,Placements - supported accommodation,Agency Placements - In County
Cambridgeshire County Council,16-Sep-21,51301642520,"-39,600.00",Focus Care Agency,CARE ESTABLISHMENT,LAC Placements,Placements - supported accommodation,Agency Placements - In County
Cambridgeshire County Council,16-Sep-21,51301642522,"-36,989.95",Focus Care Agency,CARE ESTABLISHMENT,LAC Placements,Placements - supported accommodation,Agency Placements - In County
Cambridgeshire County Council,16-Sep-21,51301642524,"-31,620.00",Focus Care Agency,CARE ESTABLISHMENT,LAC Placements,Placements - supported accommodation,Agency Placements - In County
Cambridgeshire County Council,09-Sep-21,51301633011,"-30,462.13",CAE Technology Servcies,COMPANY,ICT Service,ICT Service Sales,Materials for resale
Cambridgeshire County Council,09-Sep-21,51301633010,"-30,462.12",CAE Technology Servcies,COMPANY,ICT Service,ICT Service Sales,Materials for resale
Cambridgeshire County Council,16-Sep-21,51301642516,"-28,792.57",Focus Care Agency,CARE ESTABLISHMENT,LAC Placements,Placements - supported accommodation,Agency Placements - In County
Cambridgeshire County Council,14-Sep-21,51301641798,"-25,731.43",Headzpace Therapeutic Care Limited,CARE ESTABLISHMENT,LAC Placements,Placements - residential homes,Agency Placements - Out of  County
Cambridgeshire County Council,16-Sep-21,51301642518,"-21,594.43",Focus Care Agency,CARE ESTABLISHMENT,LAC Placements,Placements - supported accommodation,Agency Placements - In County
Cambridgeshire County Council,21-Sep-21,51301643265,"-18,394.94",BUCHAN HEALTHCARE LTD,CARE ESTABLISHMENT,OP - City & South Blocks,City and South - Long term blocks,Nursing Care
Cambridgeshire County Council,21-Sep-21,51301643265,"-18,394.94",BUCHAN HEALTHCARE LTD,CARE ESTABLISHMENT,OP - City & South Blocks,City and South - Long term blocks,Nursing Care
Cambridgeshire County Council,21-Sep-21,51301643265,"-18,394.94",BUCHAN HEALTHCARE LTD,CARE ESTABLISHMENT,OP - City & South Blocks,City and South - Long term blocks,Nursing Care
Cambridgeshire County Council,21-Sep-21,51301643265,"-18,394.94",BUCHAN HEALTHCARE LTD,CARE ESTABLISHMENT,OP - City & South Blocks,City and South - Long term blocks,Nursing Care
Cambridgeshire County Council,21-Sep-21,51301643265,"-18,394.94",BUCHAN HEALTHCARE LTD,CARE ESTABLISHMENT,OP - City & South Blocks,City and South - Long term blocks,Nursing Care
Cambridgeshire County Council,21-Sep-21,51301643265,"-18,394.94",BUCHAN HEALTHCARE LTD,CARE ESTABLISHMENT,OP - City & South Blocks,City and South - Long term blocks,Nursing Care
Cambridgeshire County Council,01-Sep-21,51301630998,"-17,797.50",CAMBRIDGE REGIONAL COLLEGE,EDUCATION,SEND High Needs Top Up,SEND Specialist Services-High needs top-up-Post 16,Independent School Placements
Cambridgeshire County Council,08-Sep-21,51301631735,"-15,060.00",GRETTON SCHOOL,EDUCATION,SEN Placements,Placements - Education,Independent School Placements
Cambridgeshire County Council,21-Sep-21,51301643258,"-15,013.02",FITZWILLIAM HEALTHCARE LTD,CARE ESTABLISHMENT,OP - City & South Blocks,City and South - Long term blocks,Residential Care
Cambridgeshire County Council,21-Sep-21,51301643258,"-15,013.02",FITZWILLIAM HEALTHCARE LTD,CARE ESTABLISHMENT,OP - City & South Blocks,City and South - Long term blocks,Residential Care
Cambridgeshire County Council,21-Sep-21,51301643258,"-15,013.02",FITZWILLIAM HEALTHCARE LTD,CARE ESTABLISHMENT,OP - City & South Blocks,City and South - Long term blocks,Residential Care
Cambridgeshire County Council,21-Sep-21,51301643258,"-15,013.02",FITZWILLIAM HEALTHCARE LTD,CARE ESTABLISHMENT,OP - City & South Blocks,City and South - Long term blocks,Residential Care
Cambridgeshire County Council,21-Sep-21,51301643258,"-15,013.02",FITZWILLIAM HEALTHCARE LTD,CARE ESTABLISHMENT,OP - City & South Blocks,City and South - Long term blocks,Residential Care
Cambridgeshire County Council,21-Sep-21,51301643258,"-15,013.02",FITZWILLIAM HEALTHCARE LTD,CARE ESTABLISHMENT,OP - City & South Blocks,City and South - Long term blocks,Residential Care
Cambridgeshire County Council,30-Sep-21,51301645516,"-13,754.75",C J MURFITT LTD,COMPANY,Investment in the CCC Asset Portfolio,Spokes - CPDC,Buildings - Structure
Cambridgeshire County Council,29-Sep-21,51301645522,"-9,115.14",Favour Health Ltd,CARE ESTABLISHMENT,LAC Placements,Placements - S117 tier 4 step-down,Agency Placements - In County
Cambridgeshire County Council,27-Sep-21,51301642527,"-8,710.80",THE HESLEY GROUP,CARE ESTABLISHMENT,SEND High Needs Top Up,SEND Specialist Services-High needs top-up-Post 16,Independent School Placements
Cambridgeshire County Council,14-Sep-21,51301641723,"-7,198.02",ST GEORGE'S COURT,CARE ESTABLISHMENT,OP - City & South Blocks,City and South - Long term blocks,Nursing Care
Cambridgeshire County Council,14-Sep-21,51301641723,"-7,198.02",ST GEORGE'S COURT,CARE ESTABLISHMENT,OP - City & South Blocks,City and South - Long term blocks,Nursing Care
Cambridgeshire County Council,14-Sep-21,51301641723,"-7,198.02",ST GEORGE'S COURT,CARE ESTABLISHMENT,OP - City & South Blocks,City and South - Long term blocks,Nursing Care
Cambridgeshire County Council,14-Sep-21,51301641723,"-7,198.02",ST GEORGE'S COURT,CARE ESTABLISHMENT,OP - City & South Blocks,City and South - Long term blocks,Nursing Care
Cambridgeshire County Council,14-Sep-21,51301641723,"-7,198.02",ST GEORGE'S COURT,CARE ESTABLISHMENT,OP - City & South Blocks,City and South - Long term blocks,Nursing Care
Cambridgeshire County Council,14-Sep-21,51301641723,"-7,198.02",ST GEORGE'S COURT,CARE ESTABLISHMENT,OP - City & South Blocks,City and South - Long term blocks,Nursing Care
Cambridgeshire County Council,14-Sep-21,51301641723,"-7,198.02",ST GEORGE'S COURT,CARE ESTABLISHMENT,OP - City & South Blocks,City and South - Long term blocks,Nursing Care
Cambridgeshire County Council,21-Sep-21,51301643260,"-7,038.79",HUNTERS HEALTHCARE (HUNTERS DOWN),CARE ESTABLISHMENT,OP - Hunts Blocks,Hunts - Long term blocks,Nursing Care
Cambridgeshire County Council,21-Sep-21,51301643260,"-7,038.79",HUNTERS HEALTHCARE (HUNTERS DOWN),CARE ESTABLISHMENT,OP - Hunts Blocks,Hunts - Long term blocks,Nursing Care
Cambridgeshire County Council,21-Sep-21,51301643260,"-7,038.79",HUNTERS HEALTHCARE (HUNTERS DOWN),CARE ESTABLISHMENT,OP - Hunts Blocks,Hunts - Long term blocks,Nursing Care
Cambridgeshire County Council,21-Sep-21,51301643260,"-7,038.79",HUNTERS HEALTHCARE (HUNTERS DOWN),CARE ESTABLISHMENT,OP - Hunts Blocks,Hunts - Long term blocks,Nursing Care
Cambridgeshire County Council,21-Sep-21,51301643260,"-7,038.79",HUNTERS HEALTHCARE (HUNTERS DOWN),CARE ESTABLISHMENT,OP - Hunts Blocks,Hunts - Long term blocks,Nursing Care
Cambridgeshire County Council,21-Sep-21,51301643260,"-7,038.79",HUNTERS HEALTHCARE (HUNTERS DOWN),CARE ESTABLISHMENT,OP - Hunts Blocks,Hunts - Long term blocks,Nursing Care
Cambridgeshire County Council,03-Sep-21,51301596939,"-6,537.65",VETSPEED LTD T/A NOVUS ENVIRONMENTAL,TRADE SUPPLIER,Waste Disposal incl PFI,Waste Management,Specialist Waste Disposal
Cambridgeshire County Council,27-Sep-21,51301642333,"-6,533.10",THE HESLEY GROUP,CARE ESTABLISHMENT,SEND High Needs Top Up,SEND Specialist Services-High needs top-up-Post 16,Independent School Placements
Cambridgeshire County Council,21-Sep-21,51301643267,"-6,360.00",THE CAMBRIDGE NURSING CENTRE,CARE ESTABLISHMENT,OP - City & South Blocks,City and South - Long term blocks,Nursing Care
Cambridgeshire County Council,21-Sep-21,51301643267,"-6,360.00",THE CAMBRIDGE NURSING CENTRE,CARE ESTABLISHMENT,OP - City & South Blocks,City and South - Long term blocks,Nursing Care
Cambridgeshire County Council,21-Sep-21,51301643267,"-6,360.00",THE CAMBRIDGE NURSING CENTRE,CARE ESTABLISHMENT,OP - City & South Blocks,City and South - Long term blocks,Nursing Care
Cambridgeshire County Council,21-Sep-21,51301643267,"-6,360.00",THE CAMBRIDGE NURSING CENTRE,CARE ESTABLISHMENT,OP - City & South Blocks,City and South - Long term blocks,Nursing Care
Cambridgeshire County Council,21-Sep-21,51301643267,"-6,360.00",THE CAMBRIDGE NURSING CENTRE,CARE ESTABLISHMENT,OP - City & South Blocks,City and South - Long term blocks,Nursing Care
Cambridgeshire County Council,21-Sep-21,51301643267,"-6,360.00",THE CAMBRIDGE NURSING CENTRE,CARE ESTABLISHMENT,OP - City & South Blocks,City and South - Long term blocks,Nursing Care
Cambridgeshire County Council,21-Sep-21,51301643254,"-6,100.00",HUNTERS HEALTHCARE (HUNTERS DOWN),CARE ESTABLISHMENT,OP - Hunts Blocks,Hunts - Long term blocks,Residential Care
Cambridgeshire County Council,21-Sep-21,51301643254,"-6,100.00",HUNTERS HEALTHCARE (HUNTERS DOWN),CARE ESTABLISHMENT,OP - Hunts Blocks,Hunts - Long term blocks,Residential Care
Cambridgeshire County Council,01-Sep-21,51301630996,"-6,000.00",CAMBRIDGE REGIONAL COLLEGE,EDUCATION,SEND High Needs Top Up,SEND Specialist Services-High needs top-up-Post 16,Independent School Placements
Cambridgeshire County Council,21-Sep-21,51301631742,"-5,949.21",FENLAND ASSOCIATION FOR COMMUNITY TRANSPORT LTD (FACT),LOCAL CLUBS & GROUPS,Passenger Transport other,Tendered Bus Costs,Support - subsidised bus routes
Cambridgeshire County Council,03-Sep-21,51301548885,"-5,949.21",FENLAND ASSOCIATION FOR COMMUNITY TRANSPORT LTD (FACT),LOCAL CLUBS & GROUPS,Passenger Transport other,Tendered Bus Costs,Support - subsidised bus routes
Cambridgeshire County Council,21-Sep-21,51301643253,"-5,595.10",THE RED HOUSE RESIDENTIAL & NURSING HOME,CARE ESTABLISHMENT,OP - Hunts Blocks,Hunts - Long term blocks,Residential Care
Cambridgeshire County Council,21-Sep-21,51301643253,"-5,595.10",THE RED HOUSE RESIDENTIAL & NURSING HOME,CARE ESTABLISHMENT,OP - Hunts Blocks,Hunts - Long term blocks,Residential Care
Cambridgeshire County Council,21-Sep-21,51301643260,"-5,593.84",HUNTERS HEALTHCARE (HUNTERS DOWN),CARE ESTABLISHMENT,OP - Hunts Blocks,Hunts - Long term blocks,Nursing Care
Cambridgeshire County Council,21-Sep-21,51301643260,"-5,593.84",HUNTERS HEALTHCARE (HUNTERS DOWN),CARE ESTABLISHMENT,OP - Hunts Blocks,Hunts - Long term blocks,Nursing Care
Cambridgeshire County Council,02-Sep-21,51301631586,"-4,986.00",RADIS COMMUNITY CARE,CARE ESTABLISHMENT,OP - East Cambs Locality - Cost of Care,East Cambs - O P Team - Care,Supported Living
Cambridgeshire County Council,21-Sep-21,51301643256,"-4,776.64",THE HILLINGS LIMITED,CARE ESTABLISHMENT,OP - Hunts Blocks,Hunts - Long term blocks,Residential Care
Cambridgeshire County Council,21-Sep-21,51301643256,"-4,776.64",THE HILLINGS LIMITED,CARE ESTABLISHMENT,OP - Hunts Blocks,Hunts - Long term blocks,Residential Care
Cambridgeshire County Council,10-Sep-21,51301640401,"-4,675.66",CAS LEARNING DISABILITIES LTD,CARE ESTABLISHMENT,LD - East Locality - Cost of Care,LD - East Cambs - Care,Residential Care
Cambridgeshire County Council,10-Sep-21,51301640401,"-4,675.66",CAS LEARNING DISABILITIES LTD,CARE ESTABLISHMENT,LD - East Locality - Cost of Care,LD - East Cambs - Care,Residential Care
Cambridgeshire County Council,10-Sep-21,51301640401,"-4,675.66",CAS LEARNING DISABILITIES LTD,CARE ESTABLISHMENT,LD - East Locality - Cost of Care,LD - East Cambs - Care,Residential Care
Cambridgeshire County Council,10-Sep-21,51301640401,"-4,675.66",CAS LEARNING DISABILITIES LTD,CARE ESTABLISHMENT,LD - East Locality - Cost of Care,LD - East Cambs - Care,Residential Care
Cambridgeshire County Council,10-Sep-21,51301640401,"-4,675.66",CAS LEARNING DISABILITIES LTD,CARE ESTABLISHMENT,LD - East Locality - Cost of Care,LD - East Cambs - Care,Residential Care
Cambridgeshire County Council,10-Sep-21,51301640401,"-4,675.66",CAS LEARNING DISABILITIES LTD,CARE ESTABLISHMENT,LD - East Locality - Cost of Care,LD - East Cambs - Care,Residential Care
Cambridgeshire County Council,10-Sep-21,51301640401,"-4,675.66",CAS LEARNING DISABILITIES LTD,CARE ESTABLISHMENT,LD - East Locality - Cost of Care,LD - East Cambs - Care,Residential Care
Cambridgeshire County Council,10-Sep-21,51301640401,"-4,675.66",CAS LEARNING DISABILITIES LTD,CARE ESTABLISHMENT,LD - East Locality - Cost of Care,LD - East Cambs - Care,Residential Care
Cambridgeshire County Council,10-Sep-21,51301640401,"-4,675.66",CAS LEARNING DISABILITIES LTD,CARE ESTABLISHMENT,LD - East Locality - Cost of Care,LD - East Cambs - Care,Residential Care
Cambridgeshire County Council,10-Sep-21,51301640401,"-4,675.66",CAS LEARNING DISABILITIES LTD,CARE ESTABLISHMENT,LD - East Locality - Cost of Care,LD - East Cambs - Care,Residential Care
Cambridgeshire County Council,10-Sep-21,51301640401,"-4,675.66",CAS LEARNING DISABILITIES LTD,CARE ESTABLISHMENT,LD - East Locality - Cost of Care,LD - East Cambs - Care,Residential Care
Cambridgeshire County Council,10-Sep-21,51301640401,"-4,675.66",CAS LEARNING DISABILITIES LTD,CARE ESTABLISHMENT,LD - East Locality - Cost of Care,LD - East Cambs - Care,Residential Care
Cambridgeshire County Council,10-Sep-21,51301640401,"-4,675.66",CAS LEARNING DISABILITIES LTD,CARE ESTABLISHMENT,LD - East Locality - Cost of Care,LD - East Cambs - Care,Residential Care
Cambridgeshire County Council,10-Sep-21,51301640401,"-4,675.66",CAS LEARNING DISABILITIES LTD,CARE ESTABLISHMENT,LD - East Locality - Cost of Care,LD - East Cambs - Care,Residential Care
Cambridgeshire County Council,10-Sep-21,51301640401,"-4,675.66",CAS LEARNING DISABILITIES LTD,CARE ESTABLISHMENT,LD - East Locality - Cost of Care,LD - East Cambs - Care,Residential Care
Cambridgeshire County Council,10-Sep-21,51301640401,"-4,675.66",CAS LEARNING DISABILITIES LTD,CARE ESTABLISHMENT,LD - East Locality - Cost of Care,LD - East Cambs - Care,Residential Care
Cambridgeshire County Council,10-Sep-21,51301640401,"-4,675.66",CAS LEARNING DISABILITIES LTD,CARE ESTABLISHMENT,LD - East Locality - Cost of Care,LD - East Cambs - Care,Residential Care
Cambridgeshire County Council,10-Sep-21,51301640401,"-4,675.66",CAS LEARNING DISABILITIES LTD,CARE ESTABLISHMENT,LD - East Locality - Cost of Care,LD - East Cambs - Care,Residential Care
Cambridgeshire County Council,10-Sep-21,51301640401,"-4,675.66",CAS LEARNING DISABILITIES LTD,CARE ESTABLISHMENT,LD - East Locality - Cost of Care,LD - East Cambs - Care,Residential Care
Cambridgeshire County Council,10-Sep-21,51301640401,"-4,675.66",CAS LEARNING DISABILITIES LTD,CARE ESTABLISHMENT,LD - East Locality - Cost of Care,LD - East Cambs - Care,Residential Care
Cambridgeshire County Council,10-Sep-21,51301640401,"-4,675.66",CAS LEARNING DISABILITIES LTD,CARE ESTABLISHMENT,LD - East Locality - Cost of Care,LD - East Cambs - Care,Residential Care
Cambridgeshire County Council,10-Sep-21,51301640401,"-4,675.66",CAS LEARNING DISABILITIES LTD,CARE ESTABLISHMENT,LD - East Locality - Cost of Care,LD - East Cambs - Care,Residential Care
Cambridgeshire County Council,10-Sep-21,51301640401,"-4,675.66",CAS LEARNING DISABILITIES LTD,CARE ESTABLISHMENT,LD - East Locality - Cost of Care,LD - East Cambs - Care,Residential Care
Cambridgeshire County Council,10-Sep-21,51301640401,"-4,675.66",CAS LEARNING DISABILITIES LTD,CARE ESTABLISHMENT,LD - East Locality - Cost of Care,LD - East Cambs - Care,Residential Care
Cambridgeshire County Council,10-Sep-21,51301640401,"-4,675.66",CAS LEARNING DISABILITIES LTD,CARE ESTABLISHMENT,LD - East Locality - Cost of Care,LD - East Cambs - Care,Residential Care
Cambridgeshire County Council,10-Sep-21,51301640401,"-4,675.66",CAS LEARNING DISABILITIES LTD,CARE ESTABLISHMENT,LD - East Locality - Cost of Care,LD - East Cambs - Care,Residential Care
Cambridgeshire County Council,10-Sep-21,51301640401,"-4,675.66",CAS LEARNING DISABILITIES LTD,CARE ESTABLISHMENT,LD - East Locality - Cost of Care,LD - East Cambs - Care,Residential Care
Cambridgeshire County Council,10-Sep-21,51301640401,"-4,675.66",CAS LEARNING DISABILITIES LTD,CARE ESTABLISHMENT,LD - East Locality - Cost of Care,LD - East Cambs - Care,Residential Care
Cambridgeshire County Council,10-Sep-21,51301640401,"-4,675.66",CAS LEARNING DISABILITIES LTD,CARE ESTABLISHMENT,LD - East Locality - Cost of Care,LD - East Cambs - Care,Residential Care
Cambridgeshire County Council,10-Sep-21,51301640401,"-4,675.66",CAS LEARNING DISABILITIES LTD,CARE ESTABLISHMENT,LD - East Locality - Cost of Care,LD - East Cambs - Care,Residential Care
Cambridgeshire County Council,10-Sep-21,51301640401,"-4,675.66",CAS LEARNING DISABILITIES LTD,CARE ESTABLISHMENT,LD - East Locality - Cost of Care,LD - East Cambs - Care,Residential Care
Cambridgeshire County Council,10-Sep-21,51301640401,"-4,675.66",CAS LEARNING DISABILITIES LTD,CARE ESTABLISHMENT,LD - East Locality - Cost of Care,LD - East Cambs - Care,Residential Care
Cambridgeshire County Council,10-Sep-21,51301640401,"-4,675.66",CAS LEARNING DISABILITIES LTD,CARE ESTABLISHMENT,LD - East Locality - Cost of Care,LD - East Cambs - Care,Residential Care
Cambridgeshire County Council,10-Sep-21,51301640401,"-4,675.66",CAS LEARNING DISABILITIES LTD,CARE ESTABLISHMENT,LD - East Locality - Cost of Care,LD - East Cambs - Care,Residential Care
Cambridgeshire County Council,10-Sep-21,51301640401,"-4,675.66",CAS LEARNING DISABILITIES LTD,CARE ESTABLISHMENT,LD - East Locality - Cost of Care,LD - East Cambs - Care,Residential Care
Cambridgeshire County Council,10-Sep-21,51301640401,"-4,675.66",CAS LEARNING DISABILITIES LTD,CARE ESTABLISHMENT,LD - East Locality - Cost of Care,LD - East Cambs - Care,Residential Care
Cambridgeshire County Council,10-Sep-21,51301640401,"-4,675.66",CAS LEARNING DISABILITIES LTD,CARE ESTABLISHMENT,LD - East Locality - Cost of Care,LD - East Cambs - Care,Residential Care
Cambridgeshire County Council,10-Sep-21,51301640401,"-4,675.66",CAS LEARNING DISABILITIES LTD,CARE ESTABLISHMENT,LD - East Locality - Cost of Care,LD - East Cambs - Care,Residential Care
Cambridgeshire County Council,10-Sep-21,51301640401,"-4,675.66",CAS LEARNING DISABILITIES LTD,CARE ESTABLISHMENT,LD - East Locality - Cost of Care,LD - East Cambs - Care,Residential Care
Cambridgeshire County Council,10-Sep-21,51301640401,"-4,675.66",CAS LEARNING DISABILITIES LTD,CARE ESTABLISHMENT,LD - East Locality - Cost of Care,LD - East Cambs - Care,Residential Care
Cambridgeshire County Council,10-Sep-21,51301640401,"-4,675.66",CAS LEARNING DISABILITIES LTD,CARE ESTABLISHMENT,LD - East Locality - Cost of Care,LD - East Cambs - Care,Residential Care
Cambridgeshire County Council,10-Sep-21,51301640401,"-4,675.66",CAS LEARNING DISABILITIES LTD,CARE ESTABLISHMENT,LD - East Locality - Cost of Care,LD - East Cambs - Care,Residential Care
Cambridgeshire County Council,10-Sep-21,51301640401,"-4,675.66",CAS LEARNING DISABILITIES LTD,CARE ESTABLISHMENT,LD - East Locality - Cost of Care,LD - East Cambs - Care,Residential Care
Cambridgeshire County Council,10-Sep-21,51301640401,"-4,675.66",CAS LEARNING DISABILITIES LTD,CARE ESTABLISHMENT,LD - East Locality - Cost of Care,LD - East Cambs - Care,Residential Care
Cambridgeshire County Council,10-Sep-21,51301640401,"-4,675.66",CAS LEARNING DISABILITIES LTD,CARE ESTABLISHMENT,LD - East Locality - Cost of Care,LD - East Cambs - Care,Residential Care
Cambridgeshire County Council,10-Sep-21,51301640401,"-4,675.66",CAS LEARNING DISABILITIES LTD,CARE ESTABLISHMENT,LD - East Locality - Cost of Care,LD - East Cambs - Care,Residential Care
Cambridgeshire County Council,10-Sep-21,51301640401,"-4,675.66",CAS LEARNING DISABILITIES LTD,CARE ESTABLISHMENT,LD - East Locality - Cost of Care,LD - East Cambs - Care,Residential Care
Cambridgeshire County Council,10-Sep-21,51301640401,"-4,675.66",CAS LEARNING DISABILITIES LTD,CARE ESTABLISHMENT,LD - East Locality - Cost of Care,LD - East Cambs - Care,Residential Care
Cambridgeshire County Council,10-Sep-21,51301640401,"-4,675.66",CAS LEARNING DISABILITIES LTD,CARE ESTABLISHMENT,LD - East Locality - Cost of Care,LD - East Cambs - Care,Residential Care
Cambridgeshire County Council,10-Sep-21,51301640401,"-4,675.66",CAS LEARNING DISABILITIES LTD,CARE ESTABLISHMENT,LD - East Locality - Cost of Care,LD - East Cambs - Care,Residential Care
Cambridgeshire County Council,10-Sep-21,51301640401,"-4,675.66",CAS LEARNING DISABILITIES LTD,CARE ESTABLISHMENT,LD - East Locality - Cost of Care,LD - East Cambs - Care,Residential Care
Cambridgeshire County Council,10-Sep-21,51301640401,"-4,675.66",CAS LEARNING DISABILITIES LTD,CARE ESTABLISHMENT,LD - East Locality - Cost of Care,LD - East Cambs - Care,Residential Care
Cambridgeshire County Council,10-Sep-21,51301640401,"-4,675.66",CAS LEARNING DISABILITIES LTD,CARE ESTABLISHMENT,LD - East Locality - Cost of Care,LD - East Cambs - Care,Residential Care
Cambridgeshire County Council,10-Sep-21,51301640401,"-4,675.66",CAS LEARNING DISABILITIES LTD,CARE ESTABLISHMENT,LD - East Locality - Cost of Care,LD - East Cambs - Care,Residential Care
Cambridgeshire County Council,10-Sep-21,51301640401,"-4,675.66",CAS LEARNING DISABILITIES LTD,CARE ESTABLISHMENT,LD - East Locality - Cost of Care,LD - East Cambs - Care,Residential Care
Cambridgeshire County Council,10-Sep-21,51301640401,"-4,675.66",CAS LEARNING DISABILITIES LTD,CARE ESTABLISHMENT,LD - East Locality - Cost of Care,LD - East Cambs - Care,Residential Care
Cambridgeshire County Council,10-Sep-21,51301640401,"-4,675.66",CAS LEARNING DISABILITIES LTD,CARE ESTABLISHMENT,LD - East Locality - Cost of Care,LD - East Cambs - Care,Residential Care
Cambridgeshire County Council,10-Sep-21,51301640401,"-4,675.66",CAS LEARNING DISABILITIES LTD,CARE ESTABLISHMENT,LD - East Locality - Cost of Care,LD - East Cambs - Care,Residential Care
Cambridgeshire County Council,10-Sep-21,51301640401,"-4,675.66",CAS LEARNING DISABILITIES LTD,CARE ESTABLISHMENT,LD - East Locality - Cost of Care,LD - East Cambs - Care,Residential Care
Cambridgeshire County Council,10-Sep-21,51301640401,"-4,675.66",CAS LEARNING DISABILITIES LTD,CARE ESTABLISHMENT,LD - East Locality - Cost of Care,LD - East Cambs - Care,Residential Care
Cambridgeshire County Council,10-Sep-21,51301640401,"-4,675.66",CAS LEARNING DISABILITIES LTD,CARE ESTABLISHMENT,LD - East Locality - Cost of Care,LD - East Cambs - Care,Residential Care
Cambridgeshire County Council,10-Sep-21,51301640401,"-4,675.66",CAS LEARNING DISABILITIES LTD,CARE ESTABLISHMENT,LD - East Locality - Cost of Care,LD - East Cambs - Care,Residential Care
Cambridgeshire County Council,21-Sep-21,51301643260,"-4,325.28",HUNTERS HEALTHCARE (HUNTERS DOWN),CARE ESTABLISHMENT,OP - Hunts Blocks,Hunts - Long term blocks,Nursing Care
Cambridgeshire County Council,21-Sep-21,51301643260,"-4,325.28",HUNTERS HEALTHCARE (HUNTERS DOWN),CARE ESTABLISHMENT,OP - Hunts Blocks,Hunts - Long term blocks,Nursing Care
Cambridgeshire County Council,21-Sep-21,51301643260,"-4,325.28",HUNTERS HEALTHCARE (HUNTERS DOWN),CARE ESTABLISHMENT,OP - Hunts Blocks,Hunts - Long term blocks,Nursing Care
Cambridgeshire County Council,21-Sep-21,51301643260,"-4,325.28",HUNTERS HEALTHCARE (HUNTERS DOWN),CARE ESTABLISHMENT,OP - Hunts Blocks,Hunts - Long term blocks,Nursing Care
Cambridgeshire County Council,21-Sep-21,51301643260,"-4,325.28",HUNTERS HEALTHCARE (HUNTERS DOWN),CARE ESTABLISHMENT,OP - Hunts Blocks,Hunts - Long term blocks,Nursing Care
Cambridgeshire County Council,21-Sep-21,51301643260,"-4,325.28",HUNTERS HEALTHCARE (HUNTERS DOWN),CARE ESTABLISHMENT,OP - Hunts Blocks,Hunts - Long term blocks,Nursing Care
Cambridgeshire County Council,21-Sep-21,51301643261,"-4,290.00",THE GABLES SPECIALIST NURSING HOME,CARE ESTABLISHMENT,OP - Fenland Blocks,Fenland - Long term blocks,Nursing Care
Cambridgeshire County Council,21-Sep-21,51301643261,"-4,290.00",THE GABLES SPECIALIST NURSING HOME,CARE ESTABLISHMENT,OP - Fenland Blocks,Fenland - Long term blocks,Nursing Care
Cambridgeshire County Council,21-Sep-21,51301643261,"-4,290.00",THE GABLES SPECIALIST NURSING HOME,CARE ESTABLISHMENT,OP - Fenland Blocks,Fenland - Long term blocks,Nursing Care
Cambridgeshire County Council,21-Sep-21,51301643261,"-4,290.00",THE GABLES SPECIALIST NURSING HOME,CARE ESTABLISHMENT,OP - Fenland Blocks,Fenland - Long term blocks,Nursing Care
Cambridgeshire County Council,20-Sep-21,51301642787,"-4,277.04",AMEYCESPA WM (EAST )LIMITED,TRADE SUPPLIER,Waste Disposal incl PFI,Waste PFI,Landfill Tax
Cambridgeshire County Council,03-Sep-21,51301632802,"-3,963.57",People Who Foster Ltd,CARE ESTABLISHMENT,LAC Placements,Placements - independent fostering,Agency Placements - Out of  County
Cambridgeshire County Council,03-Sep-21,51301632806,"-3,963.57",People Who Foster Ltd,CARE ESTABLISHMENT,LAC Placements,Placements - independent fostering,Agency Placements - Out of  County
Cambridgeshire County Council,03-Sep-21,51301632816,"-3,963.57",People Who Foster Ltd,CARE ESTABLISHMENT,LAC Placements,Placements - independent fostering,Agency Placements - Out of  County
Cambridgeshire County Council,03-Sep-21,51301632822,"-3,963.57",People Who Foster Ltd,CARE ESTABLISHMENT,LAC Placements,Placements - independent fostering,Agency Placements - Out of  County
Cambridgeshire County Council,03-Sep-21,51301632812,"-3,963.57",People Who Foster Ltd,CARE ESTABLISHMENT,LAC Placements,Placements - independent fostering,Agency Placements - Out of  County
Cambridgeshire County Council,03-Sep-21,51301632808,"-3,963.57",People Who Foster Ltd,CARE ESTABLISHMENT,LAC Placements,Placements - independent fostering,Agency Placements - Out of  County
Cambridgeshire County Council,03-Sep-21,51301632818,"-3,963.57",People Who Foster Ltd,CARE ESTABLISHMENT,LAC Placements,Placements - independent fostering,Agency Placements - Out of  County
Cambridgeshire County Council,30-Sep-21,51301645706,"-3,944.50",Redacted Personal Data,INDIVIDUAL,OPMH - City & South,Older People Mental Health City & South,Direct Payments
Cambridgeshire County Council,03-Sep-21,51301632824,"-3,835.71",People Who Foster Ltd,CARE ESTABLISHMENT,LAC Placements,Placements - independent fostering,Agency Placements - Out of  County
Cambridgeshire County Council,03-Sep-21,51301632800,"-3,835.71",People Who Foster Ltd,CARE ESTABLISHMENT,LAC Placements,Placements - independent fostering,Agency Placements - Out of  County
Cambridgeshire County Council,03-Sep-21,51301632814,"-3,835.71",People Who Foster Ltd,CARE ESTABLISHMENT,LAC Placements,Placements - independent fostering,Agency Placements - Out of  County
Cambridgeshire County Council,03-Sep-21,51301632810,"-3,835.71",People Who Foster Ltd,CARE ESTABLISHMENT,LAC Placements,Placements - independent fostering,Agency Placements - Out of  County
Cambridgeshire County Council,03-Sep-21,51301632804,"-3,835.71",People Who Foster Ltd,CARE ESTABLISHMENT,LAC Placements,Placements - independent fostering,Agency Placements - Out of  County
Cambridgeshire County Council,10-Sep-21,51301640387,"-3,647.87",SENSE NATIONAL DEAF & BLIND,CARE ESTABLISHMENT,LD - Fenland Locality - Cost of Care,LD - Fenland  - Care,Residential Care
Cambridgeshire County Council,10-Sep-21,51301640387,"-3,647.87",SENSE NATIONAL DEAF & BLIND,CARE ESTABLISHMENT,LD - Fenland Locality - Cost of Care,LD - Fenland  - Care,Residential Care
Cambridgeshire County Council,10-Sep-21,51301640387,"-3,647.87",SENSE NATIONAL DEAF & BLIND,CARE ESTABLISHMENT,LD - Fenland Locality - Cost of Care,LD - Fenland  - Care,Residential Care
Cambridgeshire County Council,10-Sep-21,51301640387,"-3,647.87",SENSE NATIONAL DEAF & BLIND,CARE ESTABLISHMENT,LD - Fenland Locality - Cost of Care,LD - Fenland  - Care,Residential Care
Cambridgeshire County Council,10-Sep-21,51301640387,"-3,647.87",SENSE NATIONAL DEAF & BLIND,CARE ESTABLISHMENT,LD - Fenland Locality - Cost of Care,LD - Fenland  - Care,Residential Care
Cambridgeshire County Council,10-Sep-21,51301640387,"-3,647.87",SENSE NATIONAL DEAF & BLIND,CARE ESTABLISHMENT,LD - Fenland Locality - Cost of Care,LD - Fenland  - Care,Residential Care
Cambridgeshire County Council,10-Sep-21,51301640387,"-3,647.87",SENSE NATIONAL DEAF & BLIND,CARE ESTABLISHMENT,LD - Fenland Locality - Cost of Care,LD - Fenland  - Care,Residential Care
Cambridgeshire County Council,10-Sep-21,51301640387,"-3,647.87",SENSE NATIONAL DEAF & BLIND,CARE ESTABLISHMENT,LD - Fenland Locality - Cost of Care,LD - Fenland  - Care,Residential Care
Cambridgeshire County Council,10-Sep-21,51301640387,"-3,647.87",SENSE NATIONAL DEAF & BLIND,CARE ESTABLISHMENT,LD - Fenland Locality - Cost of Care,LD - Fenland  - Care,Residential Care
Cambridgeshire County Council,10-Sep-21,51301640387,"-3,647.87",SENSE NATIONAL DEAF & BLIND,CARE ESTABLISHMENT,LD - Fenland Locality - Cost of Care,LD - Fenland  - Care,Residential Care
Cambridgeshire County Council,10-Sep-21,51301640387,"-3,647.87",SENSE NATIONAL DEAF & BLIND,CARE ESTABLISHMENT,LD - Fenland Locality - Cost of Care,LD - Fenland  - Care,Residential Care
Cambridgeshire County Council,10-Sep-21,51301640387,"-3,647.87",SENSE NATIONAL DEAF & BLIND,CARE ESTABLISHMENT,LD - Fenland Locality - Cost of Care,LD - Fenland  - Care,Residential Care
Cambridgeshire County Council,10-Sep-21,51301640387,"-3,647.87",SENSE NATIONAL DEAF & BLIND,CARE ESTABLISHMENT,LD - Fenland Locality - Cost of Care,LD - Fenland  - Care,Residential Care
Cambridgeshire County Council,10-Sep-21,51301640387,"-3,647.87",SENSE NATIONAL DEAF & BLIND,CARE ESTABLISHMENT,LD - Fenland Locality - Cost of Care,LD - Fenland  - Care,Residential Care
Cambridgeshire County Council,10-Sep-21,51301640387,"-3,647.87",SENSE NATIONAL DEAF & BLIND,CARE ESTABLISHMENT,LD - Fenland Locality - Cost of Care,LD - Fenland  - Care,Residential Care
Cambridgeshire County Council,10-Sep-21,51301640387,"-3,647.87",SENSE NATIONAL DEAF & BLIND,CARE ESTABLISHMENT,LD - Fenland Locality - Cost of Care,LD - Fenland  - Care,Residential Care
Cambridgeshire County Council,10-Sep-21,51301640387,"-3,647.87",SENSE NATIONAL DEAF & BLIND,CARE ESTABLISHMENT,LD - Fenland Locality - Cost of Care,LD - Fenland  - Care,Residential Care
Cambridgeshire County Council,10-Sep-21,51301640387,"-3,647.87",SENSE NATIONAL DEAF & BLIND,CARE ESTABLISHMENT,LD - Fenland Locality - Cost of Care,LD - Fenland  - Care,Residential Care
Cambridgeshire County Council,10-Sep-21,51301640387,"-3,647.87",SENSE NATIONAL DEAF & BLIND,CARE ESTABLISHMENT,LD - Fenland Locality - Cost of Care,LD - Fenland  - Care,Residential Care
Cambridgeshire County Council,10-Sep-21,51301640387,"-3,647.87",SENSE NATIONAL DEAF & BLIND,CARE ESTABLISHMENT,LD - Fenland Locality - Cost of Care,LD - Fenland  - Care,Residential Care
Cambridgeshire County Council,10-Sep-21,51301640387,"-3,647.87",SENSE NATIONAL DEAF & BLIND,CARE ESTABLISHMENT,LD - Fenland Locality - Cost of Care,LD - Fenland  - Care,Residential Care
Cambridgeshire County Council,10-Sep-21,51301640387,"-3,647.87",SENSE NATIONAL DEAF & BLIND,CARE ESTABLISHMENT,LD - Fenland Locality - Cost of Care,LD - Fenland  - Care,Residential Care
Cambridgeshire County Council,10-Sep-21,51301640387,"-3,647.87",SENSE NATIONAL DEAF & BLIND,CARE ESTABLISHMENT,LD - Fenland Locality - Cost of Care,LD - Fenland  - Care,Residential Care
Cambridgeshire County Council,10-Sep-21,51301640387,"-3,647.87",SENSE NATIONAL DEAF & BLIND,CARE ESTABLISHMENT,LD - Fenland Locality - Cost of Care,LD - Fenland  - Care,Residential Care
Cambridgeshire County Council,10-Sep-21,51301640387,"-3,647.87",SENSE NATIONAL DEAF & BLIND,CARE ESTABLISHMENT,LD - Fenland Locality - Cost of Care,LD - Fenland  - Care,Residential Care
Cambridgeshire County Council,10-Sep-21,51301640387,"-3,647.87",SENSE NATIONAL DEAF & BLIND,CARE ESTABLISHMENT,LD - Fenland Locality - Cost of Care,LD - Fenland  - Care,Residential Care
Cambridgeshire County Council,10-Sep-21,51301640387,"-3,647.87",SENSE NATIONAL DEAF & BLIND,CARE ESTABLISHMENT,LD - Fenland Locality - Cost of Care,LD - Fenland  - Care,Residential Care
Cambridgeshire County Council,10-Sep-21,51301640387,"-3,647.87",SENSE NATIONAL DEAF & BLIND,CARE ESTABLISHMENT,LD - Fenland Locality - Cost of Care,LD - Fenland  - Care,Residential Care
Cambridgeshire County Council,10-Sep-21,51301640387,"-3,647.87",SENSE NATIONAL DEAF & BLIND,CARE ESTABLISHMENT,LD - Fenland Locality - Cost of Care,LD - Fenland  - Care,Residential Care
Cambridgeshire County Council,10-Sep-21,51301640387,"-3,647.87",SENSE NATIONAL DEAF & BLIND,CARE ESTABLISHMENT,LD - Fenland Locality - Cost of Care,LD - Fenland  - Care,Residential Care
Cambridgeshire County Council,10-Sep-21,51301640387,"-3,647.87",SENSE NATIONAL DEAF & BLIND,CARE ESTABLISHMENT,LD - Fenland Locality - Cost of Care,LD - Fenland  - Care,Residential Care
Cambridgeshire County Council,10-Sep-21,51301640387,"-3,647.87",SENSE NATIONAL DEAF & BLIND,CARE ESTABLISHMENT,LD - Fenland Locality - Cost of Care,LD - Fenland  - Care,Residential Care
Cambridgeshire County Council,10-Sep-21,51301640387,"-3,647.87",SENSE NATIONAL DEAF & BLIND,CARE ESTABLISHMENT,LD - Fenland Locality - Cost of Care,LD - Fenland  - Care,Residential Care
Cambridgeshire County Council,10-Sep-21,51301640387,"-3,647.87",SENSE NATIONAL DEAF & BLIND,CARE ESTABLISHMENT,LD - Fenland Locality - Cost of Care,LD - Fenland  - Care,Residential Care
Cambridgeshire County Council,10-Sep-21,51301640387,"-3,647.87",SENSE NATIONAL DEAF & BLIND,CARE ESTABLISHMENT,LD - Fenland Locality - Cost of Care,LD - Fenland  - Care,Residential Care
Cambridgeshire County Council,10-Sep-21,51301640387,"-3,647.87",SENSE NATIONAL DEAF & BLIND,CARE ESTABLISHMENT,LD - Fenland Locality - Cost of Care,LD - Fenland  - Care,Residential Care
Cambridgeshire County Council,10-Sep-21,51301640387,"-3,647.87",SENSE NATIONAL DEAF & BLIND,CARE ESTABLISHMENT,LD - Fenland Locality - Cost of Care,LD - Fenland  - Care,Residential Care
Cambridgeshire County Council,10-Sep-21,51301640387,"-3,647.87",SENSE NATIONAL DEAF & BLIND,CARE ESTABLISHMENT,LD - Fenland Locality - Cost of Care,LD - Fenland  - Care,Residential Care
Cambridgeshire County Council,10-Sep-21,51301640387,"-3,647.87",SENSE NATIONAL DEAF & BLIND,CARE ESTABLISHMENT,LD - Fenland Locality - Cost of Care,LD - Fenland  - Care,Residential Care
Cambridgeshire County Council,10-Sep-21,51301640387,"-3,647.87",SENSE NATIONAL DEAF & BLIND,CARE ESTABLISHMENT,LD - Fenland Locality - Cost of Care,LD - Fenland  - Care,Residential Care
Cambridgeshire County Council,10-Sep-21,51301640387,"-3,647.87",SENSE NATIONAL DEAF & BLIND,CARE ESTABLISHMENT,LD - Fenland Locality - Cost of Care,LD - Fenland  - Care,Residential Care
Cambridgeshire County Council,10-Sep-21,51301640387,"-3,647.87",SENSE NATIONAL DEAF & BLIND,CARE ESTABLISHMENT,LD - Fenland Locality - Cost of Care,LD - Fenland  - Care,Residential Care
Cambridgeshire County Council,10-Sep-21,51301640387,"-3,647.87",SENSE NATIONAL DEAF & BLIND,CARE ESTABLISHMENT,LD - Fenland Locality - Cost of Care,LD - Fenland  - Care,Residential Care
Cambridgeshire County Council,10-Sep-21,51301640387,"-3,647.87",SENSE NATIONAL DEAF & BLIND,CARE ESTABLISHMENT,LD - Fenland Locality - Cost of Care,LD - Fenland  - Care,Residential Care
Cambridgeshire County Council,10-Sep-21,51301640387,"-3,647.87",SENSE NATIONAL DEAF & BLIND,CARE ESTABLISHMENT,LD - Fenland Locality - Cost of Care,LD - Fenland  - Care,Residential Care
Cambridgeshire County Council,10-Sep-21,51301640387,"-3,647.87",SENSE NATIONAL DEAF & BLIND,CARE ESTABLISHMENT,LD - Fenland Locality - Cost of Care,LD - Fenland  - Care,Residential Care
Cambridgeshire County Council,28-Sep-21,51301645331,"-3,639.44",KISIMUL SCHOOL,CARE ESTABLISHMENT,LD - Young Adults Team,LD - Young Adults - Special Needs,Residential Care
Cambridgeshire County Council,28-Sep-21,51301645331,"-3,639.44",KISIMUL SCHOOL,CARE ESTABLISHMENT,LD - Young Adults Team,LD - Young Adults - Special Needs,Residential Care
Cambridgeshire County Council,28-Sep-21,51301645331,"-3,639.44",KISIMUL SCHOOL,CARE ESTABLISHMENT,LD - Young Adults Team,LD - Young Adults - Special Needs,Residential Care
Cambridgeshire County Council,28-Sep-21,51301645331,"-3,639.44",KISIMUL SCHOOL,CARE ESTABLISHMENT,LD - Young Adults Team,LD - Young Adults - Special Needs,Residential Care
Cambridgeshire County Council,28-Sep-21,51301645331,"-3,639.44",KISIMUL SCHOOL,CARE ESTABLISHMENT,LD - Young Adults Team,LD - Young Adults - Special Needs,Residential Care
Cambridgeshire County Council,28-Sep-21,51301645331,"-3,639.44",KISIMUL SCHOOL,CARE ESTABLISHMENT,LD - Young Adults Team,LD - Young Adults - Special Needs,Residential Care
Cambridgeshire County Council,28-Sep-21,51301645331,"-3,639.44",KISIMUL SCHOOL,CARE ESTABLISHMENT,LD - Young Adults Team,LD - Young Adults - Special Needs,Residential Care
Cambridgeshire County Council,28-Sep-21,51301645331,"-3,639.44",KISIMUL SCHOOL,CARE ESTABLISHMENT,LD - Young Adults Team,LD - Young Adults - Special Needs,Residential Care
Cambridgeshire County Council,28-Sep-21,51301645331,"-3,639.44",KISIMUL SCHOOL,CARE ESTABLISHMENT,LD - Young Adults Team,LD - Young Adults - Special Needs,Residential Care
Cambridgeshire County Council,28-Sep-21,51301645331,"-3,639.44",KISIMUL SCHOOL,CARE ESTABLISHMENT,LD - Young Adults Team,LD - Young Adults - Special Needs,Residential Care
Cambridgeshire County Council,28-Sep-21,51301645331,"-3,639.44",KISIMUL SCHOOL,CARE ESTABLISHMENT,LD - Young Adults Team,LD - Young Adults - Special Needs,Residential Care
Cambridgeshire County Council,28-Sep-21,51301645331,"-3,639.44",KISIMUL SCHOOL,CARE ESTABLISHMENT,LD - Young Adults Team,LD - Young Adults - Special Needs,Residential Care
Cambridgeshire County Council,28-Sep-21,51301645331,"-3,639.44",KISIMUL SCHOOL,CARE ESTABLISHMENT,LD - Young Adults Team,LD - Young Adults - Special Needs,Residential Care
Cambridgeshire County Council,28-Sep-21,51301645331,"-3,639.44",KISIMUL SCHOOL,CARE ESTABLISHMENT,LD - Young Adults Team,LD - Young Adults - Special Needs,Residential Care
Cambridgeshire County Council,28-Sep-21,51301645331,"-3,639.44",KISIMUL SCHOOL,CARE ESTABLISHMENT,LD - Young Adults Team,LD - Young Adults - Special Needs,Residential Care
Cambridgeshire County Council,28-Sep-21,51301645331,"-3,639.44",KISIMUL SCHOOL,CARE ESTABLISHMENT,LD - Young Adults Team,LD - Young Adults - Special Needs,Residential Care
Cambridgeshire County Council,28-Sep-21,51301645331,"-3,639.44",KISIMUL SCHOOL,CARE ESTABLISHMENT,LD - Young Adults Team,LD - Young Adults - Special Needs,Residential Care
Cambridgeshire County Council,28-Sep-21,51301645331,"-3,639.44",KISIMUL SCHOOL,CARE ESTABLISHMENT,LD - Young Adults Team,LD - Young Adults - Special Needs,Residential Care
Cambridgeshire County Council,28-Sep-21,51301645331,"-3,639.44",KISIMUL SCHOOL,CARE ESTABLISHMENT,LD - Young Adults Team,LD - Young Adults - Special Needs,Residential Care
Cambridgeshire County Council,28-Sep-21,51301645331,"-3,639.44",KISIMUL SCHOOL,CARE ESTABLISHMENT,LD - Young Adults Team,LD - Young Adults - Special Needs,Residential Care
Cambridgeshire County Council,28-Sep-21,51301645331,"-3,639.44",KISIMUL SCHOOL,CARE ESTABLISHMENT,LD - Young Adults Team,LD - Young Adults - Special Needs,Residential Care
Cambridgeshire County Council,28-Sep-21,51301645331,"-3,639.44",KISIMUL SCHOOL,CARE ESTABLISHMENT,LD - Young Adults Team,LD - Young Adults - Special Needs,Residential Care
Cambridgeshire County Council,28-Sep-21,51301645331,"-3,639.44",KISIMUL SCHOOL,CARE ESTABLISHMENT,LD - Young Adults Team,LD - Young Adults - Special Needs,Residential Care
Cambridgeshire County Council,03-Sep-21,51301632820,"-3,580.00",People Who Foster Ltd,CARE ESTABLISHMENT,LAC Placements,Placements - independent fostering,Agency Placements - Out of  County
Cambridgeshire County Council,02-Sep-21,51301631599,"-3,562.86",Allied Health-Services Limited,CARE ESTABLISHMENT,OP - City & South Locality - Cost of Care,Older People - City & South - Care,Supported Living
Cambridgeshire County Council,02-Sep-21,51301631595,"-3,550.86",Allied Health-Services Limited,CARE ESTABLISHMENT,OP - City & South Locality - Cost of Care,Older People - City & South - Care,Supported Living
Cambridgeshire County Council,22-Sep-21,51301643378,"-3,482.00",GRETTON SCHOOL,EDUCATION,SEN Placements,Placements - Education,Educational Materials
Cambridgeshire County Council,08-Sep-21,51301611057,"-3,432.14",UK Care Partnership Ltd,CARE ESTABLISHMENT,Unaccompanied Asylum Seeking Children,Unaccompanied Asylum Seeking Children >18 Leaving Care,Living Spport Grants - Financial Assistance 18+
Cambridgeshire County Council,14-Sep-21,51301641723,"-3,412.05",ST GEORGE'S COURT,CARE ESTABLISHMENT,OP - City & South Blocks,City and South - Long term blocks,Nursing Care
Cambridgeshire County Council,14-Sep-21,51301641723,"-3,412.05",ST GEORGE'S COURT,CARE ESTABLISHMENT,OP - City & South Blocks,City and South - Long term blocks,Nursing Care
Cambridgeshire County Council,14-Sep-21,51301641723,"-3,412.05",ST GEORGE'S COURT,CARE ESTABLISHMENT,OP - City & South Blocks,City and South - Long term blocks,Nursing Care
Cambridgeshire County Council,14-Sep-21,51301641723,"-3,412.05",ST GEORGE'S COURT,CARE ESTABLISHMENT,OP - City & South Blocks,City and South - Long term blocks,Nursing Care
Cambridgeshire County Council,14-Sep-21,51301641723,"-3,412.05",ST GEORGE'S COURT,CARE ESTABLISHMENT,OP - City & South Blocks,City and South - Long term blocks,Nursing Care
Cambridgeshire County Council,14-Sep-21,51301641723,"-3,412.05",ST GEORGE'S COURT,CARE ESTABLISHMENT,OP - City & South Blocks,City and South - Long term blocks,Nursing Care
Cambridgeshire County Council,07-Sep-21,51301639056,"-3,353.90",REED SPECIALIST RECRUITMENT LTD,TRADE SUPPLIER,Community Support Service,Community Support Service ECF,Grants to Voluntary Bodies
Cambridgeshire County Council,07-Sep-21,51301639058,"-3,272.10",REED SPECIALIST RECRUITMENT LTD,TRADE SUPPLIER,Community Support Service,Community Support Service ECF,Grants to Voluntary Bodies
Cambridgeshire County Council,21-Sep-21,51301643266,"-3,199.12",ETHELDRED HOUSE,CARE ESTABLISHMENT,OP - City & South Blocks,City and South - Long term blocks,Nursing Care
Cambridgeshire County Council,21-Sep-21,51301643266,"-3,199.12",ETHELDRED HOUSE,CARE ESTABLISHMENT,OP - City & South Blocks,City and South - Long term blocks,Nursing Care
Cambridgeshire County Council,21-Sep-21,51301643266,"-3,199.12",ETHELDRED HOUSE,CARE ESTABLISHMENT,OP - City & South Blocks,City and South - Long term blocks,Nursing Care
Cambridgeshire County Council,21-Sep-21,51301643266,"-3,199.12",ETHELDRED HOUSE,CARE ESTABLISHMENT,OP - City & South Blocks,City and South - Long term blocks,Nursing Care
Cambridgeshire County Council,21-Sep-21,51301643266,"-3,199.12",ETHELDRED HOUSE,CARE ESTABLISHMENT,OP - City & South Blocks,City and South - Long term blocks,Nursing Care
Cambridgeshire County Council,21-Sep-21,51301643266,"-3,199.12",ETHELDRED HOUSE,CARE ESTABLISHMENT,OP - City & South Blocks,City and South - Long term blocks,Nursing Care
Cambridgeshire County Council,08-Sep-21,51301611054,"-3,100.00",UK Care Partnership Ltd,CARE ESTABLISHMENT,Unaccompanied Asylum Seeking Children,Unaccompanied Asylum Seeking Children >18 Leaving Care,Living Spport Grants - Financial Assistance 18+
Cambridgeshire County Council,14-Sep-21,51301641723,"-3,084.87",ST GEORGE'S COURT,CARE ESTABLISHMENT,OP - City & South Blocks,City and South - Long term blocks,Nursing Care
Cambridgeshire County Council,03-Sep-21,51301628507,"-3,000.00",PENDERELS TRUST,TRUST (OTHER),AMH - City South,Cambridge Mental Health team,Other Care Provide Payments and Contributions
Cambridgeshire County Council,08-Sep-21,51301611051,"-2,989.29",UK Care Partnership Ltd,CARE ESTABLISHMENT,Unaccompanied Asylum Seeking Children,Unaccompanied Asylum Seeking Children >18 Leaving Care,Living Spport Grants - Financial Assistance 18+
Cambridgeshire County Council,02-Sep-21,51301631598,"-2,910.86",Allied Health-Services Limited,CARE ESTABLISHMENT,OP - City & South Locality - Cost of Care,Older People - City & South - Care,Supported Living
Cambridgeshire County Council,02-Sep-21,51301631596,"-2,898.86",Allied Health-Services Limited,CARE ESTABLISHMENT,OP - City & South Locality - Cost of Care,Older People - City & South - Care,Supported Living
Cambridgeshire County Council,21-Sep-21,51301643257,"-2,850.00",AISLING LODGE (MD CARE HOMES),CARE ESTABLISHMENT,OP - Hunts Blocks,Hunts - Long term blocks,Residential Care
Cambridgeshire County Council,21-Sep-21,51301643257,"-2,850.00",AISLING LODGE (MD CARE HOMES),CARE ESTABLISHMENT,OP - Hunts Blocks,Hunts - Long term blocks,Residential Care
Cambridgeshire County Council,20-Sep-21,51301642655,"-2,844.30",AMEYCESPA WM (EAST )LIMITED,TRADE SUPPLIER,Waste Disposal incl PFI,Waste PFI,WRA Licenses
Cambridgeshire County Council,15-Sep-21,51301642154,"-2,839.53",MEARS CARE LTD,CARE ESTABLISHMENT,OP - Hunts Locality - Cost of Care,Hunts OP Team - Care,Supported Living
Cambridgeshire County Council,15-Sep-21,51301642154,"-2,839.53",MEARS CARE LTD,CARE ESTABLISHMENT,OP - Hunts Locality - Cost of Care,Hunts OP Team - Care,Supported Living
Cambridgeshire County Council,15-Sep-21,51301642154,"-2,839.53",MEARS CARE LTD,CARE ESTABLISHMENT,OP - Hunts Locality - Cost of Care,Hunts OP Team - Care,Supported Living
Cambridgeshire County Council,15-Sep-21,51301642154,"-2,839.53",MEARS CARE LTD,CARE ESTABLISHMENT,OP - Hunts Locality - Cost of Care,Hunts OP Team - Care,Supported Living
Cambridgeshire County Council,15-Sep-21,51301642154,"-2,839.53",MEARS CARE LTD,CARE ESTABLISHMENT,OP - Hunts Locality - Cost of Care,Hunts OP Team - Care,Supported Living
Cambridgeshire County Council,15-Sep-21,51301642154,"-2,839.53",MEARS CARE LTD,CARE ESTABLISHMENT,OP - Hunts Locality - Cost of Care,Hunts OP Team - Care,Supported Living
Cambridgeshire County Council,15-Sep-21,51301642154,"-2,839.53",MEARS CARE LTD,CARE ESTABLISHMENT,OP - Hunts Locality - Cost of Care,Hunts OP Team - Care,Supported Living
Cambridgeshire County Council,15-Sep-21,51301642154,"-2,839.53",MEARS CARE LTD,CARE ESTABLISHMENT,OP - Hunts Locality - Cost of Care,Hunts OP Team - Care,Supported Living
Cambridgeshire County Council,15-Sep-21,51301642154,"-2,839.53",MEARS CARE LTD,CARE ESTABLISHMENT,OP - Hunts Locality - Cost of Care,Hunts OP Team - Care,Supported Living
Cambridgeshire County Council,15-Sep-21,51301642154,"-2,839.53",MEARS CARE LTD,CARE ESTABLISHMENT,OP - Hunts Locality - Cost of Care,Hunts OP Team - Care,Supported Living
Cambridgeshire County Council,15-Sep-21,51301642154,"-2,839.53",MEARS CARE LTD,CARE ESTABLISHMENT,OP - Hunts Locality - Cost of Care,Hunts OP Team - Care,Supported Living
Cambridgeshire County Council,15-Sep-21,51301642154,"-2,839.53",MEARS CARE LTD,CARE ESTABLISHMENT,OP - Hunts Locality - Cost of Care,Hunts OP Team - Care,Supported Living
Cambridgeshire County Council,15-Sep-21,51301642154,"-2,839.53",MEARS CARE LTD,CARE ESTABLISHMENT,OP - Hunts Locality - Cost of Care,Hunts OP Team - Care,Supported Living
Cambridgeshire County Council,15-Sep-21,51301642154,"-2,839.53",MEARS CARE LTD,CARE ESTABLISHMENT,OP - Hunts Locality - Cost of Care,Hunts OP Team - Care,Supported Living
Cambridgeshire County Council,15-Sep-21,51301642154,"-2,839.53",MEARS CARE LTD,CARE ESTABLISHMENT,OP - Hunts Locality - Cost of Care,Hunts OP Team - Care,Supported Living
Cambridgeshire County Council,15-Sep-21,51301642154,"-2,839.53",MEARS CARE LTD,CARE ESTABLISHMENT,OP - Hunts Locality - Cost of Care,Hunts OP Team - Care,Supported Living
Cambridgeshire County Council,15-Sep-21,51301642154,"-2,839.53",MEARS CARE LTD,CARE ESTABLISHMENT,OP - Hunts Locality - Cost of Care,Hunts OP Team - Care,Supported Living
Cambridgeshire County Council,15-Sep-21,51301642154,"-2,839.53",MEARS CARE LTD,CARE ESTABLISHMENT,OP - Hunts Locality - Cost of Care,Hunts OP Team - Care,Supported Living
Cambridgeshire County Council,15-Sep-21,51301642154,"-2,839.53",MEARS CARE LTD,CARE ESTABLISHMENT,OP - Hunts Locality - Cost of Care,Hunts OP Team - Care,Supported Living
Cambridgeshire County Council,15-Sep-21,51301642154,"-2,839.53",MEARS CARE LTD,CARE ESTABLISHMENT,OP - Hunts Locality - Cost of Care,Hunts OP Team - Care,Supported Living
Cambridgeshire County Council,15-Sep-21,51301642154,"-2,839.53",MEARS CARE LTD,CARE ESTABLISHMENT,OP - Hunts Locality - Cost of Care,Hunts OP Team - Care,Supported Living
Cambridgeshire County Council,15-Sep-21,51301642154,"-2,839.53",MEARS CARE LTD,CARE ESTABLISHMENT,OP - Hunts Locality - Cost of Care,Hunts OP Team - Care,Supported Living
Cambridgeshire County Council,15-Sep-21,51301642154,"-2,839.53",MEARS CARE LTD,CARE ESTABLISHMENT,OP - Hunts Locality - Cost of Care,Hunts OP Team - Care,Supported Living
Cambridgeshire County Council,15-Sep-21,51301642154,"-2,839.53",MEARS CARE LTD,CARE ESTABLISHMENT,OP - Hunts Locality - Cost of Care,Hunts OP Team - Care,Supported Living
Cambridgeshire County Council,15-Sep-21,51301642154,"-2,839.53",MEARS CARE LTD,CARE ESTABLISHMENT,OP - Hunts Locality - Cost of Care,Hunts OP Team - Care,Supported Living
Cambridgeshire County Council,15-Sep-21,51301642154,"-2,839.53",MEARS CARE LTD,CARE ESTABLISHMENT,OP - Hunts Locality - Cost of Care,Hunts OP Team - Care,Supported Living
Cambridgeshire County Council,15-Sep-21,51301642154,"-2,839.53",MEARS CARE LTD,CARE ESTABLISHMENT,OP - Hunts Locality - Cost of Care,Hunts OP Team - Care,Supported Living
Cambridgeshire County Council,15-Sep-21,51301642154,"-2,839.53",MEARS CARE LTD,CARE ESTABLISHMENT,OP - Hunts Locality - Cost of Care,Hunts OP Team - Care,Supported Living
Cambridgeshire County Council,15-Sep-21,51301642154,"-2,839.53",MEARS CARE LTD,CARE ESTABLISHMENT,OP - Hunts Locality - Cost of Care,Hunts OP Team - Care,Supported Living
Cambridgeshire County Council,15-Sep-21,51301642154,"-2,839.53",MEARS CARE LTD,CARE ESTABLISHMENT,OP - Hunts Locality - Cost of Care,Hunts OP Team - Care,Supported Living
Cambridgeshire County Council,15-Sep-21,51301642154,"-2,839.53",MEARS CARE LTD,CARE ESTABLISHMENT,OP - Hunts Locality - Cost of Care,Hunts OP Team - Care,Supported Living
Cambridgeshire County Council,15-Sep-21,51301642154,"-2,839.53",MEARS CARE LTD,CARE ESTABLISHMENT,OP - Hunts Locality - Cost of Care,Hunts OP Team - Care,Supported Living
Cambridgeshire County Council,15-Sep-21,51301642154,"-2,839.53",MEARS CARE LTD,CARE ESTABLISHMENT,OP - Hunts Locality - Cost of Care,Hunts OP Team - Care,Supported Living
Cambridgeshire County Council,15-Sep-21,51301642154,"-2,839.53",MEARS CARE LTD,CARE ESTABLISHMENT,OP - Hunts Locality - Cost of Care,Hunts OP Team - Care,Supported Living
Cambridgeshire County Council,15-Sep-21,51301642154,"-2,839.53",MEARS CARE LTD,CARE ESTABLISHMENT,OP - Hunts Locality - Cost of Care,Hunts OP Team - Care,Supported Living
Cambridgeshire County Council,15-Sep-21,51301642154,"-2,839.53",MEARS CARE LTD,CARE ESTABLISHMENT,OP - Hunts Locality - Cost of Care,Hunts OP Team - Care,Supported Living
Cambridgeshire County Council,15-Sep-21,51301642154,"-2,839.53",MEARS CARE LTD,CARE ESTABLISHMENT,OP - Hunts Locality - Cost of Care,Hunts OP Team - Care,Supported Living
Cambridgeshire County Council,15-Sep-21,51301642154,"-2,839.53",MEARS CARE LTD,CARE ESTABLISHMENT,OP - Hunts Locality - Cost of Care,Hunts OP Team - Care,Supported Living
Cambridgeshire County Council,15-Sep-21,51301642154,"-2,839.53",MEARS CARE LTD,CARE ESTABLISHMENT,OP - Hunts Locality - Cost of Care,Hunts OP Team - Care,Supported Living
Cambridgeshire County Council,15-Sep-21,51301642154,"-2,839.53",MEARS CARE LTD,CARE ESTABLISHMENT,OP - Hunts Locality - Cost of Care,Hunts OP Team - Care,Supported Living
Cambridgeshire County Council,15-Sep-21,51301642154,"-2,839.53",MEARS CARE LTD,CARE ESTABLISHMENT,OP - Hunts Locality - Cost of Care,Hunts OP Team - Care,Supported Living
Cambridgeshire County Council,15-Sep-21,51301642154,"-2,839.53",MEARS CARE LTD,CARE ESTABLISHMENT,OP - Hunts Locality - Cost of Care,Hunts OP Team - Care,Supported Living
Cambridgeshire County Council,15-Sep-21,51301642154,"-2,839.53",MEARS CARE LTD,CARE ESTABLISHMENT,OP - Hunts Locality - Cost of Care,Hunts OP Team - Care,Supported Living
Cambridgeshire County Council,15-Sep-21,51301642154,"-2,839.53",MEARS CARE LTD,CARE ESTABLISHMENT,OP - Hunts Locality - Cost of Care,Hunts OP Team - Care,Supported Living
Cambridgeshire County Council,15-Sep-21,51301642154,"-2,839.53",MEARS CARE LTD,CARE ESTABLISHMENT,OP - Hunts Locality - Cost of Care,Hunts OP Team - Care,Supported Living
Cambridgeshire County Council,15-Sep-21,51301642154,"-2,839.53",MEARS CARE LTD,CARE ESTABLISHMENT,OP - Hunts Locality - Cost of Care,Hunts OP Team - Care,Supported Living
Cambridgeshire County Council,15-Sep-21,51301642154,"-2,839.53",MEARS CARE LTD,CARE ESTABLISHMENT,OP - Hunts Locality - Cost of Care,Hunts OP Team - Care,Supported Living
Cambridgeshire County Council,15-Sep-21,51301642154,"-2,839.53",MEARS CARE LTD,CARE ESTABLISHMENT,OP - Hunts Locality - Cost of Care,Hunts OP Team - Care,Supported Living
Cambridgeshire County Council,15-Sep-21,51301642154,"-2,839.53",MEARS CARE LTD,CARE ESTABLISHMENT,OP - Hunts Locality - Cost of Care,Hunts OP Team - Care,Supported Living
Cambridgeshire County Council,15-Sep-21,51301642154,"-2,839.53",MEARS CARE LTD,CARE ESTABLISHMENT,OP - Hunts Locality - Cost of Care,Hunts OP Team - Care,Supported Living
Cambridgeshire County Council,15-Sep-21,51301642154,"-2,839.53",MEARS CARE LTD,CARE ESTABLISHMENT,OP - Hunts Locality - Cost of Care,Hunts OP Team - Care,Supported Living
Cambridgeshire County Council,15-Sep-21,51301642154,"-2,839.53",MEARS CARE LTD,CARE ESTABLISHMENT,OP - Hunts Locality - Cost of Care,Hunts OP Team - Care,Supported Living
Cambridgeshire County Council,15-Sep-21,51301642154,"-2,839.53",MEARS CARE LTD,CARE ESTABLISHMENT,OP - Hunts Locality - Cost of Care,Hunts OP Team - Care,Supported Living
Cambridgeshire County Council,15-Sep-21,51301642154,"-2,839.53",MEARS CARE LTD,CARE ESTABLISHMENT,OP - Hunts Locality - Cost of Care,Hunts OP Team - Care,Supported Living
Cambridgeshire County Council,15-Sep-21,51301642154,"-2,839.53",MEARS CARE LTD,CARE ESTABLISHMENT,OP - Hunts Locality - Cost of Care,Hunts OP Team - Care,Supported Living
Cambridgeshire County Council,02-Sep-21,51301631597,"-2,702.86",Allied Health-Services Limited,CARE ESTABLISHMENT,OP - City & South Locality - Cost of Care,Older People - City & South - Care,Supported Living
Cambridgeshire County Council,21-Sep-21,51301643254,"-2,700.00",HUNTERS HEALTHCARE (HUNTERS DOWN),CARE ESTABLISHMENT,OP - Hunts Blocks,Hunts - Long term blocks,Residential Care
Cambridgeshire County Council,21-Sep-21,51301643254,"-2,700.00",HUNTERS HEALTHCARE (HUNTERS DOWN),CARE ESTABLISHMENT,OP - Hunts Blocks,Hunts - Long term blocks,Residential Care
Cambridgeshire County Council,10-Sep-21,51301640401,"-2,671.81",CAS LEARNING DISABILITIES LTD,CARE ESTABLISHMENT,LD - East Locality - Cost of Care,LD - East Cambs - Care,Residential Care
Cambridgeshire County Council,03-Sep-21,51301632081,"-2,666.05",Redacted Personal Data,SERVICE USER,LD - East Locality - Cost of Care,LD - East Cambs - Care,Direct Payments
Cambridgeshire County Council,03-Sep-21,51301632081,"-2,666.05",Redacted Personal Data,SERVICE USER,LD - East Locality - Cost of Care,LD - East Cambs - Care,Direct Payments
Cambridgeshire County Council,06-Sep-21,51301638530,"-2,630.57",PC HOMES,CARE ESTABLISHMENT,Unaccompanied Asylum Seeking Children,Unaccompanied Asylum Seeking Children <18,Asylum Seekers
Cambridgeshire County Council,06-Sep-21,51301638526,"-2,630.57",PC HOMES,CARE ESTABLISHMENT,Unaccompanied Asylum Seeking Children,Unaccompanied Asylum Seeking Children <18,Asylum Seekers
Cambridgeshire County Council,06-Sep-21,51301638522,"-2,630.57",PC HOMES,CARE ESTABLISHMENT,Unaccompanied Asylum Seeking Children,Unaccompanied Asylum Seeking Children <18,Asylum Seekers
Cambridgeshire County Council,06-Sep-21,51301638512,"-2,630.57",PC HOMES,CARE ESTABLISHMENT,Unaccompanied Asylum Seeking Children,Unaccompanied Asylum Seeking Children <18,Asylum Seekers
Cambridgeshire County Council,06-Sep-21,51301638516,"-2,630.57",PC HOMES,CARE ESTABLISHMENT,Unaccompanied Asylum Seeking Children,Unaccompanied Asylum Seeking Children <18,Asylum Seekers
Cambridgeshire County Council,06-Sep-21,51301638518,"-2,630.57",PC HOMES,CARE ESTABLISHMENT,Unaccompanied Asylum Seeking Children,Unaccompanied Asylum Seeking Children <18,Asylum Seekers
Cambridgeshire County Council,06-Sep-21,51301638524,"-2,545.72",PC HOMES,CARE ESTABLISHMENT,Unaccompanied Asylum Seeking Children,Unaccompanied Asylum Seeking Children <18,Asylum Seekers
Cambridgeshire County Council,06-Sep-21,51301638514,"-2,545.72",PC HOMES,CARE ESTABLISHMENT,Unaccompanied Asylum Seeking Children,Unaccompanied Asylum Seeking Children <18,Asylum Seekers
Cambridgeshire County Council,06-Sep-21,51301638528,"-2,545.72",PC HOMES,CARE ESTABLISHMENT,Unaccompanied Asylum Seeking Children,Unaccompanied Asylum Seeking Children <18,Asylum Seekers
Cambridgeshire County Council,06-Sep-21,51301637909,"-2,415.15",THE MANOR CHESHIRE HOME,CARE ESTABLISHMENT,LD - East Locality - Cost of Care,LD - East Cambs - Care,Residential Care
Cambridgeshire County Council,06-Sep-21,51301637909,"-2,415.15",THE MANOR CHESHIRE HOME,CARE ESTABLISHMENT,LD - East Locality - Cost of Care,LD - East Cambs - Care,Residential Care
Cambridgeshire County Council,06-Sep-21,51301637909,"-2,415.15",THE MANOR CHESHIRE HOME,CARE ESTABLISHMENT,LD - East Locality - Cost of Care,LD - East Cambs - Care,Residential Care
Cambridgeshire County Council,06-Sep-21,51301637909,"-2,415.15",THE MANOR CHESHIRE HOME,CARE ESTABLISHMENT,LD - East Locality - Cost of Care,LD - East Cambs - Care,Residential Care
Cambridgeshire County Council,06-Sep-21,51301637909,"-2,415.15",THE MANOR CHESHIRE HOME,CARE ESTABLISHMENT,LD - East Locality - Cost of Care,LD - East Cambs - Care,Residential Care
Cambridgeshire County Council,06-Sep-21,51301637909,"-2,415.15",THE MANOR CHESHIRE HOME,CARE ESTABLISHMENT,LD - East Locality - Cost of Care,LD - East Cambs - Care,Residential Care
Cambridgeshire County Council,06-Sep-21,51301637909,"-2,415.15",THE MANOR CHESHIRE HOME,CARE ESTABLISHMENT,LD - East Locality - Cost of Care,LD - East Cambs - Care,Residential Care
Cambridgeshire County Council,06-Sep-21,51301637909,"-2,415.15",THE MANOR CHESHIRE HOME,CARE ESTABLISHMENT,LD - East Locality - Cost of Care,LD - East Cambs - Care,Residential Care
Cambridgeshire County Council,06-Sep-21,51301637909,"-2,415.15",THE MANOR CHESHIRE HOME,CARE ESTABLISHMENT,LD - East Locality - Cost of Care,LD - East Cambs - Care,Residential Care
Cambridgeshire County Council,06-Sep-21,51301637909,"-2,415.15",THE MANOR CHESHIRE HOME,CARE ESTABLISHMENT,LD - East Locality - Cost of Care,LD - East Cambs - Care,Residential Care
Cambridgeshire County Council,06-Sep-21,51301637909,"-2,415.15",THE MANOR CHESHIRE HOME,CARE ESTABLISHMENT,LD - East Locality - Cost of Care,LD - East Cambs - Care,Residential Care
Cambridgeshire County Council,06-Sep-21,51301637909,"-2,415.15",THE MANOR CHESHIRE HOME,CARE ESTABLISHMENT,LD - East Locality - Cost of Care,LD - East Cambs - Care,Residential Care
Cambridgeshire County Council,06-Sep-21,51301637909,"-2,415.15",THE MANOR CHESHIRE HOME,CARE ESTABLISHMENT,LD - East Locality - Cost of Care,LD - East Cambs - Care,Residential Care
Cambridgeshire County Council,06-Sep-21,51301637909,"-2,415.15",THE MANOR CHESHIRE HOME,CARE ESTABLISHMENT,LD - East Locality - Cost of Care,LD - East Cambs - Care,Residential Care
Cambridgeshire County Council,06-Sep-21,51301637909,"-2,415.15",THE MANOR CHESHIRE HOME,CARE ESTABLISHMENT,LD - East Locality - Cost of Care,LD - East Cambs - Care,Residential Care
Cambridgeshire County Council,06-Sep-21,51301637909,"-2,415.15",THE MANOR CHESHIRE HOME,CARE ESTABLISHMENT,LD - East Locality - Cost of Care,LD - East Cambs - Care,Residential Care
Cambridgeshire County Council,06-Sep-21,51301637909,"-2,415.15",THE MANOR CHESHIRE HOME,CARE ESTABLISHMENT,LD - East Locality - Cost of Care,LD - East Cambs - Care,Residential Care
Cambridgeshire County Council,06-Sep-21,51301637909,"-2,415.15",THE MANOR CHESHIRE HOME,CARE ESTABLISHMENT,LD - East Locality - Cost of Care,LD - East Cambs - Care,Residential Care
Cambridgeshire County Council,06-Sep-21,51301637909,"-2,415.15",THE MANOR CHESHIRE HOME,CARE ESTABLISHMENT,LD - East Locality - Cost of Care,LD - East Cambs - Care,Residential Care
Cambridgeshire County Council,06-Sep-21,51301637909,"-2,415.15",THE MANOR CHESHIRE HOME,CARE ESTABLISHMENT,LD - East Locality - Cost of Care,LD - East Cambs - Care,Residential Care
Cambridgeshire County Council,06-Sep-21,51301637909,"-2,415.15",THE MANOR CHESHIRE HOME,CARE ESTABLISHMENT,LD - East Locality - Cost of Care,LD - East Cambs - Care,Residential Care
Cambridgeshire County Council,06-Sep-21,51301637909,"-2,415.15",THE MANOR CHESHIRE HOME,CARE ESTABLISHMENT,LD - East Locality - Cost of Care,LD - East Cambs - Care,Residential Care
Cambridgeshire County Council,06-Sep-21,51301637909,"-2,415.15",THE MANOR CHESHIRE HOME,CARE ESTABLISHMENT,LD - East Locality - Cost of Care,LD - East Cambs - Care,Residential Care
Cambridgeshire County Council,06-Sep-21,51301637909,"-2,415.15",THE MANOR CHESHIRE HOME,CARE ESTABLISHMENT,LD - East Locality - Cost of Care,LD - East Cambs - Care,Residential Care
Cambridgeshire County Council,06-Sep-21,51301637909,"-2,415.15",THE MANOR CHESHIRE HOME,CARE ESTABLISHMENT,LD - East Locality - Cost of Care,LD - East Cambs - Care,Residential Care
Cambridgeshire County Council,06-Sep-21,51301637909,"-2,415.15",THE MANOR CHESHIRE HOME,CARE ESTABLISHMENT,LD - East Locality - Cost of Care,LD - East Cambs - Care,Residential Care
Cambridgeshire County Council,06-Sep-21,51301637909,"-2,415.15",THE MANOR CHESHIRE HOME,CARE ESTABLISHMENT,LD - East Locality - Cost of Care,LD - East Cambs - Care,Residential Care
Cambridgeshire County Council,06-Sep-21,51301637909,"-2,415.15",THE MANOR CHESHIRE HOME,CARE ESTABLISHMENT,LD - East Locality - Cost of Care,LD - East Cambs - Care,Residential Care
Cambridgeshire County Council,06-Sep-21,51301637909,"-2,415.15",THE MANOR CHESHIRE HOME,CARE ESTABLISHMENT,LD - East Locality - Cost of Care,LD - East Cambs - Care,Residential Care
Cambridgeshire County Council,06-Sep-21,51301637909,"-2,415.15",THE MANOR CHESHIRE HOME,CARE ESTABLISHMENT,LD - East Locality - Cost of Care,LD - East Cambs - Care,Residential Care
Cambridgeshire County Council,06-Sep-21,51301637909,"-2,415.15",THE MANOR CHESHIRE HOME,CARE ESTABLISHMENT,LD - East Locality - Cost of Care,LD - East Cambs - Care,Residential Care
Cambridgeshire County Council,06-Sep-21,51301637909,"-2,415.15",THE MANOR CHESHIRE HOME,CARE ESTABLISHMENT,LD - East Locality - Cost of Care,LD - East Cambs - Care,Residential Care
Cambridgeshire County Council,17-Sep-21,51301642764,"-2,402.08",AFFINITY TRUST,CARE ESTABLISHMENT,LD - Fenland Locality - Cost of Care,LD - Fenland  - Care,Supported Living
Cambridgeshire County Council,17-Sep-21,51301642764,"-2,402.08",AFFINITY TRUST,CARE ESTABLISHMENT,LD - Fenland Locality - Cost of Care,LD - Fenland  - Care,Supported Living
Cambridgeshire County Council,17-Sep-21,51301642764,"-2,402.08",AFFINITY TRUST,CARE ESTABLISHMENT,LD - Fenland Locality - Cost of Care,LD - Fenland  - Care,Supported Living
Cambridgeshire County Council,17-Sep-21,51301642764,"-2,402.08",AFFINITY TRUST,CARE ESTABLISHMENT,LD - Fenland Locality - Cost of Care,LD - Fenland  - Care,Supported Living
Cambridgeshire County Council,17-Sep-21,51301642764,"-2,402.08",AFFINITY TRUST,CARE ESTABLISHMENT,LD - Fenland Locality - Cost of Care,LD - Fenland  - Care,Supported Living
Cambridgeshire County Council,17-Sep-21,51301642749,"-2,402.08",AFFINITY TRUST,CARE ESTABLISHMENT,LD - Hunts Locality - Cost of Care,LD - Huntingdonshire - Care,Supported Living
Cambridgeshire County Council,17-Sep-21,51301642749,"-2,402.08",AFFINITY TRUST,CARE ESTABLISHMENT,LD - Hunts Locality - Cost of Care,LD - Huntingdonshire - Care,Supported Living
Cambridgeshire County Council,17-Sep-21,51301642749,"-2,402.08",AFFINITY TRUST,CARE ESTABLISHMENT,LD - Hunts Locality - Cost of Care,LD - Huntingdonshire - Care,Supported Living
Cambridgeshire County Council,17-Sep-21,51301642749,"-2,402.08",AFFINITY TRUST,CARE ESTABLISHMENT,LD - Hunts Locality - Cost of Care,LD - Huntingdonshire - Care,Supported Living
Cambridgeshire County Council,17-Sep-21,51301642749,"-2,402.08",AFFINITY TRUST,CARE ESTABLISHMENT,LD - Hunts Locality - Cost of Care,LD - Huntingdonshire - Care,Supported Living
Cambridgeshire County Council,17-Sep-21,51301642749,"-2,402.08",AFFINITY TRUST,CARE ESTABLISHMENT,LD - Hunts Locality - Cost of Care,LD - Huntingdonshire - Care,Supported Living
Cambridgeshire County Council,17-Sep-21,51301642749,"-2,402.08",AFFINITY TRUST,CARE ESTABLISHMENT,LD - Hunts Locality - Cost of Care,LD - Huntingdonshire - Care,Supported Living
Cambridgeshire County Council,17-Sep-21,51301642749,"-2,402.08",AFFINITY TRUST,CARE ESTABLISHMENT,LD - Hunts Locality - Cost of Care,LD - Huntingdonshire - Care,Supported Living
Cambridgeshire County Council,17-Sep-21,51301642749,"-2,402.08",AFFINITY TRUST,CARE ESTABLISHMENT,LD - Hunts Locality - Cost of Care,LD - Huntingdonshire - Care,Supported Living
Cambridgeshire County Council,17-Sep-21,51301642749,"-2,402.08",AFFINITY TRUST,CARE ESTABLISHMENT,LD - Hunts Locality - Cost of Care,LD - Huntingdonshire - Care,Supported Living
Cambridgeshire County Council,17-Sep-21,51301642749,"-2,402.08",AFFINITY TRUST,CARE ESTABLISHMENT,LD - Hunts Locality - Cost of Care,LD - Huntingdonshire - Care,Supported Living
Cambridgeshire County Council,17-Sep-21,51301642749,"-2,402.08",AFFINITY TRUST,CARE ESTABLISHMENT,LD - Hunts Locality - Cost of Care,LD - Huntingdonshire - Care,Supported Living
Cambridgeshire County Council,17-Sep-21,51301642749,"-2,402.08",AFFINITY TRUST,CARE ESTABLISHMENT,LD - Hunts Locality - Cost of Care,LD - Huntingdonshire - Care,Supported Living
Cambridgeshire County Council,17-Sep-21,51301642749,"-2,402.08",AFFINITY TRUST,CARE ESTABLISHMENT,LD - Hunts Locality - Cost of Care,LD - Huntingdonshire - Care,Supported Living
Cambridgeshire County Council,17-Sep-21,51301642764,"-2,402.08",AFFINITY TRUST,CARE ESTABLISHMENT,LD - Fenland Locality - Cost of Care,LD - Fenland  - Care,Supported Living
Cambridgeshire County Council,17-Sep-21,51301642764,"-2,402.08",AFFINITY TRUST,CARE ESTABLISHMENT,LD - Fenland Locality - Cost of Care,LD - Fenland  - Care,Supported Living
Cambridgeshire County Council,17-Sep-21,51301642764,"-2,402.08",AFFINITY TRUST,CARE ESTABLISHMENT,LD - Fenland Locality - Cost of Care,LD - Fenland  - Care,Supported Living
Cambridgeshire County Council,17-Sep-21,51301642764,"-2,402.08",AFFINITY TRUST,CARE ESTABLISHMENT,LD - Fenland Locality - Cost of Care,LD - Fenland  - Care,Supported Living
Cambridgeshire County Council,17-Sep-21,51301642764,"-2,402.08",AFFINITY TRUST,CARE ESTABLISHMENT,LD - Fenland Locality - Cost of Care,LD - Fenland  - Care,Supported Living
Cambridgeshire County Council,17-Sep-21,51301642764,"-2,402.08",AFFINITY TRUST,CARE ESTABLISHMENT,LD - Fenland Locality - Cost of Care,LD - Fenland  - Care,Supported Living
Cambridgeshire County Council,17-Sep-21,51301642764,"-2,402.08",AFFINITY TRUST,CARE ESTABLISHMENT,LD - Fenland Locality - Cost of Care,LD - Fenland  - Care,Supported Living
Cambridgeshire County Council,17-Sep-21,51301642764,"-2,402.08",AFFINITY TRUST,CARE ESTABLISHMENT,LD - Fenland Locality - Cost of Care,LD - Fenland  - Care,Supported Living
Cambridgeshire County Council,17-Sep-21,51301642764,"-2,402.08",AFFINITY TRUST,CARE ESTABLISHMENT,LD - Fenland Locality - Cost of Care,LD - Fenland  - Care,Supported Living
Cambridgeshire County Council,17-Sep-21,51301642764,"-2,402.08",AFFINITY TRUST,CARE ESTABLISHMENT,LD - Fenland Locality - Cost of Care,LD - Fenland  - Care,Supported Living
Cambridgeshire County Council,17-Sep-21,51301642764,"-2,402.08",AFFINITY TRUST,CARE ESTABLISHMENT,LD - Fenland Locality - Cost of Care,LD - Fenland  - Care,Supported Living
Cambridgeshire County Council,17-Sep-21,51301642764,"-2,402.08",AFFINITY TRUST,CARE ESTABLISHMENT,LD - Fenland Locality - Cost of Care,LD - Fenland  - Care,Supported Living
Cambridgeshire County Council,17-Sep-21,51301642764,"-2,402.08",AFFINITY TRUST,CARE ESTABLISHMENT,LD - Fenland Locality - Cost of Care,LD - Fenland  - Care,Supported Living
Cambridgeshire County Council,17-Sep-21,51301642764,"-2,402.08",AFFINITY TRUST,CARE ESTABLISHMENT,LD - Fenland Locality - Cost of Care,LD - Fenland  - Care,Supported Living
Cambridgeshire County Council,17-Sep-21,51301642764,"-2,402.08",AFFINITY TRUST,CARE ESTABLISHMENT,LD - Fenland Locality - Cost of Care,LD - Fenland  - Care,Supported Living
Cambridgeshire County Council,17-Sep-21,51301642764,"-2,402.08",AFFINITY TRUST,CARE ESTABLISHMENT,LD - Fenland Locality - Cost of Care,LD - Fenland  - Care,Supported Living
Cambridgeshire County Council,17-Sep-21,51301642764,"-2,402.08",AFFINITY TRUST,CARE ESTABLISHMENT,LD - Fenland Locality - Cost of Care,LD - Fenland  - Care,Supported Living
Cambridgeshire County Council,17-Sep-21,51301642764,"-2,402.08",AFFINITY TRUST,CARE ESTABLISHMENT,LD - Fenland Locality - Cost of Care,LD - Fenland  - Care,Supported Living
Cambridgeshire County Council,17-Sep-21,51301642764,"-2,402.08",AFFINITY TRUST,CARE ESTABLISHMENT,LD - Fenland Locality - Cost of Care,LD - Fenland  - Care,Supported Living
Cambridgeshire County Council,17-Sep-21,51301642764,"-2,402.08",AFFINITY TRUST,CARE ESTABLISHMENT,LD - Fenland Locality - Cost of Care,LD - Fenland  - Care,Supported Living
Cambridgeshire County Council,17-Sep-21,51301642764,"-2,402.08",AFFINITY TRUST,CARE ESTABLISHMENT,LD - Fenland Locality - Cost of Care,LD - Fenland  - Care,Supported Living
Cambridgeshire County Council,17-Sep-21,51301642764,"-2,402.08",AFFINITY TRUST,CARE ESTABLISHMENT,LD - Fenland Locality - Cost of Care,LD - Fenland  - Care,Supported Living
Cambridgeshire County Council,17-Sep-21,51301642764,"-2,402.08",AFFINITY TRUST,CARE ESTABLISHMENT,LD - Fenland Locality - Cost of Care,LD - Fenland  - Care,Supported Living
Cambridgeshire County Council,17-Sep-21,51301642764,"-2,402.08",AFFINITY TRUST,CARE ESTABLISHMENT,LD - Fenland Locality - Cost of Care,LD - Fenland  - Care,Supported Living
Cambridgeshire County Council,17-Sep-21,51301642764,"-2,402.08",AFFINITY TRUST,CARE ESTABLISHMENT,LD - Fenland Locality - Cost of Care,LD - Fenland  - Care,Supported Living
Cambridgeshire County Council,17-Sep-21,51301642764,"-2,402.08",AFFINITY TRUST,CARE ESTABLISHMENT,LD - Fenland Locality - Cost of Care,LD - Fenland  - Care,Supported Living
Cambridgeshire County Council,17-Sep-21,51301642764,"-2,402.08",AFFINITY TRUST,CARE ESTABLISHMENT,LD - Fenland Locality - Cost of Care,LD - Fenland  - Care,Supported Living
Cambridgeshire County Council,17-Sep-21,51301642764,"-2,402.08",AFFINITY TRUST,CARE ESTABLISHMENT,LD - Fenland Locality - Cost of Care,LD - Fenland  - Care,Supported Living
Cambridgeshire County Council,17-Sep-21,51301642764,"-2,402.08",AFFINITY TRUST,CARE ESTABLISHMENT,LD - Fenland Locality - Cost of Care,LD - Fenland  - Care,Supported Living
Cambridgeshire County Council,17-Sep-21,51301642764,"-2,402.08",AFFINITY TRUST,CARE ESTABLISHMENT,LD - Fenland Locality - Cost of Care,LD - Fenland  - Care,Supported Living
Cambridgeshire County Council,17-Sep-21,51301642764,"-2,402.08",AFFINITY TRUST,CARE ESTABLISHMENT,LD - Fenland Locality - Cost of Care,LD - Fenland  - Care,Supported Living
Cambridgeshire County Council,17-Sep-21,51301642764,"-2,402.08",AFFINITY TRUST,CARE ESTABLISHMENT,LD - Fenland Locality - Cost of Care,LD - Fenland  - Care,Supported Living
Cambridgeshire County Council,17-Sep-21,51301642764,"-2,402.08",AFFINITY TRUST,CARE ESTABLISHMENT,LD - Fenland Locality - Cost of Care,LD - Fenland  - Care,Supported Living
Cambridgeshire County Council,17-Sep-21,51301642764,"-2,402.08",AFFINITY TRUST,CARE ESTABLISHMENT,LD - Fenland Locality - Cost of Care,LD - Fenland  - Care,Supported Living
Cambridgeshire County Council,17-Sep-21,51301642764,"-2,402.08",AFFINITY TRUST,CARE ESTABLISHMENT,LD - Fenland Locality - Cost of Care,LD - Fenland  - Care,Supported Living
Cambridgeshire County Council,17-Sep-21,51301642764,"-2,402.08",AFFINITY TRUST,CARE ESTABLISHMENT,LD - Fenland Locality - Cost of Care,LD - Fenland  - Care,Supported Living
Cambridgeshire County Council,17-Sep-21,51301642764,"-2,402.08",AFFINITY TRUST,CARE ESTABLISHMENT,LD - Fenland Locality - Cost of Care,LD - Fenland  - Care,Supported Living
Cambridgeshire County Council,17-Sep-21,51301642764,"-2,402.08",AFFINITY TRUST,CARE ESTABLISHMENT,LD - Fenland Locality - Cost of Care,LD - Fenland  - Care,Supported Living
Cambridgeshire County Council,17-Sep-21,51301642764,"-2,402.08",AFFINITY TRUST,CARE ESTABLISHMENT,LD - Fenland Locality - Cost of Care,LD - Fenland  - Care,Supported Living
Cambridgeshire County Council,17-Sep-21,51301642764,"-2,402.08",AFFINITY TRUST,CARE ESTABLISHMENT,LD - Fenland Locality - Cost of Care,LD - Fenland  - Care,Supported Living
Cambridgeshire County Council,17-Sep-21,51301642764,"-2,402.08",AFFINITY TRUST,CARE ESTABLISHMENT,LD - Fenland Locality - Cost of Care,LD - Fenland  - Care,Supported Living
Cambridgeshire County Council,17-Sep-21,51301642764,"-2,402.08",AFFINITY TRUST,CARE ESTABLISHMENT,LD - Fenland Locality - Cost of Care,LD - Fenland  - Care,Supported Living
Cambridgeshire County Council,21-Sep-21,51301643260,"-2,397.36",HUNTERS HEALTHCARE (HUNTERS DOWN),CARE ESTABLISHMENT,OP - Hunts Blocks,Hunts - Long term blocks,Nursing Care
Cambridgeshire County Council,06-Sep-21,51301638520,"-2,376.00",PC HOMES,CARE ESTABLISHMENT,Unaccompanied Asylum Seeking Children,Unaccompanied Asylum Seeking Children <18,Asylum Seekers
Cambridgeshire County Council,08-Sep-21,51301639662,"-2,361.43",KEY2 FUTURES LTD,TRADE SUPPLIER,Unaccompanied Asylum Seeking Children,Unaccompanied Asylum Seeking Children >18 Leaving Care,Living Spport Grants - Financial Assistance 18+
Cambridgeshire County Council,06-Sep-21,51301633955,"-2,357.14",ARIA COURT,CARE ESTABLISHMENT,OP - Fenland Locality - Cost of Care,Older People - Fenland - Care,Residential Care
Cambridgeshire County Council,17-Sep-21,51301642755,"-2,299.70",AFFINITY TRUST,CARE ESTABLISHMENT,LD - Fenland Locality - Cost of Care,LD - Fenland  - Care,Supported Living
Cambridgeshire County Council,17-Sep-21,51301642816,"-2,271.47",AFFINITY TRUST,CARE ESTABLISHMENT,LD - Fenland Locality - Cost of Care,LD - Fenland  - Care,Domiciliary Care
Cambridgeshire County Council,17-Sep-21,51301642816,"-2,271.47",AFFINITY TRUST,CARE ESTABLISHMENT,LD - Fenland Locality - Cost of Care,LD - Fenland  - Care,Domiciliary Care
Cambridgeshire County Council,17-Sep-21,51301642816,"-2,271.47",AFFINITY TRUST,CARE ESTABLISHMENT,LD - Fenland Locality - Cost of Care,LD - Fenland  - Care,Domiciliary Care
Cambridgeshire County Council,17-Sep-21,51301642816,"-2,271.47",AFFINITY TRUST,CARE ESTABLISHMENT,LD - Fenland Locality - Cost of Care,LD - Fenland  - Care,Domiciliary Care
Cambridgeshire County Council,17-Sep-21,51301642816,"-2,271.47",AFFINITY TRUST,CARE ESTABLISHMENT,LD - Fenland Locality - Cost of Care,LD - Fenland  - Care,Domiciliary Care
Cambridgeshire County Council,17-Sep-21,51301642816,"-2,271.47",AFFINITY TRUST,CARE ESTABLISHMENT,LD - Fenland Locality - Cost of Care,LD - Fenland  - Care,Domiciliary Care
Cambridgeshire County Council,17-Sep-21,51301642816,"-2,271.47",AFFINITY TRUST,CARE ESTABLISHMENT,LD - Fenland Locality - Cost of Care,LD - Fenland  - Care,Domiciliary Care
Cambridgeshire County Council,17-Sep-21,51301642816,"-2,271.47",AFFINITY TRUST,CARE ESTABLISHMENT,LD - Fenland Locality - Cost of Care,LD - Fenland  - Care,Domiciliary Care
Cambridgeshire County Council,17-Sep-21,51301642816,"-2,271.47",AFFINITY TRUST,CARE ESTABLISHMENT,LD - Fenland Locality - Cost of Care,LD - Fenland  - Care,Domiciliary Care
Cambridgeshire County Council,17-Sep-21,51301642816,"-2,271.47",AFFINITY TRUST,CARE ESTABLISHMENT,LD - Fenland Locality - Cost of Care,LD - Fenland  - Care,Domiciliary Care
Cambridgeshire County Council,17-Sep-21,51301642816,"-2,271.47",AFFINITY TRUST,CARE ESTABLISHMENT,LD - Fenland Locality - Cost of Care,LD - Fenland  - Care,Domiciliary Care
Cambridgeshire County Council,17-Sep-21,51301642816,"-2,271.47",AFFINITY TRUST,CARE ESTABLISHMENT,LD - Fenland Locality - Cost of Care,LD - Fenland  - Care,Domiciliary Care
Cambridgeshire County Council,17-Sep-21,51301642816,"-2,271.47",AFFINITY TRUST,CARE ESTABLISHMENT,LD - Fenland Locality - Cost of Care,LD - Fenland  - Care,Domiciliary Care
Cambridgeshire County Council,17-Sep-21,51301642816,"-2,271.47",AFFINITY TRUST,CARE ESTABLISHMENT,LD - Fenland Locality - Cost of Care,LD - Fenland  - Care,Domiciliary Care
Cambridgeshire County Council,17-Sep-21,51301642816,"-2,271.47",AFFINITY TRUST,CARE ESTABLISHMENT,LD - Fenland Locality - Cost of Care,LD - Fenland  - Care,Domiciliary Care
Cambridgeshire County Council,17-Sep-21,51301642816,"-2,271.47",AFFINITY TRUST,CARE ESTABLISHMENT,LD - Fenland Locality - Cost of Care,LD - Fenland  - Care,Domiciliary Care
Cambridgeshire County Council,17-Sep-21,51301642816,"-2,271.47",AFFINITY TRUST,CARE ESTABLISHMENT,LD - Fenland Locality - Cost of Care,LD - Fenland  - Care,Domiciliary Care
Cambridgeshire County Council,17-Sep-21,51301642816,"-2,271.47",AFFINITY TRUST,CARE ESTABLISHMENT,LD - Fenland Locality - Cost of Care,LD - Fenland  - Care,Domiciliary Care
Cambridgeshire County Council,17-Sep-21,51301642816,"-2,271.47",AFFINITY TRUST,CARE ESTABLISHMENT,LD - Fenland Locality - Cost of Care,LD - Fenland  - Care,Domiciliary Care
Cambridgeshire County Council,17-Sep-21,51301642816,"-2,271.47",AFFINITY TRUST,CARE ESTABLISHMENT,LD - Fenland Locality - Cost of Care,LD - Fenland  - Care,Domiciliary Care
Cambridgeshire County Council,17-Sep-21,51301642816,"-2,271.47",AFFINITY TRUST,CARE ESTABLISHMENT,LD - Fenland Locality - Cost of Care,LD - Fenland  - Care,Domiciliary Care
Cambridgeshire County Council,17-Sep-21,51301642816,"-2,271.47",AFFINITY TRUST,CARE ESTABLISHMENT,LD - Fenland Locality - Cost of Care,LD - Fenland  - Care,Domiciliary Care
Cambridgeshire County Council,17-Sep-21,51301642816,"-2,271.47",AFFINITY TRUST,CARE ESTABLISHMENT,LD - Fenland Locality - Cost of Care,LD - Fenland  - Care,Domiciliary Care
Cambridgeshire County Council,17-Sep-21,51301642816,"-2,271.47",AFFINITY TRUST,CARE ESTABLISHMENT,LD - Fenland Locality - Cost of Care,LD - Fenland  - Care,Domiciliary Care
Cambridgeshire County Council,17-Sep-21,51301642816,"-2,271.47",AFFINITY TRUST,CARE ESTABLISHMENT,LD - Fenland Locality - Cost of Care,LD - Fenland  - Care,Domiciliary Care
Cambridgeshire County Council,17-Sep-21,51301642816,"-2,271.47",AFFINITY TRUST,CARE ESTABLISHMENT,LD - Fenland Locality - Cost of Care,LD - Fenland  - Care,Domiciliary Care
Cambridgeshire County Council,17-Sep-21,51301642816,"-2,271.47",AFFINITY TRUST,CARE ESTABLISHMENT,LD - Fenland Locality - Cost of Care,LD - Fenland  - Care,Domiciliary Care
Cambridgeshire County Council,17-Sep-21,51301642816,"-2,271.47",AFFINITY TRUST,CARE ESTABLISHMENT,LD - Fenland Locality - Cost of Care,LD - Fenland  - Care,Domiciliary Care
Cambridgeshire County Council,17-Sep-21,51301642816,"-2,271.47",AFFINITY TRUST,CARE ESTABLISHMENT,LD - Fenland Locality - Cost of Care,LD - Fenland  - Care,Domiciliary Care
Cambridgeshire County Council,17-Sep-21,51301642816,"-2,271.47",AFFINITY TRUST,CARE ESTABLISHMENT,LD - Fenland Locality - Cost of Care,LD - Fenland  - Care,Domiciliary Care
Cambridgeshire County Council,17-Sep-21,51301642816,"-2,271.47",AFFINITY TRUST,CARE ESTABLISHMENT,LD - Fenland Locality - Cost of Care,LD - Fenland  - Care,Domiciliary Care
Cambridgeshire County Council,17-Sep-21,51301642816,"-2,271.47",AFFINITY TRUST,CARE ESTABLISHMENT,LD - Fenland Locality - Cost of Care,LD - Fenland  - Care,Domiciliary Care
Cambridgeshire County Council,17-Sep-21,51301642816,"-2,271.47",AFFINITY TRUST,CARE ESTABLISHMENT,LD - Fenland Locality - Cost of Care,LD - Fenland  - Care,Domiciliary Care
Cambridgeshire County Council,17-Sep-21,51301642816,"-2,271.47",AFFINITY TRUST,CARE ESTABLISHMENT,LD - Fenland Locality - Cost of Care,LD - Fenland  - Care,Domiciliary Care
Cambridgeshire County Council,17-Sep-21,51301642816,"-2,271.47",AFFINITY TRUST,CARE ESTABLISHMENT,LD - Fenland Locality - Cost of Care,LD - Fenland  - Care,Domiciliary Care
Cambridgeshire County Council,17-Sep-21,51301642816,"-2,271.47",AFFINITY TRUST,CARE ESTABLISHMENT,LD - Fenland Locality - Cost of Care,LD - Fenland  - Care,Domiciliary Care
Cambridgeshire County Council,17-Sep-21,51301642816,"-2,271.47",AFFINITY TRUST,CARE ESTABLISHMENT,LD - Fenland Locality - Cost of Care,LD - Fenland  - Care,Domiciliary Care
Cambridgeshire County Council,17-Sep-21,51301642816,"-2,271.47",AFFINITY TRUST,CARE ESTABLISHMENT,LD - Fenland Locality - Cost of Care,LD - Fenland  - Care,Domiciliary Care
Cambridgeshire County Council,17-Sep-21,51301642816,"-2,271.47",AFFINITY TRUST,CARE ESTABLISHMENT,LD - Fenland Locality - Cost of Care,LD - Fenland  - Care,Domiciliary Care
Cambridgeshire County Council,17-Sep-21,51301642816,"-2,271.47",AFFINITY TRUST,CARE ESTABLISHMENT,LD - Fenland Locality - Cost of Care,LD - Fenland  - Care,Domiciliary Care
Cambridgeshire County Council,17-Sep-21,51301642816,"-2,271.47",AFFINITY TRUST,CARE ESTABLISHMENT,LD - Fenland Locality - Cost of Care,LD - Fenland  - Care,Domiciliary Care
Cambridgeshire County Council,17-Sep-21,51301642816,"-2,271.47",AFFINITY TRUST,CARE ESTABLISHMENT,LD - Fenland Locality - Cost of Care,LD - Fenland  - Care,Domiciliary Care
Cambridgeshire County Council,17-Sep-21,51301642816,"-2,271.47",AFFINITY TRUST,CARE ESTABLISHMENT,LD - Fenland Locality - Cost of Care,LD - Fenland  - Care,Domiciliary Care
Cambridgeshire County Council,17-Sep-21,51301642816,"-2,271.47",AFFINITY TRUST,CARE ESTABLISHMENT,LD - Fenland Locality - Cost of Care,LD - Fenland  - Care,Domiciliary Care
Cambridgeshire County Council,17-Sep-21,51301642816,"-2,271.47",AFFINITY TRUST,CARE ESTABLISHMENT,LD - Fenland Locality - Cost of Care,LD - Fenland  - Care,Domiciliary Care
Cambridgeshire County Council,17-Sep-21,51301642816,"-2,271.47",AFFINITY TRUST,CARE ESTABLISHMENT,LD - Fenland Locality - Cost of Care,LD - Fenland  - Care,Domiciliary Care
Cambridgeshire County Council,17-Sep-21,51301642816,"-2,271.47",AFFINITY TRUST,CARE ESTABLISHMENT,LD - Fenland Locality - Cost of Care,LD - Fenland  - Care,Domiciliary Care
Cambridgeshire County Council,17-Sep-21,51301642816,"-2,271.47",AFFINITY TRUST,CARE ESTABLISHMENT,LD - Fenland Locality - Cost of Care,LD - Fenland  - Care,Domiciliary Care
Cambridgeshire County Council,17-Sep-21,51301642816,"-2,271.47",AFFINITY TRUST,CARE ESTABLISHMENT,LD - Fenland Locality - Cost of Care,LD - Fenland  - Care,Domiciliary Care
Cambridgeshire County Council,17-Sep-21,51301642816,"-2,271.47",AFFINITY TRUST,CARE ESTABLISHMENT,LD - Fenland Locality - Cost of Care,LD - Fenland  - Care,Domiciliary Care
Cambridgeshire County Council,17-Sep-21,51301642816,"-2,271.47",AFFINITY TRUST,CARE ESTABLISHMENT,LD - Fenland Locality - Cost of Care,LD - Fenland  - Care,Domiciliary Care
Cambridgeshire County Council,17-Sep-21,51301642816,"-2,271.47",AFFINITY TRUST,CARE ESTABLISHMENT,LD - Fenland Locality - Cost of Care,LD - Fenland  - Care,Domiciliary Care
Cambridgeshire County Council,17-Sep-21,51301642816,"-2,271.47",AFFINITY TRUST,CARE ESTABLISHMENT,LD - Fenland Locality - Cost of Care,LD - Fenland  - Care,Domiciliary Care
Cambridgeshire County Council,17-Sep-21,51301642816,"-2,271.47",AFFINITY TRUST,CARE ESTABLISHMENT,LD - Fenland Locality - Cost of Care,LD - Fenland  - Care,Domiciliary Care
Cambridgeshire County Council,17-Sep-21,51301642816,"-2,271.47",AFFINITY TRUST,CARE ESTABLISHMENT,LD - Fenland Locality - Cost of Care,LD - Fenland  - Care,Domiciliary Care
Cambridgeshire County Council,17-Sep-21,51301642816,"-2,271.47",AFFINITY TRUST,CARE ESTABLISHMENT,LD - Fenland Locality - Cost of Care,LD - Fenland  - Care,Domiciliary Care
Cambridgeshire County Council,17-Sep-21,51301642816,"-2,271.47",AFFINITY TRUST,CARE ESTABLISHMENT,LD - Fenland Locality - Cost of Care,LD - Fenland  - Care,Domiciliary Care
Cambridgeshire County Council,17-Sep-21,51301642816,"-2,271.47",AFFINITY TRUST,CARE ESTABLISHMENT,LD - Fenland Locality - Cost of Care,LD - Fenland  - Care,Domiciliary Care
Cambridgeshire County Council,17-Sep-21,51301642816,"-2,271.47",AFFINITY TRUST,CARE ESTABLISHMENT,LD - Fenland Locality - Cost of Care,LD - Fenland  - Care,Domiciliary Care
Cambridgeshire County Council,17-Sep-21,51301642816,"-2,271.47",AFFINITY TRUST,CARE ESTABLISHMENT,LD - Fenland Locality - Cost of Care,LD - Fenland  - Care,Domiciliary Care
Cambridgeshire County Council,17-Sep-21,51301642816,"-2,271.47",AFFINITY TRUST,CARE ESTABLISHMENT,LD - Fenland Locality - Cost of Care,LD - Fenland  - Care,Domiciliary Care
Cambridgeshire County Council,17-Sep-21,51301642816,"-2,271.47",AFFINITY TRUST,CARE ESTABLISHMENT,LD - Fenland Locality - Cost of Care,LD - Fenland  - Care,Domiciliary Care
Cambridgeshire County Council,08-Sep-21,51301611052,"-2,214.29",UK Care Partnership Ltd,CARE ESTABLISHMENT,Unaccompanied Asylum Seeking Children,Unaccompanied Asylum Seeking Children >18 Leaving Care,Living Spport Grants - Financial Assistance 18+
Cambridgeshire County Council,07-Sep-21,51301639060,"-2,164.62",REED SPECIALIST RECRUITMENT LTD,TRADE SUPPLIER,Community Support Service,Community Support Service ECF,Grants to Voluntary Bodies
Cambridgeshire County Council,17-Sep-21,51301642755,"-2,162.61",AFFINITY TRUST,CARE ESTABLISHMENT,LD - Fenland Locality - Cost of Care,LD - Fenland  - Care,Supported Living
Cambridgeshire County Council,17-Sep-21,51301642755,"-2,162.61",AFFINITY TRUST,CARE ESTABLISHMENT,LD - Fenland Locality - Cost of Care,LD - Fenland  - Care,Supported Living
Cambridgeshire County Council,17-Sep-21,51301642755,"-2,162.61",AFFINITY TRUST,CARE ESTABLISHMENT,LD - Fenland Locality - Cost of Care,LD - Fenland  - Care,Supported Living
Cambridgeshire County Council,17-Sep-21,51301642755,"-2,162.61",AFFINITY TRUST,CARE ESTABLISHMENT,LD - Fenland Locality - Cost of Care,LD - Fenland  - Care,Supported Living
Cambridgeshire County Council,17-Sep-21,51301642755,"-2,162.61",AFFINITY TRUST,CARE ESTABLISHMENT,LD - Fenland Locality - Cost of Care,LD - Fenland  - Care,Supported Living
Cambridgeshire County Council,17-Sep-21,51301642755,"-2,162.61",AFFINITY TRUST,CARE ESTABLISHMENT,LD - Fenland Locality - Cost of Care,LD - Fenland  - Care,Supported Living
Cambridgeshire County Council,17-Sep-21,51301642755,"-2,162.61",AFFINITY TRUST,CARE ESTABLISHMENT,LD - Fenland Locality - Cost of Care,LD - Fenland  - Care,Supported Living
Cambridgeshire County Council,17-Sep-21,51301642755,"-2,162.61",AFFINITY TRUST,CARE ESTABLISHMENT,LD - Fenland Locality - Cost of Care,LD - Fenland  - Care,Supported Living
Cambridgeshire County Council,17-Sep-21,51301642755,"-2,162.61",AFFINITY TRUST,CARE ESTABLISHMENT,LD - Fenland Locality - Cost of Care,LD - Fenland  - Care,Supported Living
Cambridgeshire County Council,17-Sep-21,51301642755,"-2,162.61",AFFINITY TRUST,CARE ESTABLISHMENT,LD - Fenland Locality - Cost of Care,LD - Fenland  - Care,Supported Living
Cambridgeshire County Council,17-Sep-21,51301642755,"-2,162.61",AFFINITY TRUST,CARE ESTABLISHMENT,LD - Fenland Locality - Cost of Care,LD - Fenland  - Care,Supported Living
Cambridgeshire County Council,17-Sep-21,51301642755,"-2,162.61",AFFINITY TRUST,CARE ESTABLISHMENT,LD - Fenland Locality - Cost of Care,LD - Fenland  - Care,Supported Living
Cambridgeshire County Council,17-Sep-21,51301642755,"-2,162.61",AFFINITY TRUST,CARE ESTABLISHMENT,LD - Fenland Locality - Cost of Care,LD - Fenland  - Care,Supported Living
Cambridgeshire County Council,17-Sep-21,51301642755,"-2,162.61",AFFINITY TRUST,CARE ESTABLISHMENT,LD - Fenland Locality - Cost of Care,LD - Fenland  - Care,Supported Living
Cambridgeshire County Council,17-Sep-21,51301642755,"-2,162.61",AFFINITY TRUST,CARE ESTABLISHMENT,LD - Fenland Locality - Cost of Care,LD - Fenland  - Care,Supported Living
Cambridgeshire County Council,17-Sep-21,51301642755,"-2,162.61",AFFINITY TRUST,CARE ESTABLISHMENT,LD - Fenland Locality - Cost of Care,LD - Fenland  - Care,Supported Living
Cambridgeshire County Council,17-Sep-21,51301642755,"-2,162.61",AFFINITY TRUST,CARE ESTABLISHMENT,LD - Fenland Locality - Cost of Care,LD - Fenland  - Care,Supported Living
Cambridgeshire County Council,17-Sep-21,51301642755,"-2,162.61",AFFINITY TRUST,CARE ESTABLISHMENT,LD - Fenland Locality - Cost of Care,LD - Fenland  - Care,Supported Living
Cambridgeshire County Council,17-Sep-21,51301642755,"-2,162.61",AFFINITY TRUST,CARE ESTABLISHMENT,LD - Fenland Locality - Cost of Care,LD - Fenland  - Care,Supported Living
Cambridgeshire County Council,17-Sep-21,51301642755,"-2,162.61",AFFINITY TRUST,CARE ESTABLISHMENT,LD - Fenland Locality - Cost of Care,LD - Fenland  - Care,Supported Living
Cambridgeshire County Council,17-Sep-21,51301642755,"-2,162.61",AFFINITY TRUST,CARE ESTABLISHMENT,LD - Fenland Locality - Cost of Care,LD - Fenland  - Care,Supported Living
Cambridgeshire County Council,17-Sep-21,51301642755,"-2,162.61",AFFINITY TRUST,CARE ESTABLISHMENT,LD - Fenland Locality - Cost of Care,LD - Fenland  - Care,Supported Living
Cambridgeshire County Council,17-Sep-21,51301642755,"-2,162.61",AFFINITY TRUST,CARE ESTABLISHMENT,LD - Fenland Locality - Cost of Care,LD - Fenland  - Care,Supported Living
Cambridgeshire County Council,17-Sep-21,51301642755,"-2,162.61",AFFINITY TRUST,CARE ESTABLISHMENT,LD - Fenland Locality - Cost of Care,LD - Fenland  - Care,Supported Living
Cambridgeshire County Council,17-Sep-21,51301642755,"-2,157.26",AFFINITY TRUST,CARE ESTABLISHMENT,LD - Fenland Locality - Cost of Care,LD - Fenland  - Care,Supported Living
Cambridgeshire County Council,17-Sep-21,51301642755,"-2,157.26",AFFINITY TRUST,CARE ESTABLISHMENT,LD - Fenland Locality - Cost of Care,LD - Fenland  - Care,Supported Living
Cambridgeshire County Council,17-Sep-21,51301642755,"-2,157.26",AFFINITY TRUST,CARE ESTABLISHMENT,LD - Fenland Locality - Cost of Care,LD - Fenland  - Care,Supported Living
Cambridgeshire County Council,17-Sep-21,51301642755,"-2,157.26",AFFINITY TRUST,CARE ESTABLISHMENT,LD - Fenland Locality - Cost of Care,LD - Fenland  - Care,Supported Living
Cambridgeshire County Council,17-Sep-21,51301642755,"-2,157.26",AFFINITY TRUST,CARE ESTABLISHMENT,LD - Fenland Locality - Cost of Care,LD - Fenland  - Care,Supported Living
Cambridgeshire County Council,17-Sep-21,51301642755,"-2,157.26",AFFINITY TRUST,CARE ESTABLISHMENT,LD - Fenland Locality - Cost of Care,LD - Fenland  - Care,Supported Living
Cambridgeshire County Council,17-Sep-21,51301642755,"-2,157.26",AFFINITY TRUST,CARE ESTABLISHMENT,LD - Fenland Locality - Cost of Care,LD - Fenland  - Care,Supported Living
Cambridgeshire County Council,17-Sep-21,51301642755,"-2,157.26",AFFINITY TRUST,CARE ESTABLISHMENT,LD - Fenland Locality - Cost of Care,LD - Fenland  - Care,Supported Living
Cambridgeshire County Council,17-Sep-21,51301642755,"-2,157.26",AFFINITY TRUST,CARE ESTABLISHMENT,LD - Fenland Locality - Cost of Care,LD - Fenland  - Care,Supported Living
Cambridgeshire County Council,17-Sep-21,51301642755,"-2,157.26",AFFINITY TRUST,CARE ESTABLISHMENT,LD - Fenland Locality - Cost of Care,LD - Fenland  - Care,Supported Living
Cambridgeshire County Council,17-Sep-21,51301642755,"-2,157.26",AFFINITY TRUST,CARE ESTABLISHMENT,LD - Fenland Locality - Cost of Care,LD - Fenland  - Care,Supported Living
Cambridgeshire County Council,17-Sep-21,51301642755,"-2,157.26",AFFINITY TRUST,CARE ESTABLISHMENT,LD - Fenland Locality - Cost of Care,LD - Fenland  - Care,Supported Living
Cambridgeshire County Council,17-Sep-21,51301642755,"-2,157.26",AFFINITY TRUST,CARE ESTABLISHMENT,LD - Fenland Locality - Cost of Care,LD - Fenland  - Care,Supported Living
Cambridgeshire County Council,17-Sep-21,51301642755,"-2,157.26",AFFINITY TRUST,CARE ESTABLISHMENT,LD - Fenland Locality - Cost of Care,LD - Fenland  - Care,Supported Living
Cambridgeshire County Council,17-Sep-21,51301642755,"-2,157.26",AFFINITY TRUST,CARE ESTABLISHMENT,LD - Fenland Locality - Cost of Care,LD - Fenland  - Care,Supported Living
Cambridgeshire County Council,17-Sep-21,51301642755,"-2,157.26",AFFINITY TRUST,CARE ESTABLISHMENT,LD - Fenland Locality - Cost of Care,LD - Fenland  - Care,Supported Living
Cambridgeshire County Council,17-Sep-21,51301642755,"-2,157.26",AFFINITY TRUST,CARE ESTABLISHMENT,LD - Fenland Locality - Cost of Care,LD - Fenland  - Care,Supported Living
Cambridgeshire County Council,17-Sep-21,51301642755,"-2,157.26",AFFINITY TRUST,CARE ESTABLISHMENT,LD - Fenland Locality - Cost of Care,LD - Fenland  - Care,Supported Living
Cambridgeshire County Council,17-Sep-21,51301642755,"-2,157.26",AFFINITY TRUST,CARE ESTABLISHMENT,LD - Fenland Locality - Cost of Care,LD - Fenland  - Care,Supported Living
Cambridgeshire County Council,17-Sep-21,51301642755,"-2,157.26",AFFINITY TRUST,CARE ESTABLISHMENT,LD - Fenland Locality - Cost of Care,LD - Fenland  - Care,Supported Living
Cambridgeshire County Council,17-Sep-21,51301642755,"-2,157.26",AFFINITY TRUST,CARE ESTABLISHMENT,LD - Fenland Locality - Cost of Care,LD - Fenland  - Care,Supported Living
Cambridgeshire County Council,17-Sep-21,51301642755,"-2,157.26",AFFINITY TRUST,CARE ESTABLISHMENT,LD - Fenland Locality - Cost of Care,LD - Fenland  - Care,Supported Living
Cambridgeshire County Council,17-Sep-21,51301642755,"-2,157.26",AFFINITY TRUST,CARE ESTABLISHMENT,LD - Fenland Locality - Cost of Care,LD - Fenland  - Care,Supported Living
Cambridgeshire County Council,17-Sep-21,51301642755,"-2,157.26",AFFINITY TRUST,CARE ESTABLISHMENT,LD - Fenland Locality - Cost of Care,LD - Fenland  - Care,Supported Living
Cambridgeshire County Council,17-Sep-21,51301642755,"-2,157.26",AFFINITY TRUST,CARE ESTABLISHMENT,LD - Fenland Locality - Cost of Care,LD - Fenland  - Care,Supported Living
Cambridgeshire County Council,17-Sep-21,51301642755,"-2,157.26",AFFINITY TRUST,CARE ESTABLISHMENT,LD - Fenland Locality - Cost of Care,LD - Fenland  - Care,Supported Living
Cambridgeshire County Council,17-Sep-21,51301642755,"-2,157.26",AFFINITY TRUST,CARE ESTABLISHMENT,LD - Fenland Locality - Cost of Care,LD - Fenland  - Care,Supported Living
Cambridgeshire County Council,17-Sep-21,51301642755,"-2,157.26",AFFINITY TRUST,CARE ESTABLISHMENT,LD - Fenland Locality - Cost of Care,LD - Fenland  - Care,Supported Living
Cambridgeshire County Council,17-Sep-21,51301642755,"-2,157.26",AFFINITY TRUST,CARE ESTABLISHMENT,LD - Fenland Locality - Cost of Care,LD - Fenland  - Care,Supported Living
Cambridgeshire County Council,17-Sep-21,51301642755,"-2,157.26",AFFINITY TRUST,CARE ESTABLISHMENT,LD - Fenland Locality - Cost of Care,LD - Fenland  - Care,Supported Living
Cambridgeshire County Council,17-Sep-21,51301642755,"-2,157.26",AFFINITY TRUST,CARE ESTABLISHMENT,LD - Fenland Locality - Cost of Care,LD - Fenland  - Care,Supported Living
Cambridgeshire County Council,17-Sep-21,51301642755,"-2,157.26",AFFINITY TRUST,CARE ESTABLISHMENT,LD - Fenland Locality - Cost of Care,LD - Fenland  - Care,Supported Living
Cambridgeshire County Council,17-Sep-21,51301642755,"-2,157.26",AFFINITY TRUST,CARE ESTABLISHMENT,LD - Fenland Locality - Cost of Care,LD - Fenland  - Care,Supported Living
Cambridgeshire County Council,17-Sep-21,51301642755,"-2,157.26",AFFINITY TRUST,CARE ESTABLISHMENT,LD - Fenland Locality - Cost of Care,LD - Fenland  - Care,Supported Living
Cambridgeshire County Council,17-Sep-21,51301642755,"-2,157.26",AFFINITY TRUST,CARE ESTABLISHMENT,LD - Fenland Locality - Cost of Care,LD - Fenland  - Care,Supported Living
Cambridgeshire County Council,17-Sep-21,51301642755,"-2,157.26",AFFINITY TRUST,CARE ESTABLISHMENT,LD - Fenland Locality - Cost of Care,LD - Fenland  - Care,Supported Living
Cambridgeshire County Council,07-Sep-21,51301639055,"-2,051.36",REED SPECIALIST RECRUITMENT LTD,TRADE SUPPLIER,Community Support Service,Community Support Service ECF,Grants to Voluntary Bodies
Cambridgeshire County Council,06-Sep-21,51301635721,"-2,016.00",Everliving Services Ltd,CARE ESTABLISHMENT,AMH - Specialist & Primary,Mental Health - Specialist & Primary,Supported Living
Cambridgeshire County Council,06-Sep-21,51301635721,"-2,016.00",Everliving Services Ltd,CARE ESTABLISHMENT,AMH - Specialist & Primary,Mental Health - Specialist & Primary,Supported Living
Cambridgeshire County Council,06-Sep-21,51301635721,"-2,016.00",Everliving Services Ltd,CARE ESTABLISHMENT,AMH - Specialist & Primary,Mental Health - Specialist & Primary,Supported Living
Cambridgeshire County Council,06-Sep-21,51301635721,"-2,016.00",Everliving Services Ltd,CARE ESTABLISHMENT,AMH - Specialist & Primary,Mental Health - Specialist & Primary,Supported Living
Cambridgeshire County Council,21-Sep-21,51301643266,"-1,981.35",ETHELDRED HOUSE,CARE ESTABLISHMENT,OP - City & South Blocks,City and South - Long term blocks,Nursing Care
Cambridgeshire County Council,21-Sep-21,51301643266,"-1,981.35",ETHELDRED HOUSE,CARE ESTABLISHMENT,OP - City & South Blocks,City and South - Long term blocks,Nursing Care
Cambridgeshire County Council,21-Sep-21,51301643266,"-1,981.35",ETHELDRED HOUSE,CARE ESTABLISHMENT,OP - City & South Blocks,City and South - Long term blocks,Nursing Care
Cambridgeshire County Council,21-Sep-21,51301643266,"-1,981.35",ETHELDRED HOUSE,CARE ESTABLISHMENT,OP - City & South Blocks,City and South - Long term blocks,Nursing Care
Cambridgeshire County Council,21-Sep-21,51301643266,"-1,981.35",ETHELDRED HOUSE,CARE ESTABLISHMENT,OP - City & South Blocks,City and South - Long term blocks,Nursing Care
Cambridgeshire County Council,21-Sep-21,51301643266,"-1,981.35",ETHELDRED HOUSE,CARE ESTABLISHMENT,OP - City & South Blocks,City and South - Long term blocks,Nursing Care
Cambridgeshire County Council,15-Sep-21,51301642137,"-1,963.06",Redacted Personal Data,INDIVIDUAL,LD - Young Adults Team,LD - Young Adults - Care,Direct Payments
Cambridgeshire County Council,15-Sep-21,51301642137,"-1,963.06",Redacted Personal Data,INDIVIDUAL,LD - Young Adults Team,LD - Young Adults - Care,Direct Payments
Cambridgeshire County Council,15-Sep-21,51301642137,"-1,963.06",Redacted Personal Data,INDIVIDUAL,LD - Young Adults Team,LD - Young Adults - Care,Direct Payments
Cambridgeshire County Council,15-Sep-21,51301642137,"-1,963.06",Redacted Personal Data,INDIVIDUAL,LD - Young Adults Team,LD - Young Adults - Care,Direct Payments
Cambridgeshire County Council,15-Sep-21,51301642137,"-1,963.06",Redacted Personal Data,INDIVIDUAL,LD - Young Adults Team,LD - Young Adults - Care,Direct Payments
Cambridgeshire County Council,15-Sep-21,51301642137,"-1,963.06",Redacted Personal Data,INDIVIDUAL,LD - Young Adults Team,LD - Young Adults - Care,Direct Payments
Cambridgeshire County Council,15-Sep-21,51301642137,"-1,963.06",Redacted Personal Data,INDIVIDUAL,LD - Young Adults Team,LD - Young Adults - Care,Direct Payments
Cambridgeshire County Council,15-Sep-21,51301642137,"-1,963.06",Redacted Personal Data,INDIVIDUAL,LD - Young Adults Team,LD - Young Adults - Care,Direct Payments
Cambridgeshire County Council,15-Sep-21,51301642137,"-1,963.06",Redacted Personal Data,INDIVIDUAL,LD - Young Adults Team,LD - Young Adults - Care,Direct Payments
Cambridgeshire County Council,15-Sep-21,51301642137,"-1,963.06",Redacted Personal Data,INDIVIDUAL,LD - Young Adults Team,LD - Young Adults - Care,Direct Payments
Cambridgeshire County Council,15-Sep-21,51301642137,"-1,963.06",Redacted Personal Data,INDIVIDUAL,LD - Young Adults Team,LD - Young Adults - Care,Direct Payments
Cambridgeshire County Council,15-Sep-21,51301642137,"-1,963.06",Redacted Personal Data,INDIVIDUAL,LD - Young Adults Team,LD - Young Adults - Care,Direct Payments
Cambridgeshire County Council,15-Sep-21,51301642137,"-1,963.06",Redacted Personal Data,INDIVIDUAL,LD - Young Adults Team,LD - Young Adults - Care,Direct Payments
Cambridgeshire County Council,15-Sep-21,51301642137,"-1,963.06",Redacted Personal Data,INDIVIDUAL,LD - Young Adults Team,LD - Young Adults - Care,Direct Payments
Cambridgeshire County Council,15-Sep-21,51301642137,"-1,963.06",Redacted Personal Data,INDIVIDUAL,LD - Young Adults Team,LD - Young Adults - Care,Direct Payments
Cambridgeshire County Council,15-Sep-21,51301642137,"-1,963.06",Redacted Personal Data,INDIVIDUAL,LD - Young Adults Team,LD - Young Adults - Care,Direct Payments
Cambridgeshire County Council,15-Sep-21,51301642137,"-1,963.06",Redacted Personal Data,INDIVIDUAL,LD - Young Adults Team,LD - Young Adults - Care,Direct Payments
Cambridgeshire County Council,15-Sep-21,51301642137,"-1,963.06",Redacted Personal Data,INDIVIDUAL,LD - Young Adults Team,LD - Young Adults - Care,Direct Payments
Cambridgeshire County Council,15-Sep-21,51301642137,"-1,963.06",Redacted Personal Data,INDIVIDUAL,LD - Young Adults Team,LD - Young Adults - Care,Direct Payments
Cambridgeshire County Council,15-Sep-21,51301642137,"-1,963.06",Redacted Personal Data,INDIVIDUAL,LD - Young Adults Team,LD - Young Adults - Care,Direct Payments
Cambridgeshire County Council,15-Sep-21,51301642137,"-1,963.06",Redacted Personal Data,INDIVIDUAL,LD - Young Adults Team,LD - Young Adults - Care,Direct Payments
Cambridgeshire County Council,21-Sep-21,51301643262,"-1,905.00",THE RED HOUSE RESIDENTIAL & NURSING HOME,CARE ESTABLISHMENT,OP - Hunts Blocks,Hunts - Long term blocks,Nursing Care
Cambridgeshire County Council,21-Sep-21,51301643262,"-1,905.00",THE RED HOUSE RESIDENTIAL & NURSING HOME,CARE ESTABLISHMENT,OP - Hunts Blocks,Hunts - Long term blocks,Nursing Care
Cambridgeshire County Council,08-Sep-21,51301639667,"-1,886.57",KEY2 FUTURES LTD,TRADE SUPPLIER,Unaccompanied Asylum Seeking Children,Unaccompanied Asylum Seeking Children >18 Leaving Care,Living Spport Grants - Financial Assistance 18+
Cambridgeshire County Council,06-Sep-21,51301637345,"-1,858.96",HOLLYBANK TRUST,CARE ESTABLISHMENT,LD - South Locality - Cost of Care,LD - South Cambs - Care,Residential Care
Cambridgeshire County Council,06-Sep-21,51301637345,"-1,858.96",HOLLYBANK TRUST,CARE ESTABLISHMENT,LD - South Locality - Cost of Care,LD - South Cambs - Care,Residential Care
Cambridgeshire County Council,06-Sep-21,51301637345,"-1,858.96",HOLLYBANK TRUST,CARE ESTABLISHMENT,LD - South Locality - Cost of Care,LD - South Cambs - Care,Residential Care
Cambridgeshire County Council,06-Sep-21,51301637345,"-1,858.96",HOLLYBANK TRUST,CARE ESTABLISHMENT,LD - South Locality - Cost of Care,LD - South Cambs - Care,Residential Care
Cambridgeshire County Council,06-Sep-21,51301637345,"-1,858.96",HOLLYBANK TRUST,CARE ESTABLISHMENT,LD - South Locality - Cost of Care,LD - South Cambs - Care,Residential Care
Cambridgeshire County Council,06-Sep-21,51301637345,"-1,858.96",HOLLYBANK TRUST,CARE ESTABLISHMENT,LD - South Locality - Cost of Care,LD - South Cambs - Care,Residential Care
Cambridgeshire County Council,06-Sep-21,51301637345,"-1,858.96",HOLLYBANK TRUST,CARE ESTABLISHMENT,LD - South Locality - Cost of Care,LD - South Cambs - Care,Residential Care
Cambridgeshire County Council,06-Sep-21,51301637345,"-1,858.96",HOLLYBANK TRUST,CARE ESTABLISHMENT,LD - South Locality - Cost of Care,LD - South Cambs - Care,Residential Care
Cambridgeshire County Council,06-Sep-21,51301637345,"-1,858.96",HOLLYBANK TRUST,CARE ESTABLISHMENT,LD - South Locality - Cost of Care,LD - South Cambs - Care,Residential Care
Cambridgeshire County Council,06-Sep-21,51301637345,"-1,858.96",HOLLYBANK TRUST,CARE ESTABLISHMENT,LD - South Locality - Cost of Care,LD - South Cambs - Care,Residential Care
Cambridgeshire County Council,06-Sep-21,51301637345,"-1,858.96",HOLLYBANK TRUST,CARE ESTABLISHMENT,LD - South Locality - Cost of Care,LD - South Cambs - Care,Residential Care
Cambridgeshire County Council,06-Sep-21,51301637345,"-1,858.96",HOLLYBANK TRUST,CARE ESTABLISHMENT,LD - South Locality - Cost of Care,LD - South Cambs - Care,Residential Care
Cambridgeshire County Council,06-Sep-21,51301637345,"-1,858.96",HOLLYBANK TRUST,CARE ESTABLISHMENT,LD - South Locality - Cost of Care,LD - South Cambs - Care,Residential Care
Cambridgeshire County Council,06-Sep-21,51301637345,"-1,858.96",HOLLYBANK TRUST,CARE ESTABLISHMENT,LD - South Locality - Cost of Care,LD - South Cambs - Care,Residential Care
Cambridgeshire County Council,06-Sep-21,51301637345,"-1,858.96",HOLLYBANK TRUST,CARE ESTABLISHMENT,LD - South Locality - Cost of Care,LD - South Cambs - Care,Residential Care
Cambridgeshire County Council,06-Sep-21,51301637345,"-1,858.96",HOLLYBANK TRUST,CARE ESTABLISHMENT,LD - South Locality - Cost of Care,LD - South Cambs - Care,Residential Care
Cambridgeshire County Council,06-Sep-21,51301637345,"-1,858.96",HOLLYBANK TRUST,CARE ESTABLISHMENT,LD - South Locality - Cost of Care,LD - South Cambs - Care,Residential Care
Cambridgeshire County Council,06-Sep-21,51301637345,"-1,858.96",HOLLYBANK TRUST,CARE ESTABLISHMENT,LD - South Locality - Cost of Care,LD - South Cambs - Care,Residential Care
Cambridgeshire County Council,06-Sep-21,51301637345,"-1,858.96",HOLLYBANK TRUST,CARE ESTABLISHMENT,LD - South Locality - Cost of Care,LD - South Cambs - Care,Residential Care
Cambridgeshire County Council,06-Sep-21,51301637345,"-1,858.96",HOLLYBANK TRUST,CARE ESTABLISHMENT,LD - South Locality - Cost of Care,LD - South Cambs - Care,Residential Care
Cambridgeshire County Council,06-Sep-21,51301637345,"-1,858.96",HOLLYBANK TRUST,CARE ESTABLISHMENT,LD - South Locality - Cost of Care,LD - South Cambs - Care,Residential Care
Cambridgeshire County Council,06-Sep-21,51301637345,"-1,858.96",HOLLYBANK TRUST,CARE ESTABLISHMENT,LD - South Locality - Cost of Care,LD - South Cambs - Care,Residential Care
Cambridgeshire County Council,06-Sep-21,51301637345,"-1,858.96",HOLLYBANK TRUST,CARE ESTABLISHMENT,LD - South Locality - Cost of Care,LD - South Cambs - Care,Residential Care
Cambridgeshire County Council,06-Sep-21,51301637345,"-1,858.96",HOLLYBANK TRUST,CARE ESTABLISHMENT,LD - South Locality - Cost of Care,LD - South Cambs - Care,Residential Care
Cambridgeshire County Council,06-Sep-21,51301637345,"-1,858.96",HOLLYBANK TRUST,CARE ESTABLISHMENT,LD - South Locality - Cost of Care,LD - South Cambs - Care,Residential Care
Cambridgeshire County Council,06-Sep-21,51301637345,"-1,858.96",HOLLYBANK TRUST,CARE ESTABLISHMENT,LD - South Locality - Cost of Care,LD - South Cambs - Care,Residential Care
Cambridgeshire County Council,06-Sep-21,51301637345,"-1,858.96",HOLLYBANK TRUST,CARE ESTABLISHMENT,LD - South Locality - Cost of Care,LD - South Cambs - Care,Residential Care
Cambridgeshire County Council,06-Sep-21,51301637345,"-1,858.96",HOLLYBANK TRUST,CARE ESTABLISHMENT,LD - South Locality - Cost of Care,LD - South Cambs - Care,Residential Care
Cambridgeshire County Council,06-Sep-21,51301637345,"-1,858.96",HOLLYBANK TRUST,CARE ESTABLISHMENT,LD - South Locality - Cost of Care,LD - South Cambs - Care,Residential Care
Cambridgeshire County Council,06-Sep-21,51301637345,"-1,858.96",HOLLYBANK TRUST,CARE ESTABLISHMENT,LD - South Locality - Cost of Care,LD - South Cambs - Care,Residential Care
Cambridgeshire County Council,06-Sep-21,51301637345,"-1,858.96",HOLLYBANK TRUST,CARE ESTABLISHMENT,LD - South Locality - Cost of Care,LD - South Cambs - Care,Residential Care
Cambridgeshire County Council,06-Sep-21,51301637345,"-1,858.96",HOLLYBANK TRUST,CARE ESTABLISHMENT,LD - South Locality - Cost of Care,LD - South Cambs - Care,Residential Care
Cambridgeshire County Council,06-Sep-21,51301637345,"-1,858.96",HOLLYBANK TRUST,CARE ESTABLISHMENT,LD - South Locality - Cost of Care,LD - South Cambs - Care,Residential Care
Cambridgeshire County Council,06-Sep-21,51301637345,"-1,858.96",HOLLYBANK TRUST,CARE ESTABLISHMENT,LD - South Locality - Cost of Care,LD - South Cambs - Care,Residential Care
Cambridgeshire County Council,06-Sep-21,51301637345,"-1,858.96",HOLLYBANK TRUST,CARE ESTABLISHMENT,LD - South Locality - Cost of Care,LD - South Cambs - Care,Residential Care
Cambridgeshire County Council,06-Sep-21,51301637345,"-1,858.96",HOLLYBANK TRUST,CARE ESTABLISHMENT,LD - South Locality - Cost of Care,LD - South Cambs - Care,Residential Care
Cambridgeshire County Council,06-Sep-21,51301637345,"-1,858.96",HOLLYBANK TRUST,CARE ESTABLISHMENT,LD - South Locality - Cost of Care,LD - South Cambs - Care,Residential Care
Cambridgeshire County Council,06-Sep-21,51301637345,"-1,858.96",HOLLYBANK TRUST,CARE ESTABLISHMENT,LD - South Locality - Cost of Care,LD - South Cambs - Care,Residential Care
Cambridgeshire County Council,06-Sep-21,51301637345,"-1,858.96",HOLLYBANK TRUST,CARE ESTABLISHMENT,LD - South Locality - Cost of Care,LD - South Cambs - Care,Residential Care
Cambridgeshire County Council,06-Sep-21,51301637345,"-1,858.96",HOLLYBANK TRUST,CARE ESTABLISHMENT,LD - South Locality - Cost of Care,LD - South Cambs - Care,Residential Care
Cambridgeshire County Council,06-Sep-21,51301637345,"-1,858.96",HOLLYBANK TRUST,CARE ESTABLISHMENT,LD - South Locality - Cost of Care,LD - South Cambs - Care,Residential Care
Cambridgeshire County Council,06-Sep-21,51301637345,"-1,858.96",HOLLYBANK TRUST,CARE ESTABLISHMENT,LD - South Locality - Cost of Care,LD - South Cambs - Care,Residential Care
Cambridgeshire County Council,06-Sep-21,51301637345,"-1,858.96",HOLLYBANK TRUST,CARE ESTABLISHMENT,LD - South Locality - Cost of Care,LD - South Cambs - Care,Residential Care
Cambridgeshire County Council,06-Sep-21,51301637345,"-1,858.96",HOLLYBANK TRUST,CARE ESTABLISHMENT,LD - South Locality - Cost of Care,LD - South Cambs - Care,Residential Care
Cambridgeshire County Council,06-Sep-21,51301637345,"-1,858.96",HOLLYBANK TRUST,CARE ESTABLISHMENT,LD - South Locality - Cost of Care,LD - South Cambs - Care,Residential Care
Cambridgeshire County Council,06-Sep-21,51301637345,"-1,858.96",HOLLYBANK TRUST,CARE ESTABLISHMENT,LD - South Locality - Cost of Care,LD - South Cambs - Care,Residential Care
Cambridgeshire County Council,06-Sep-21,51301637345,"-1,858.96",HOLLYBANK TRUST,CARE ESTABLISHMENT,LD - South Locality - Cost of Care,LD - South Cambs - Care,Residential Care
Cambridgeshire County Council,06-Sep-21,51301637345,"-1,858.96",HOLLYBANK TRUST,CARE ESTABLISHMENT,LD - South Locality - Cost of Care,LD - South Cambs - Care,Residential Care
Cambridgeshire County Council,06-Sep-21,51301637345,"-1,858.96",HOLLYBANK TRUST,CARE ESTABLISHMENT,LD - South Locality - Cost of Care,LD - South Cambs - Care,Residential Care
Cambridgeshire County Council,06-Sep-21,51301637345,"-1,858.96",HOLLYBANK TRUST,CARE ESTABLISHMENT,LD - South Locality - Cost of Care,LD - South Cambs - Care,Residential Care
Cambridgeshire County Council,06-Sep-21,51301637345,"-1,858.96",HOLLYBANK TRUST,CARE ESTABLISHMENT,LD - South Locality - Cost of Care,LD - South Cambs - Care,Residential Care
Cambridgeshire County Council,06-Sep-21,51301637345,"-1,858.96",HOLLYBANK TRUST,CARE ESTABLISHMENT,LD - South Locality - Cost of Care,LD - South Cambs - Care,Residential Care
Cambridgeshire County Council,06-Sep-21,51301637345,"-1,858.96",HOLLYBANK TRUST,CARE ESTABLISHMENT,LD - South Locality - Cost of Care,LD - South Cambs - Care,Residential Care
Cambridgeshire County Council,06-Sep-21,51301637345,"-1,858.96",HOLLYBANK TRUST,CARE ESTABLISHMENT,LD - South Locality - Cost of Care,LD - South Cambs - Care,Residential Care
Cambridgeshire County Council,06-Sep-21,51301637345,"-1,858.96",HOLLYBANK TRUST,CARE ESTABLISHMENT,LD - South Locality - Cost of Care,LD - South Cambs - Care,Residential Care
Cambridgeshire County Council,06-Sep-21,51301637345,"-1,858.96",HOLLYBANK TRUST,CARE ESTABLISHMENT,LD - South Locality - Cost of Care,LD - South Cambs - Care,Residential Care
Cambridgeshire County Council,06-Sep-21,51301637345,"-1,858.96",HOLLYBANK TRUST,CARE ESTABLISHMENT,LD - South Locality - Cost of Care,LD - South Cambs - Care,Residential Care
Cambridgeshire County Council,06-Sep-21,51301637345,"-1,858.96",HOLLYBANK TRUST,CARE ESTABLISHMENT,LD - South Locality - Cost of Care,LD - South Cambs - Care,Residential Care
Cambridgeshire County Council,06-Sep-21,51301637345,"-1,858.96",HOLLYBANK TRUST,CARE ESTABLISHMENT,LD - South Locality - Cost of Care,LD - South Cambs - Care,Residential Care
Cambridgeshire County Council,06-Sep-21,51301637345,"-1,858.96",HOLLYBANK TRUST,CARE ESTABLISHMENT,LD - South Locality - Cost of Care,LD - South Cambs - Care,Residential Care
Cambridgeshire County Council,06-Sep-21,51301637345,"-1,858.96",HOLLYBANK TRUST,CARE ESTABLISHMENT,LD - South Locality - Cost of Care,LD - South Cambs - Care,Residential Care
Cambridgeshire County Council,06-Sep-21,51301637345,"-1,858.96",HOLLYBANK TRUST,CARE ESTABLISHMENT,LD - South Locality - Cost of Care,LD - South Cambs - Care,Residential Care
Cambridgeshire County Council,17-Sep-21,51301642755,"-1,849.08",AFFINITY TRUST,CARE ESTABLISHMENT,LD - Fenland Locality - Cost of Care,LD - Fenland  - Care,Supported Living
Cambridgeshire County Council,21-Sep-21,51301643261,"-1,838.57",THE GABLES SPECIALIST NURSING HOME,CARE ESTABLISHMENT,OP - Fenland Blocks,Fenland - Long term blocks,Nursing Care
Cambridgeshire County Council,24-Sep-21,51301643822,"-1,800.00",Redacted Personal Data,SERVICE USER,Physical Disablity - Cost of Care,Countywide PD Service - Care,Direct Payments
Cambridgeshire County Council,27-Sep-21,51301631335,"-1,799.40",MLL Telecom Limited,TRADE SUPPLIER,ICT Service,ICT Service Eastnet,Network Support Contracts
Cambridgeshire County Council,17-Sep-21,51301642754,"-1,794.34",AFFINITY TRUST,CARE ESTABLISHMENT,LD - Fenland Locality - Cost of Care,LD - Fenland  - Care,Supported Living
Cambridgeshire County Council,17-Sep-21,51301642754,"-1,794.34",AFFINITY TRUST,CARE ESTABLISHMENT,LD - Fenland Locality - Cost of Care,LD - Fenland  - Care,Supported Living
Cambridgeshire County Council,17-Sep-21,51301642754,"-1,794.34",AFFINITY TRUST,CARE ESTABLISHMENT,LD - Fenland Locality - Cost of Care,LD - Fenland  - Care,Supported Living
Cambridgeshire County Council,17-Sep-21,51301642754,"-1,794.34",AFFINITY TRUST,CARE ESTABLISHMENT,LD - Fenland Locality - Cost of Care,LD - Fenland  - Care,Supported Living
Cambridgeshire County Council,17-Sep-21,51301642754,"-1,794.34",AFFINITY TRUST,CARE ESTABLISHMENT,LD - Fenland Locality - Cost of Care,LD - Fenland  - Care,Supported Living
Cambridgeshire County Council,17-Sep-21,51301642754,"-1,794.34",AFFINITY TRUST,CARE ESTABLISHMENT,LD - Fenland Locality - Cost of Care,LD - Fenland  - Care,Supported Living
Cambridgeshire County Council,17-Sep-21,51301642754,"-1,794.34",AFFINITY TRUST,CARE ESTABLISHMENT,LD - Fenland Locality - Cost of Care,LD - Fenland  - Care,Supported Living
Cambridgeshire County Council,17-Sep-21,51301642754,"-1,794.34",AFFINITY TRUST,CARE ESTABLISHMENT,LD - Fenland Locality - Cost of Care,LD - Fenland  - Care,Supported Living
Cambridgeshire County Council,17-Sep-21,51301642754,"-1,794.34",AFFINITY TRUST,CARE ESTABLISHMENT,LD - Fenland Locality - Cost of Care,LD - Fenland  - Care,Supported Living
Cambridgeshire County Council,17-Sep-21,51301642754,"-1,794.34",AFFINITY TRUST,CARE ESTABLISHMENT,LD - Fenland Locality - Cost of Care,LD - Fenland  - Care,Supported Living
Cambridgeshire County Council,17-Sep-21,51301642754,"-1,794.34",AFFINITY TRUST,CARE ESTABLISHMENT,LD - Fenland Locality - Cost of Care,LD - Fenland  - Care,Supported Living
Cambridgeshire County Council,17-Sep-21,51301642754,"-1,794.34",AFFINITY TRUST,CARE ESTABLISHMENT,LD - Fenland Locality - Cost of Care,LD - Fenland  - Care,Supported Living
Cambridgeshire County Council,17-Sep-21,51301642754,"-1,794.34",AFFINITY TRUST,CARE ESTABLISHMENT,LD - Fenland Locality - Cost of Care,LD - Fenland  - Care,Supported Living
Cambridgeshire County Council,17-Sep-21,51301642754,"-1,794.34",AFFINITY TRUST,CARE ESTABLISHMENT,LD - Fenland Locality - Cost of Care,LD - Fenland  - Care,Supported Living
Cambridgeshire County Council,17-Sep-21,51301642754,"-1,794.34",AFFINITY TRUST,CARE ESTABLISHMENT,LD - Fenland Locality - Cost of Care,LD - Fenland  - Care,Supported Living
Cambridgeshire County Council,17-Sep-21,51301642754,"-1,794.34",AFFINITY TRUST,CARE ESTABLISHMENT,LD - Fenland Locality - Cost of Care,LD - Fenland  - Care,Supported Living
Cambridgeshire County Council,17-Sep-21,51301642754,"-1,794.34",AFFINITY TRUST,CARE ESTABLISHMENT,LD - Fenland Locality - Cost of Care,LD - Fenland  - Care,Supported Living
Cambridgeshire County Council,17-Sep-21,51301642754,"-1,794.34",AFFINITY TRUST,CARE ESTABLISHMENT,LD - Fenland Locality - Cost of Care,LD - Fenland  - Care,Supported Living
Cambridgeshire County Council,17-Sep-21,51301642754,"-1,794.34",AFFINITY TRUST,CARE ESTABLISHMENT,LD - Fenland Locality - Cost of Care,LD - Fenland  - Care,Supported Living
Cambridgeshire County Council,17-Sep-21,51301642754,"-1,794.34",AFFINITY TRUST,CARE ESTABLISHMENT,LD - Fenland Locality - Cost of Care,LD - Fenland  - Care,Supported Living
Cambridgeshire County Council,17-Sep-21,51301642754,"-1,794.34",AFFINITY TRUST,CARE ESTABLISHMENT,LD - Fenland Locality - Cost of Care,LD - Fenland  - Care,Supported Living
Cambridgeshire County Council,17-Sep-21,51301642754,"-1,794.34",AFFINITY TRUST,CARE ESTABLISHMENT,LD - Fenland Locality - Cost of Care,LD - Fenland  - Care,Supported Living
Cambridgeshire County Council,17-Sep-21,51301642754,"-1,794.34",AFFINITY TRUST,CARE ESTABLISHMENT,LD - Fenland Locality - Cost of Care,LD - Fenland  - Care,Supported Living
Cambridgeshire County Council,17-Sep-21,51301642754,"-1,794.34",AFFINITY TRUST,CARE ESTABLISHMENT,LD - Fenland Locality - Cost of Care,LD - Fenland  - Care,Supported Living
Cambridgeshire County Council,17-Sep-21,51301642754,"-1,794.34",AFFINITY TRUST,CARE ESTABLISHMENT,LD - Fenland Locality - Cost of Care,LD - Fenland  - Care,Supported Living
Cambridgeshire County Council,17-Sep-21,51301642754,"-1,794.34",AFFINITY TRUST,CARE ESTABLISHMENT,LD - Fenland Locality - Cost of Care,LD - Fenland  - Care,Supported Living
Cambridgeshire County Council,17-Sep-21,51301642754,"-1,794.34",AFFINITY TRUST,CARE ESTABLISHMENT,LD - Fenland Locality - Cost of Care,LD - Fenland  - Care,Supported Living
Cambridgeshire County Council,17-Sep-21,51301642754,"-1,794.34",AFFINITY TRUST,CARE ESTABLISHMENT,LD - Fenland Locality - Cost of Care,LD - Fenland  - Care,Supported Living
Cambridgeshire County Council,17-Sep-21,51301642754,"-1,794.34",AFFINITY TRUST,CARE ESTABLISHMENT,LD - Fenland Locality - Cost of Care,LD - Fenland  - Care,Supported Living
Cambridgeshire County Council,17-Sep-21,51301642754,"-1,794.34",AFFINITY TRUST,CARE ESTABLISHMENT,LD - Fenland Locality - Cost of Care,LD - Fenland  - Care,Supported Living
Cambridgeshire County Council,17-Sep-21,51301642754,"-1,794.34",AFFINITY TRUST,CARE ESTABLISHMENT,LD - Fenland Locality - Cost of Care,LD - Fenland  - Care,Supported Living
Cambridgeshire County Council,17-Sep-21,51301642754,"-1,794.34",AFFINITY TRUST,CARE ESTABLISHMENT,LD - Fenland Locality - Cost of Care,LD - Fenland  - Care,Supported Living
Cambridgeshire County Council,17-Sep-21,51301642754,"-1,794.34",AFFINITY TRUST,CARE ESTABLISHMENT,LD - Fenland Locality - Cost of Care,LD - Fenland  - Care,Supported Living
Cambridgeshire County Council,17-Sep-21,51301642754,"-1,794.34",AFFINITY TRUST,CARE ESTABLISHMENT,LD - Fenland Locality - Cost of Care,LD - Fenland  - Care,Supported Living
Cambridgeshire County Council,17-Sep-21,51301642754,"-1,794.34",AFFINITY TRUST,CARE ESTABLISHMENT,LD - Fenland Locality - Cost of Care,LD - Fenland  - Care,Supported Living
Cambridgeshire County Council,17-Sep-21,51301642754,"-1,794.34",AFFINITY TRUST,CARE ESTABLISHMENT,LD - Fenland Locality - Cost of Care,LD - Fenland  - Care,Supported Living
Cambridgeshire County Council,17-Sep-21,51301642754,"-1,794.34",AFFINITY TRUST,CARE ESTABLISHMENT,LD - Fenland Locality - Cost of Care,LD - Fenland  - Care,Supported Living
Cambridgeshire County Council,17-Sep-21,51301642754,"-1,794.34",AFFINITY TRUST,CARE ESTABLISHMENT,LD - Fenland Locality - Cost of Care,LD - Fenland  - Care,Supported Living
Cambridgeshire County Council,17-Sep-21,51301642754,"-1,794.34",AFFINITY TRUST,CARE ESTABLISHMENT,LD - Fenland Locality - Cost of Care,LD - Fenland  - Care,Supported Living
Cambridgeshire County Council,17-Sep-21,51301642754,"-1,794.34",AFFINITY TRUST,CARE ESTABLISHMENT,LD - Fenland Locality - Cost of Care,LD - Fenland  - Care,Supported Living
Cambridgeshire County Council,17-Sep-21,51301642754,"-1,794.34",AFFINITY TRUST,CARE ESTABLISHMENT,LD - Fenland Locality - Cost of Care,LD - Fenland  - Care,Supported Living
Cambridgeshire County Council,17-Sep-21,51301642754,"-1,794.34",AFFINITY TRUST,CARE ESTABLISHMENT,LD - Fenland Locality - Cost of Care,LD - Fenland  - Care,Supported Living
Cambridgeshire County Council,17-Sep-21,51301642754,"-1,794.34",AFFINITY TRUST,CARE ESTABLISHMENT,LD - Fenland Locality - Cost of Care,LD - Fenland  - Care,Supported Living
Cambridgeshire County Council,17-Sep-21,51301642754,"-1,794.34",AFFINITY TRUST,CARE ESTABLISHMENT,LD - Fenland Locality - Cost of Care,LD - Fenland  - Care,Supported Living
Cambridgeshire County Council,17-Sep-21,51301642754,"-1,794.34",AFFINITY TRUST,CARE ESTABLISHMENT,LD - Fenland Locality - Cost of Care,LD - Fenland  - Care,Supported Living
Cambridgeshire County Council,17-Sep-21,51301642754,"-1,794.34",AFFINITY TRUST,CARE ESTABLISHMENT,LD - Fenland Locality - Cost of Care,LD - Fenland  - Care,Supported Living
Cambridgeshire County Council,17-Sep-21,51301642754,"-1,794.34",AFFINITY TRUST,CARE ESTABLISHMENT,LD - Fenland Locality - Cost of Care,LD - Fenland  - Care,Supported Living
Cambridgeshire County Council,17-Sep-21,51301642754,"-1,794.34",AFFINITY TRUST,CARE ESTABLISHMENT,LD - Fenland Locality - Cost of Care,LD - Fenland  - Care,Supported Living
Cambridgeshire County Council,17-Sep-21,51301642754,"-1,794.34",AFFINITY TRUST,CARE ESTABLISHMENT,LD - Fenland Locality - Cost of Care,LD - Fenland  - Care,Supported Living
Cambridgeshire County Council,17-Sep-21,51301642754,"-1,794.34",AFFINITY TRUST,CARE ESTABLISHMENT,LD - Fenland Locality - Cost of Care,LD - Fenland  - Care,Supported Living
Cambridgeshire County Council,17-Sep-21,51301642754,"-1,794.34",AFFINITY TRUST,CARE ESTABLISHMENT,LD - Fenland Locality - Cost of Care,LD - Fenland  - Care,Supported Living
Cambridgeshire County Council,17-Sep-21,51301642754,"-1,794.34",AFFINITY TRUST,CARE ESTABLISHMENT,LD - Fenland Locality - Cost of Care,LD - Fenland  - Care,Supported Living
Cambridgeshire County Council,17-Sep-21,51301642754,"-1,794.34",AFFINITY TRUST,CARE ESTABLISHMENT,LD - Fenland Locality - Cost of Care,LD - Fenland  - Care,Supported Living
Cambridgeshire County Council,17-Sep-21,51301642754,"-1,794.34",AFFINITY TRUST,CARE ESTABLISHMENT,LD - Fenland Locality - Cost of Care,LD - Fenland  - Care,Supported Living
Cambridgeshire County Council,17-Sep-21,51301642754,"-1,794.34",AFFINITY TRUST,CARE ESTABLISHMENT,LD - Fenland Locality - Cost of Care,LD - Fenland  - Care,Supported Living
Cambridgeshire County Council,17-Sep-21,51301642754,"-1,794.34",AFFINITY TRUST,CARE ESTABLISHMENT,LD - Fenland Locality - Cost of Care,LD - Fenland  - Care,Supported Living
Cambridgeshire County Council,17-Sep-21,51301642754,"-1,794.34",AFFINITY TRUST,CARE ESTABLISHMENT,LD - Fenland Locality - Cost of Care,LD - Fenland  - Care,Supported Living
Cambridgeshire County Council,17-Sep-21,51301642754,"-1,794.34",AFFINITY TRUST,CARE ESTABLISHMENT,LD - Fenland Locality - Cost of Care,LD - Fenland  - Care,Supported Living
Cambridgeshire County Council,17-Sep-21,51301642754,"-1,794.34",AFFINITY TRUST,CARE ESTABLISHMENT,LD - Fenland Locality - Cost of Care,LD - Fenland  - Care,Supported Living
Cambridgeshire County Council,17-Sep-21,51301642754,"-1,794.34",AFFINITY TRUST,CARE ESTABLISHMENT,LD - Fenland Locality - Cost of Care,LD - Fenland  - Care,Supported Living
Cambridgeshire County Council,17-Sep-21,51301642754,"-1,794.34",AFFINITY TRUST,CARE ESTABLISHMENT,LD - Fenland Locality - Cost of Care,LD - Fenland  - Care,Supported Living
Cambridgeshire County Council,17-Sep-21,51301642754,"-1,794.34",AFFINITY TRUST,CARE ESTABLISHMENT,LD - Fenland Locality - Cost of Care,LD - Fenland  - Care,Supported Living
Cambridgeshire County Council,21-Sep-21,51301643259,"-1,785.00",THE ELMS NURSING HOME,CARE ESTABLISHMENT,OP - Fenland Blocks,Fenland - Long term blocks,Residential Care
Cambridgeshire County Council,21-Sep-21,51301643259,"-1,785.00",THE ELMS NURSING HOME,CARE ESTABLISHMENT,OP - Fenland Blocks,Fenland - Long term blocks,Residential Care
Cambridgeshire County Council,21-Sep-21,51301643259,"-1,785.00",THE ELMS NURSING HOME,CARE ESTABLISHMENT,OP - Fenland Blocks,Fenland - Long term blocks,Residential Care
Cambridgeshire County Council,21-Sep-21,51301643259,"-1,785.00",THE ELMS NURSING HOME,CARE ESTABLISHMENT,OP - Fenland Blocks,Fenland - Long term blocks,Residential Care
Cambridgeshire County Council,21-Sep-21,51301643259,"-1,785.00",THE ELMS NURSING HOME,CARE ESTABLISHMENT,OP - Fenland Blocks,Fenland - Long term blocks,Residential Care
Cambridgeshire County Council,17-Sep-21,51301642738,"-1,775.12",AFFINITY TRUST,CARE ESTABLISHMENT,LD - Fenland Locality - Cost of Care,LD - Fenland  - Care,Supported Living
Cambridgeshire County Council,17-Sep-21,51301642738,"-1,775.12",AFFINITY TRUST,CARE ESTABLISHMENT,LD - Fenland Locality - Cost of Care,LD - Fenland  - Care,Supported Living
Cambridgeshire County Council,17-Sep-21,51301642738,"-1,775.12",AFFINITY TRUST,CARE ESTABLISHMENT,LD - Fenland Locality - Cost of Care,LD - Fenland  - Care,Supported Living
Cambridgeshire County Council,17-Sep-21,51301642738,"-1,775.12",AFFINITY TRUST,CARE ESTABLISHMENT,LD - Fenland Locality - Cost of Care,LD - Fenland  - Care,Supported Living
Cambridgeshire County Council,17-Sep-21,51301642738,"-1,775.12",AFFINITY TRUST,CARE ESTABLISHMENT,LD - Fenland Locality - Cost of Care,LD - Fenland  - Care,Supported Living
Cambridgeshire County Council,17-Sep-21,51301642738,"-1,775.12",AFFINITY TRUST,CARE ESTABLISHMENT,LD - Fenland Locality - Cost of Care,LD - Fenland  - Care,Supported Living
Cambridgeshire County Council,17-Sep-21,51301642738,"-1,775.12",AFFINITY TRUST,CARE ESTABLISHMENT,LD - Fenland Locality - Cost of Care,LD - Fenland  - Care,Supported Living
Cambridgeshire County Council,17-Sep-21,51301642738,"-1,775.12",AFFINITY TRUST,CARE ESTABLISHMENT,LD - Fenland Locality - Cost of Care,LD - Fenland  - Care,Supported Living
Cambridgeshire County Council,17-Sep-21,51301642738,"-1,775.12",AFFINITY TRUST,CARE ESTABLISHMENT,LD - Fenland Locality - Cost of Care,LD - Fenland  - Care,Supported Living
Cambridgeshire County Council,17-Sep-21,51301642738,"-1,775.12",AFFINITY TRUST,CARE ESTABLISHMENT,LD - Fenland Locality - Cost of Care,LD - Fenland  - Care,Supported Living
Cambridgeshire County Council,17-Sep-21,51301642738,"-1,775.12",AFFINITY TRUST,CARE ESTABLISHMENT,LD - Fenland Locality - Cost of Care,LD - Fenland  - Care,Supported Living
Cambridgeshire County Council,17-Sep-21,51301642738,"-1,775.12",AFFINITY TRUST,CARE ESTABLISHMENT,LD - Fenland Locality - Cost of Care,LD - Fenland  - Care,Supported Living
Cambridgeshire County Council,17-Sep-21,51301642738,"-1,775.12",AFFINITY TRUST,CARE ESTABLISHMENT,LD - Fenland Locality - Cost of Care,LD - Fenland  - Care,Supported Living
Cambridgeshire County Council,17-Sep-21,51301642738,"-1,775.12",AFFINITY TRUST,CARE ESTABLISHMENT,LD - Fenland Locality - Cost of Care,LD - Fenland  - Care,Supported Living
Cambridgeshire County Council,17-Sep-21,51301642738,"-1,775.12",AFFINITY TRUST,CARE ESTABLISHMENT,LD - Fenland Locality - Cost of Care,LD - Fenland  - Care,Supported Living
Cambridgeshire County Council,17-Sep-21,51301642738,"-1,775.12",AFFINITY TRUST,CARE ESTABLISHMENT,LD - Fenland Locality - Cost of Care,LD - Fenland  - Care,Supported Living
Cambridgeshire County Council,17-Sep-21,51301642738,"-1,775.12",AFFINITY TRUST,CARE ESTABLISHMENT,LD - Fenland Locality - Cost of Care,LD - Fenland  - Care,Supported Living
Cambridgeshire County Council,17-Sep-21,51301642738,"-1,775.12",AFFINITY TRUST,CARE ESTABLISHMENT,LD - Fenland Locality - Cost of Care,LD - Fenland  - Care,Supported Living
Cambridgeshire County Council,17-Sep-21,51301642738,"-1,775.12",AFFINITY TRUST,CARE ESTABLISHMENT,LD - Fenland Locality - Cost of Care,LD - Fenland  - Care,Supported Living
Cambridgeshire County Council,17-Sep-21,51301642738,"-1,775.12",AFFINITY TRUST,CARE ESTABLISHMENT,LD - Fenland Locality - Cost of Care,LD - Fenland  - Care,Supported Living
Cambridgeshire County Council,17-Sep-21,51301642738,"-1,775.12",AFFINITY TRUST,CARE ESTABLISHMENT,LD - Fenland Locality - Cost of Care,LD - Fenland  - Care,Supported Living
Cambridgeshire County Council,17-Sep-21,51301642738,"-1,775.12",AFFINITY TRUST,CARE ESTABLISHMENT,LD - Fenland Locality - Cost of Care,LD - Fenland  - Care,Supported Living
Cambridgeshire County Council,17-Sep-21,51301642738,"-1,775.12",AFFINITY TRUST,CARE ESTABLISHMENT,LD - Fenland Locality - Cost of Care,LD - Fenland  - Care,Supported Living
Cambridgeshire County Council,17-Sep-21,51301642738,"-1,775.12",AFFINITY TRUST,CARE ESTABLISHMENT,LD - Fenland Locality - Cost of Care,LD - Fenland  - Care,Supported Living
Cambridgeshire County Council,17-Sep-21,51301642738,"-1,775.12",AFFINITY TRUST,CARE ESTABLISHMENT,LD - Fenland Locality - Cost of Care,LD - Fenland  - Care,Supported Living
Cambridgeshire County Council,17-Sep-21,51301642738,"-1,775.12",AFFINITY TRUST,CARE ESTABLISHMENT,LD - Fenland Locality - Cost of Care,LD - Fenland  - Care,Supported Living
Cambridgeshire County Council,17-Sep-21,51301642738,"-1,775.12",AFFINITY TRUST,CARE ESTABLISHMENT,LD - Fenland Locality - Cost of Care,LD - Fenland  - Care,Supported Living
Cambridgeshire County Council,17-Sep-21,51301642738,"-1,775.12",AFFINITY TRUST,CARE ESTABLISHMENT,LD - Fenland Locality - Cost of Care,LD - Fenland  - Care,Supported Living
Cambridgeshire County Council,17-Sep-21,51301642738,"-1,775.12",AFFINITY TRUST,CARE ESTABLISHMENT,LD - Fenland Locality - Cost of Care,LD - Fenland  - Care,Supported Living
Cambridgeshire County Council,17-Sep-21,51301642738,"-1,775.12",AFFINITY TRUST,CARE ESTABLISHMENT,LD - Fenland Locality - Cost of Care,LD - Fenland  - Care,Supported Living
Cambridgeshire County Council,17-Sep-21,51301642738,"-1,775.12",AFFINITY TRUST,CARE ESTABLISHMENT,LD - Fenland Locality - Cost of Care,LD - Fenland  - Care,Supported Living
Cambridgeshire County Council,17-Sep-21,51301642738,"-1,775.12",AFFINITY TRUST,CARE ESTABLISHMENT,LD - Fenland Locality - Cost of Care,LD - Fenland  - Care,Supported Living
Cambridgeshire County Council,17-Sep-21,51301642738,"-1,775.12",AFFINITY TRUST,CARE ESTABLISHMENT,LD - Fenland Locality - Cost of Care,LD - Fenland  - Care,Supported Living
Cambridgeshire County Council,17-Sep-21,51301642738,"-1,775.12",AFFINITY TRUST,CARE ESTABLISHMENT,LD - Fenland Locality - Cost of Care,LD - Fenland  - Care,Supported Living
Cambridgeshire County Council,17-Sep-21,51301642738,"-1,775.12",AFFINITY TRUST,CARE ESTABLISHMENT,LD - Fenland Locality - Cost of Care,LD - Fenland  - Care,Supported Living
Cambridgeshire County Council,17-Sep-21,51301642738,"-1,775.12",AFFINITY TRUST,CARE ESTABLISHMENT,LD - Fenland Locality - Cost of Care,LD - Fenland  - Care,Supported Living
Cambridgeshire County Council,17-Sep-21,51301642738,"-1,775.12",AFFINITY TRUST,CARE ESTABLISHMENT,LD - Fenland Locality - Cost of Care,LD - Fenland  - Care,Supported Living
Cambridgeshire County Council,17-Sep-21,51301642738,"-1,775.12",AFFINITY TRUST,CARE ESTABLISHMENT,LD - Fenland Locality - Cost of Care,LD - Fenland  - Care,Supported Living
Cambridgeshire County Council,08-Sep-21,51301639664,"-1,764.85",KEY2 FUTURES LTD,TRADE SUPPLIER,Unaccompanied Asylum Seeking Children,Unaccompanied Asylum Seeking Children >18 Leaving Care,Living Spport Grants - Financial Assistance 18+
Cambridgeshire County Council,06-Sep-21,51301637909,"-1,725.11",THE MANOR CHESHIRE HOME,CARE ESTABLISHMENT,LD - East Locality - Cost of Care,LD - East Cambs - Care,Residential Care
Cambridgeshire County Council,17-Sep-21,51301642749,"-1,715.77",AFFINITY TRUST,CARE ESTABLISHMENT,LD - Hunts Locality - Cost of Care,LD - Huntingdonshire - Care,Supported Living
Cambridgeshire County Council,17-Sep-21,51301642744,"-1,703.60",AFFINITY TRUST,CARE ESTABLISHMENT,LD - Hunts Locality - Cost of Care,LD - Huntingdonshire - Special Needs,Supported Living
Cambridgeshire County Council,17-Sep-21,51301642744,"-1,703.60",AFFINITY TRUST,CARE ESTABLISHMENT,LD - Hunts Locality - Cost of Care,LD - Huntingdonshire - Special Needs,Supported Living
Cambridgeshire County Council,17-Sep-21,51301642744,"-1,703.60",AFFINITY TRUST,CARE ESTABLISHMENT,LD - Hunts Locality - Cost of Care,LD - Huntingdonshire - Special Needs,Supported Living
Cambridgeshire County Council,17-Sep-21,51301642744,"-1,703.60",AFFINITY TRUST,CARE ESTABLISHMENT,LD - Hunts Locality - Cost of Care,LD - Huntingdonshire - Special Needs,Supported Living
Cambridgeshire County Council,17-Sep-21,51301642744,"-1,703.60",AFFINITY TRUST,CARE ESTABLISHMENT,LD - Hunts Locality - Cost of Care,LD - Huntingdonshire - Special Needs,Supported Living
Cambridgeshire County Council,17-Sep-21,51301642744,"-1,703.60",AFFINITY TRUST,CARE ESTABLISHMENT,LD - Hunts Locality - Cost of Care,LD - Huntingdonshire - Special Needs,Supported Living
Cambridgeshire County Council,17-Sep-21,51301642744,"-1,703.60",AFFINITY TRUST,CARE ESTABLISHMENT,LD - Hunts Locality - Cost of Care,LD - Huntingdonshire - Special Needs,Supported Living
Cambridgeshire County Council,17-Sep-21,51301642744,"-1,703.60",AFFINITY TRUST,CARE ESTABLISHMENT,LD - Hunts Locality - Cost of Care,LD - Huntingdonshire - Special Needs,Supported Living
Cambridgeshire County Council,17-Sep-21,51301642744,"-1,703.60",AFFINITY TRUST,CARE ESTABLISHMENT,LD - Hunts Locality - Cost of Care,LD - Huntingdonshire - Special Needs,Supported Living
Cambridgeshire County Council,17-Sep-21,51301642744,"-1,703.60",AFFINITY TRUST,CARE ESTABLISHMENT,LD - Hunts Locality - Cost of Care,LD - Huntingdonshire - Special Needs,Supported Living
Cambridgeshire County Council,17-Sep-21,51301642744,"-1,703.60",AFFINITY TRUST,CARE ESTABLISHMENT,LD - Hunts Locality - Cost of Care,LD - Huntingdonshire - Special Needs,Supported Living
Cambridgeshire County Council,17-Sep-21,51301642744,"-1,703.60",AFFINITY TRUST,CARE ESTABLISHMENT,LD - Hunts Locality - Cost of Care,LD - Huntingdonshire - Special Needs,Supported Living
Cambridgeshire County Council,17-Sep-21,51301642744,"-1,703.60",AFFINITY TRUST,CARE ESTABLISHMENT,LD - Hunts Locality - Cost of Care,LD - Huntingdonshire - Special Needs,Supported Living
Cambridgeshire County Council,17-Sep-21,51301642744,"-1,703.60",AFFINITY TRUST,CARE ESTABLISHMENT,LD - Hunts Locality - Cost of Care,LD - Huntingdonshire - Special Needs,Supported Living
Cambridgeshire County Council,17-Sep-21,51301642744,"-1,703.60",AFFINITY TRUST,CARE ESTABLISHMENT,LD - Hunts Locality - Cost of Care,LD - Huntingdonshire - Special Needs,Supported Living
Cambridgeshire County Council,17-Sep-21,51301642744,"-1,703.60",AFFINITY TRUST,CARE ESTABLISHMENT,LD - Hunts Locality - Cost of Care,LD - Huntingdonshire - Special Needs,Supported Living
Cambridgeshire County Council,17-Sep-21,51301642744,"-1,703.60",AFFINITY TRUST,CARE ESTABLISHMENT,LD - Hunts Locality - Cost of Care,LD - Huntingdonshire - Special Needs,Supported Living
Cambridgeshire County Council,17-Sep-21,51301642744,"-1,703.60",AFFINITY TRUST,CARE ESTABLISHMENT,LD - Hunts Locality - Cost of Care,LD - Huntingdonshire - Special Needs,Supported Living
Cambridgeshire County Council,17-Sep-21,51301642744,"-1,703.60",AFFINITY TRUST,CARE ESTABLISHMENT,LD - Hunts Locality - Cost of Care,LD - Huntingdonshire - Special Needs,Supported Living
Cambridgeshire County Council,17-Sep-21,51301642744,"-1,703.60",AFFINITY TRUST,CARE ESTABLISHMENT,LD - Hunts Locality - Cost of Care,LD - Huntingdonshire - Special Needs,Supported Living
Cambridgeshire County Council,17-Sep-21,51301642744,"-1,703.60",AFFINITY TRUST,CARE ESTABLISHMENT,LD - Hunts Locality - Cost of Care,LD - Huntingdonshire - Special Needs,Supported Living
Cambridgeshire County Council,17-Sep-21,51301642744,"-1,703.60",AFFINITY TRUST,CARE ESTABLISHMENT,LD - Hunts Locality - Cost of Care,LD - Huntingdonshire - Special Needs,Supported Living
Cambridgeshire County Council,17-Sep-21,51301642744,"-1,703.60",AFFINITY TRUST,CARE ESTABLISHMENT,LD - Hunts Locality - Cost of Care,LD - Huntingdonshire - Special Needs,Supported Living
Cambridgeshire County Council,17-Sep-21,51301642744,"-1,703.60",AFFINITY TRUST,CARE ESTABLISHMENT,LD - Hunts Locality - Cost of Care,LD - Huntingdonshire - Special Needs,Supported Living
Cambridgeshire County Council,17-Sep-21,51301642744,"-1,703.60",AFFINITY TRUST,CARE ESTABLISHMENT,LD - Hunts Locality - Cost of Care,LD - Huntingdonshire - Special Needs,Supported Living
Cambridgeshire County Council,17-Sep-21,51301642744,"-1,703.60",AFFINITY TRUST,CARE ESTABLISHMENT,LD - Hunts Locality - Cost of Care,LD - Huntingdonshire - Special Needs,Supported Living
Cambridgeshire County Council,17-Sep-21,51301642744,"-1,703.60",AFFINITY TRUST,CARE ESTABLISHMENT,LD - Hunts Locality - Cost of Care,LD - Huntingdonshire - Special Needs,Supported Living
Cambridgeshire County Council,17-Sep-21,51301642744,"-1,703.60",AFFINITY TRUST,CARE ESTABLISHMENT,LD - Hunts Locality - Cost of Care,LD - Huntingdonshire - Special Needs,Supported Living
Cambridgeshire County Council,17-Sep-21,51301642744,"-1,703.60",AFFINITY TRUST,CARE ESTABLISHMENT,LD - Hunts Locality - Cost of Care,LD - Huntingdonshire - Special Needs,Supported Living
Cambridgeshire County Council,17-Sep-21,51301642744,"-1,703.60",AFFINITY TRUST,CARE ESTABLISHMENT,LD - Hunts Locality - Cost of Care,LD - Huntingdonshire - Special Needs,Supported Living
Cambridgeshire County Council,17-Sep-21,51301642744,"-1,703.60",AFFINITY TRUST,CARE ESTABLISHMENT,LD - Hunts Locality - Cost of Care,LD - Huntingdonshire - Special Needs,Supported Living
Cambridgeshire County Council,17-Sep-21,51301642744,"-1,703.60",AFFINITY TRUST,CARE ESTABLISHMENT,LD - Hunts Locality - Cost of Care,LD - Huntingdonshire - Special Needs,Supported Living
Cambridgeshire County Council,17-Sep-21,51301642744,"-1,703.60",AFFINITY TRUST,CARE ESTABLISHMENT,LD - Hunts Locality - Cost of Care,LD - Huntingdonshire - Special Needs,Supported Living
Cambridgeshire County Council,17-Sep-21,51301642744,"-1,703.60",AFFINITY TRUST,CARE ESTABLISHMENT,LD - Hunts Locality - Cost of Care,LD - Huntingdonshire - Special Needs,Supported Living
Cambridgeshire County Council,17-Sep-21,51301642744,"-1,703.60",AFFINITY TRUST,CARE ESTABLISHMENT,LD - Hunts Locality - Cost of Care,LD - Huntingdonshire - Special Needs,Supported Living
Cambridgeshire County Council,17-Sep-21,51301642744,"-1,703.60",AFFINITY TRUST,CARE ESTABLISHMENT,LD - Hunts Locality - Cost of Care,LD - Huntingdonshire - Special Needs,Supported Living
Cambridgeshire County Council,17-Sep-21,51301642744,"-1,703.60",AFFINITY TRUST,CARE ESTABLISHMENT,LD - Hunts Locality - Cost of Care,LD - Huntingdonshire - Special Needs,Supported Living
Cambridgeshire County Council,17-Sep-21,51301642744,"-1,703.60",AFFINITY TRUST,CARE ESTABLISHMENT,LD - Hunts Locality - Cost of Care,LD - Huntingdonshire - Special Needs,Supported Living
Cambridgeshire County Council,17-Sep-21,51301642744,"-1,703.60",AFFINITY TRUST,CARE ESTABLISHMENT,LD - Hunts Locality - Cost of Care,LD - Huntingdonshire - Special Needs,Supported Living
Cambridgeshire County Council,17-Sep-21,51301642744,"-1,703.60",AFFINITY TRUST,CARE ESTABLISHMENT,LD - Hunts Locality - Cost of Care,LD - Huntingdonshire - Special Needs,Supported Living
Cambridgeshire County Council,17-Sep-21,51301642744,"-1,703.60",AFFINITY TRUST,CARE ESTABLISHMENT,LD - Hunts Locality - Cost of Care,LD - Huntingdonshire - Special Needs,Supported Living
Cambridgeshire County Council,17-Sep-21,51301642744,"-1,703.60",AFFINITY TRUST,CARE ESTABLISHMENT,LD - Hunts Locality - Cost of Care,LD - Huntingdonshire - Special Needs,Supported Living
Cambridgeshire County Council,17-Sep-21,51301642744,"-1,703.60",AFFINITY TRUST,CARE ESTABLISHMENT,LD - Hunts Locality - Cost of Care,LD - Huntingdonshire - Special Needs,Supported Living
Cambridgeshire County Council,17-Sep-21,51301642744,"-1,703.60",AFFINITY TRUST,CARE ESTABLISHMENT,LD - Hunts Locality - Cost of Care,LD - Huntingdonshire - Special Needs,Supported Living
Cambridgeshire County Council,17-Sep-21,51301642744,"-1,703.60",AFFINITY TRUST,CARE ESTABLISHMENT,LD - Hunts Locality - Cost of Care,LD - Huntingdonshire - Special Needs,Supported Living
Cambridgeshire County Council,17-Sep-21,51301642744,"-1,703.60",AFFINITY TRUST,CARE ESTABLISHMENT,LD - Hunts Locality - Cost of Care,LD - Huntingdonshire - Special Needs,Supported Living
Cambridgeshire County Council,17-Sep-21,51301642744,"-1,703.60",AFFINITY TRUST,CARE ESTABLISHMENT,LD - Hunts Locality - Cost of Care,LD - Huntingdonshire - Special Needs,Supported Living
Cambridgeshire County Council,17-Sep-21,51301642744,"-1,703.60",AFFINITY TRUST,CARE ESTABLISHMENT,LD - Hunts Locality - Cost of Care,LD - Huntingdonshire - Special Needs,Supported Living
Cambridgeshire County Council,17-Sep-21,51301642744,"-1,703.60",AFFINITY TRUST,CARE ESTABLISHMENT,LD - Hunts Locality - Cost of Care,LD - Huntingdonshire - Special Needs,Supported Living
Cambridgeshire County Council,17-Sep-21,51301642744,"-1,703.60",AFFINITY TRUST,CARE ESTABLISHMENT,LD - Hunts Locality - Cost of Care,LD - Huntingdonshire - Special Needs,Supported Living
Cambridgeshire County Council,17-Sep-21,51301642744,"-1,703.60",AFFINITY TRUST,CARE ESTABLISHMENT,LD - Hunts Locality - Cost of Care,LD - Huntingdonshire - Special Needs,Supported Living
Cambridgeshire County Council,17-Sep-21,51301642744,"-1,703.60",AFFINITY TRUST,CARE ESTABLISHMENT,LD - Hunts Locality - Cost of Care,LD - Huntingdonshire - Special Needs,Supported Living
Cambridgeshire County Council,17-Sep-21,51301642744,"-1,703.60",AFFINITY TRUST,CARE ESTABLISHMENT,LD - Hunts Locality - Cost of Care,LD - Huntingdonshire - Special Needs,Supported Living
Cambridgeshire County Council,17-Sep-21,51301642744,"-1,703.60",AFFINITY TRUST,CARE ESTABLISHMENT,LD - Hunts Locality - Cost of Care,LD - Huntingdonshire - Special Needs,Supported Living
Cambridgeshire County Council,17-Sep-21,51301642744,"-1,703.60",AFFINITY TRUST,CARE ESTABLISHMENT,LD - Hunts Locality - Cost of Care,LD - Huntingdonshire - Special Needs,Supported Living
Cambridgeshire County Council,17-Sep-21,51301642744,"-1,703.60",AFFINITY TRUST,CARE ESTABLISHMENT,LD - Hunts Locality - Cost of Care,LD - Huntingdonshire - Special Needs,Supported Living
Cambridgeshire County Council,17-Sep-21,51301642744,"-1,703.60",AFFINITY TRUST,CARE ESTABLISHMENT,LD - Hunts Locality - Cost of Care,LD - Huntingdonshire - Special Needs,Supported Living
Cambridgeshire County Council,17-Sep-21,51301642744,"-1,703.60",AFFINITY TRUST,CARE ESTABLISHMENT,LD - Hunts Locality - Cost of Care,LD - Huntingdonshire - Special Needs,Supported Living
Cambridgeshire County Council,17-Sep-21,51301642744,"-1,703.60",AFFINITY TRUST,CARE ESTABLISHMENT,LD - Hunts Locality - Cost of Care,LD - Huntingdonshire - Special Needs,Supported Living
Cambridgeshire County Council,17-Sep-21,51301642744,"-1,703.60",AFFINITY TRUST,CARE ESTABLISHMENT,LD - Hunts Locality - Cost of Care,LD - Huntingdonshire - Special Needs,Supported Living
Cambridgeshire County Council,17-Sep-21,51301642744,"-1,703.60",AFFINITY TRUST,CARE ESTABLISHMENT,LD - Hunts Locality - Cost of Care,LD - Huntingdonshire - Special Needs,Supported Living
Cambridgeshire County Council,17-Sep-21,51301642744,"-1,703.60",AFFINITY TRUST,CARE ESTABLISHMENT,LD - Hunts Locality - Cost of Care,LD - Huntingdonshire - Special Needs,Supported Living
Cambridgeshire County Council,17-Sep-21,51301642740,"-1,679.08",AFFINITY TRUST,CARE ESTABLISHMENT,LD - Hunts Locality - Cost of Care,LD - Huntingdonshire - Care,Supported Living
Cambridgeshire County Council,17-Sep-21,51301642740,"-1,679.08",AFFINITY TRUST,CARE ESTABLISHMENT,LD - Hunts Locality - Cost of Care,LD - Huntingdonshire - Care,Supported Living
Cambridgeshire County Council,17-Sep-21,51301642740,"-1,679.08",AFFINITY TRUST,CARE ESTABLISHMENT,LD - Hunts Locality - Cost of Care,LD - Huntingdonshire - Care,Supported Living
Cambridgeshire County Council,17-Sep-21,51301642740,"-1,679.08",AFFINITY TRUST,CARE ESTABLISHMENT,LD - Hunts Locality - Cost of Care,LD - Huntingdonshire - Care,Supported Living
Cambridgeshire County Council,17-Sep-21,51301642740,"-1,679.08",AFFINITY TRUST,CARE ESTABLISHMENT,LD - Hunts Locality - Cost of Care,LD - Huntingdonshire - Care,Supported Living
Cambridgeshire County Council,17-Sep-21,51301642740,"-1,679.08",AFFINITY TRUST,CARE ESTABLISHMENT,LD - Hunts Locality - Cost of Care,LD - Huntingdonshire - Care,Supported Living
Cambridgeshire County Council,17-Sep-21,51301642740,"-1,679.08",AFFINITY TRUST,CARE ESTABLISHMENT,LD - Hunts Locality - Cost of Care,LD - Huntingdonshire - Care,Supported Living
Cambridgeshire County Council,17-Sep-21,51301642740,"-1,679.08",AFFINITY TRUST,CARE ESTABLISHMENT,LD - Hunts Locality - Cost of Care,LD - Huntingdonshire - Care,Supported Living
Cambridgeshire County Council,17-Sep-21,51301642740,"-1,679.08",AFFINITY TRUST,CARE ESTABLISHMENT,LD - Hunts Locality - Cost of Care,LD - Huntingdonshire - Care,Supported Living
Cambridgeshire County Council,17-Sep-21,51301642740,"-1,679.08",AFFINITY TRUST,CARE ESTABLISHMENT,LD - Hunts Locality - Cost of Care,LD - Huntingdonshire - Care,Supported Living
Cambridgeshire County Council,17-Sep-21,51301642740,"-1,679.08",AFFINITY TRUST,CARE ESTABLISHMENT,LD - Hunts Locality - Cost of Care,LD - Huntingdonshire - Care,Supported Living
Cambridgeshire County Council,17-Sep-21,51301642740,"-1,679.08",AFFINITY TRUST,CARE ESTABLISHMENT,LD - Hunts Locality - Cost of Care,LD - Huntingdonshire - Care,Supported Living
Cambridgeshire County Council,17-Sep-21,51301642740,"-1,679.08",AFFINITY TRUST,CARE ESTABLISHMENT,LD - Hunts Locality - Cost of Care,LD - Huntingdonshire - Care,Supported Living
Cambridgeshire County Council,17-Sep-21,51301642740,"-1,679.08",AFFINITY TRUST,CARE ESTABLISHMENT,LD - Hunts Locality - Cost of Care,LD - Huntingdonshire - Care,Supported Living
Cambridgeshire County Council,17-Sep-21,51301642740,"-1,679.08",AFFINITY TRUST,CARE ESTABLISHMENT,LD - Hunts Locality - Cost of Care,LD - Huntingdonshire - Care,Supported Living
Cambridgeshire County Council,17-Sep-21,51301642740,"-1,679.08",AFFINITY TRUST,CARE ESTABLISHMENT,LD - Hunts Locality - Cost of Care,LD - Huntingdonshire - Care,Supported Living
Cambridgeshire County Council,17-Sep-21,51301642740,"-1,679.08",AFFINITY TRUST,CARE ESTABLISHMENT,LD - Hunts Locality - Cost of Care,LD - Huntingdonshire - Care,Supported Living
Cambridgeshire County Council,17-Sep-21,51301642740,"-1,679.08",AFFINITY TRUST,CARE ESTABLISHMENT,LD - Hunts Locality - Cost of Care,LD - Huntingdonshire - Care,Supported Living
Cambridgeshire County Council,17-Sep-21,51301642740,"-1,679.08",AFFINITY TRUST,CARE ESTABLISHMENT,LD - Hunts Locality - Cost of Care,LD - Huntingdonshire - Care,Supported Living
Cambridgeshire County Council,17-Sep-21,51301642740,"-1,679.08",AFFINITY TRUST,CARE ESTABLISHMENT,LD - Hunts Locality - Cost of Care,LD - Huntingdonshire - Care,Supported Living
Cambridgeshire County Council,17-Sep-21,51301642740,"-1,679.08",AFFINITY TRUST,CARE ESTABLISHMENT,LD - Hunts Locality - Cost of Care,LD - Huntingdonshire - Care,Supported Living
Cambridgeshire County Council,17-Sep-21,51301642740,"-1,679.08",AFFINITY TRUST,CARE ESTABLISHMENT,LD - Hunts Locality - Cost of Care,LD - Huntingdonshire - Care,Supported Living
Cambridgeshire County Council,17-Sep-21,51301642740,"-1,679.08",AFFINITY TRUST,CARE ESTABLISHMENT,LD - Hunts Locality - Cost of Care,LD - Huntingdonshire - Care,Supported Living
Cambridgeshire County Council,17-Sep-21,51301642740,"-1,679.08",AFFINITY TRUST,CARE ESTABLISHMENT,LD - Hunts Locality - Cost of Care,LD - Huntingdonshire - Care,Supported Living
Cambridgeshire County Council,17-Sep-21,51301642740,"-1,679.08",AFFINITY TRUST,CARE ESTABLISHMENT,LD - Hunts Locality - Cost of Care,LD - Huntingdonshire - Care,Supported Living
Cambridgeshire County Council,17-Sep-21,51301642740,"-1,679.08",AFFINITY TRUST,CARE ESTABLISHMENT,LD - Hunts Locality - Cost of Care,LD - Huntingdonshire - Care,Supported Living
Cambridgeshire County Council,17-Sep-21,51301642740,"-1,679.08",AFFINITY TRUST,CARE ESTABLISHMENT,LD - Hunts Locality - Cost of Care,LD - Huntingdonshire - Care,Supported Living
Cambridgeshire County Council,17-Sep-21,51301642740,"-1,679.08",AFFINITY TRUST,CARE ESTABLISHMENT,LD - Hunts Locality - Cost of Care,LD - Huntingdonshire - Care,Supported Living
Cambridgeshire County Council,17-Sep-21,51301642740,"-1,679.08",AFFINITY TRUST,CARE ESTABLISHMENT,LD - Hunts Locality - Cost of Care,LD - Huntingdonshire - Care,Supported Living
Cambridgeshire County Council,17-Sep-21,51301642740,"-1,679.08",AFFINITY TRUST,CARE ESTABLISHMENT,LD - Hunts Locality - Cost of Care,LD - Huntingdonshire - Care,Supported Living
Cambridgeshire County Council,17-Sep-21,51301642740,"-1,679.08",AFFINITY TRUST,CARE ESTABLISHMENT,LD - Hunts Locality - Cost of Care,LD - Huntingdonshire - Care,Supported Living
Cambridgeshire County Council,17-Sep-21,51301642740,"-1,679.08",AFFINITY TRUST,CARE ESTABLISHMENT,LD - Hunts Locality - Cost of Care,LD - Huntingdonshire - Care,Supported Living
Cambridgeshire County Council,17-Sep-21,51301642740,"-1,679.08",AFFINITY TRUST,CARE ESTABLISHMENT,LD - Hunts Locality - Cost of Care,LD - Huntingdonshire - Care,Supported Living
Cambridgeshire County Council,17-Sep-21,51301642740,"-1,679.08",AFFINITY TRUST,CARE ESTABLISHMENT,LD - Hunts Locality - Cost of Care,LD - Huntingdonshire - Care,Supported Living
Cambridgeshire County Council,17-Sep-21,51301642740,"-1,679.08",AFFINITY TRUST,CARE ESTABLISHMENT,LD - Hunts Locality - Cost of Care,LD - Huntingdonshire - Care,Supported Living
Cambridgeshire County Council,17-Sep-21,51301642740,"-1,679.08",AFFINITY TRUST,CARE ESTABLISHMENT,LD - Hunts Locality - Cost of Care,LD - Huntingdonshire - Care,Supported Living
Cambridgeshire County Council,17-Sep-21,51301642740,"-1,679.08",AFFINITY TRUST,CARE ESTABLISHMENT,LD - Hunts Locality - Cost of Care,LD - Huntingdonshire - Care,Supported Living
Cambridgeshire County Council,17-Sep-21,51301642740,"-1,679.08",AFFINITY TRUST,CARE ESTABLISHMENT,LD - Hunts Locality - Cost of Care,LD - Huntingdonshire - Care,Supported Living
Cambridgeshire County Council,17-Sep-21,51301642740,"-1,679.08",AFFINITY TRUST,CARE ESTABLISHMENT,LD - Hunts Locality - Cost of Care,LD - Huntingdonshire - Care,Supported Living
Cambridgeshire County Council,17-Sep-21,51301642740,"-1,679.08",AFFINITY TRUST,CARE ESTABLISHMENT,LD - Hunts Locality - Cost of Care,LD - Huntingdonshire - Care,Supported Living
Cambridgeshire County Council,17-Sep-21,51301642740,"-1,679.08",AFFINITY TRUST,CARE ESTABLISHMENT,LD - Hunts Locality - Cost of Care,LD - Huntingdonshire - Care,Supported Living
Cambridgeshire County Council,17-Sep-21,51301642740,"-1,679.08",AFFINITY TRUST,CARE ESTABLISHMENT,LD - Hunts Locality - Cost of Care,LD - Huntingdonshire - Care,Supported Living
Cambridgeshire County Council,17-Sep-21,51301642740,"-1,679.08",AFFINITY TRUST,CARE ESTABLISHMENT,LD - Hunts Locality - Cost of Care,LD - Huntingdonshire - Care,Supported Living
Cambridgeshire County Council,17-Sep-21,51301642740,"-1,679.08",AFFINITY TRUST,CARE ESTABLISHMENT,LD - Hunts Locality - Cost of Care,LD - Huntingdonshire - Care,Supported Living
Cambridgeshire County Council,17-Sep-21,51301642740,"-1,679.08",AFFINITY TRUST,CARE ESTABLISHMENT,LD - Hunts Locality - Cost of Care,LD - Huntingdonshire - Care,Supported Living
Cambridgeshire County Council,17-Sep-21,51301642740,"-1,679.08",AFFINITY TRUST,CARE ESTABLISHMENT,LD - Hunts Locality - Cost of Care,LD - Huntingdonshire - Care,Supported Living
Cambridgeshire County Council,17-Sep-21,51301642740,"-1,679.08",AFFINITY TRUST,CARE ESTABLISHMENT,LD - Hunts Locality - Cost of Care,LD - Huntingdonshire - Care,Supported Living
Cambridgeshire County Council,17-Sep-21,51301642740,"-1,679.08",AFFINITY TRUST,CARE ESTABLISHMENT,LD - Hunts Locality - Cost of Care,LD - Huntingdonshire - Care,Supported Living
Cambridgeshire County Council,17-Sep-21,51301642740,"-1,679.08",AFFINITY TRUST,CARE ESTABLISHMENT,LD - Hunts Locality - Cost of Care,LD - Huntingdonshire - Care,Supported Living
Cambridgeshire County Council,17-Sep-21,51301642740,"-1,679.08",AFFINITY TRUST,CARE ESTABLISHMENT,LD - Hunts Locality - Cost of Care,LD - Huntingdonshire - Care,Supported Living
Cambridgeshire County Council,17-Sep-21,51301642740,"-1,679.08",AFFINITY TRUST,CARE ESTABLISHMENT,LD - Hunts Locality - Cost of Care,LD - Huntingdonshire - Care,Supported Living
Cambridgeshire County Council,17-Sep-21,51301642740,"-1,679.08",AFFINITY TRUST,CARE ESTABLISHMENT,LD - Hunts Locality - Cost of Care,LD - Huntingdonshire - Care,Supported Living
Cambridgeshire County Council,17-Sep-21,51301642740,"-1,679.08",AFFINITY TRUST,CARE ESTABLISHMENT,LD - Hunts Locality - Cost of Care,LD - Huntingdonshire - Care,Supported Living
Cambridgeshire County Council,17-Sep-21,51301642740,"-1,679.08",AFFINITY TRUST,CARE ESTABLISHMENT,LD - Hunts Locality - Cost of Care,LD - Huntingdonshire - Care,Supported Living
Cambridgeshire County Council,17-Sep-21,51301642740,"-1,679.08",AFFINITY TRUST,CARE ESTABLISHMENT,LD - Hunts Locality - Cost of Care,LD - Huntingdonshire - Care,Supported Living
Cambridgeshire County Council,17-Sep-21,51301642740,"-1,679.08",AFFINITY TRUST,CARE ESTABLISHMENT,LD - Hunts Locality - Cost of Care,LD - Huntingdonshire - Care,Supported Living
Cambridgeshire County Council,17-Sep-21,51301642740,"-1,679.08",AFFINITY TRUST,CARE ESTABLISHMENT,LD - Hunts Locality - Cost of Care,LD - Huntingdonshire - Care,Supported Living
Cambridgeshire County Council,17-Sep-21,51301642740,"-1,679.08",AFFINITY TRUST,CARE ESTABLISHMENT,LD - Hunts Locality - Cost of Care,LD - Huntingdonshire - Care,Supported Living
Cambridgeshire County Council,17-Sep-21,51301642740,"-1,679.08",AFFINITY TRUST,CARE ESTABLISHMENT,LD - Hunts Locality - Cost of Care,LD - Huntingdonshire - Care,Supported Living
Cambridgeshire County Council,17-Sep-21,51301642740,"-1,679.08",AFFINITY TRUST,CARE ESTABLISHMENT,LD - Hunts Locality - Cost of Care,LD - Huntingdonshire - Care,Supported Living
Cambridgeshire County Council,17-Sep-21,51301642740,"-1,679.08",AFFINITY TRUST,CARE ESTABLISHMENT,LD - Hunts Locality - Cost of Care,LD - Huntingdonshire - Care,Supported Living
Cambridgeshire County Council,17-Sep-21,51301642740,"-1,679.08",AFFINITY TRUST,CARE ESTABLISHMENT,LD - Hunts Locality - Cost of Care,LD - Huntingdonshire - Care,Supported Living
Cambridgeshire County Council,06-Sep-21,51301637909,"-1,678.32",THE MANOR CHESHIRE HOME,CARE ESTABLISHMENT,LD - East Locality - Cost of Care,LD - East Cambs - Care,Residential Care
Cambridgeshire County Council,06-Sep-21,51301637909,"-1,678.32",THE MANOR CHESHIRE HOME,CARE ESTABLISHMENT,LD - East Locality - Cost of Care,LD - East Cambs - Care,Residential Care
Cambridgeshire County Council,06-Sep-21,51301637909,"-1,678.32",THE MANOR CHESHIRE HOME,CARE ESTABLISHMENT,LD - East Locality - Cost of Care,LD - East Cambs - Care,Residential Care
Cambridgeshire County Council,06-Sep-21,51301637909,"-1,678.32",THE MANOR CHESHIRE HOME,CARE ESTABLISHMENT,LD - East Locality - Cost of Care,LD - East Cambs - Care,Residential Care
Cambridgeshire County Council,06-Sep-21,51301637909,"-1,678.32",THE MANOR CHESHIRE HOME,CARE ESTABLISHMENT,LD - East Locality - Cost of Care,LD - East Cambs - Care,Residential Care
Cambridgeshire County Council,06-Sep-21,51301637909,"-1,678.32",THE MANOR CHESHIRE HOME,CARE ESTABLISHMENT,LD - East Locality - Cost of Care,LD - East Cambs - Care,Residential Care
Cambridgeshire County Council,06-Sep-21,51301637909,"-1,678.32",THE MANOR CHESHIRE HOME,CARE ESTABLISHMENT,LD - East Locality - Cost of Care,LD - East Cambs - Care,Residential Care
Cambridgeshire County Council,06-Sep-21,51301637909,"-1,678.32",THE MANOR CHESHIRE HOME,CARE ESTABLISHMENT,LD - East Locality - Cost of Care,LD - East Cambs - Care,Residential Care
Cambridgeshire County Council,06-Sep-21,51301637909,"-1,678.32",THE MANOR CHESHIRE HOME,CARE ESTABLISHMENT,LD - East Locality - Cost of Care,LD - East Cambs - Care,Residential Care
Cambridgeshire County Council,06-Sep-21,51301637909,"-1,678.32",THE MANOR CHESHIRE HOME,CARE ESTABLISHMENT,LD - East Locality - Cost of Care,LD - East Cambs - Care,Residential Care
Cambridgeshire County Council,06-Sep-21,51301637909,"-1,678.32",THE MANOR CHESHIRE HOME,CARE ESTABLISHMENT,LD - East Locality - Cost of Care,LD - East Cambs - Care,Residential Care
Cambridgeshire County Council,06-Sep-21,51301637909,"-1,678.32",THE MANOR CHESHIRE HOME,CARE ESTABLISHMENT,LD - East Locality - Cost of Care,LD - East Cambs - Care,Residential Care
Cambridgeshire County Council,06-Sep-21,51301637909,"-1,678.32",THE MANOR CHESHIRE HOME,CARE ESTABLISHMENT,LD - East Locality - Cost of Care,LD - East Cambs - Care,Residential Care
Cambridgeshire County Council,06-Sep-21,51301637909,"-1,678.32",THE MANOR CHESHIRE HOME,CARE ESTABLISHMENT,LD - East Locality - Cost of Care,LD - East Cambs - Care,Residential Care
Cambridgeshire County Council,06-Sep-21,51301637909,"-1,678.32",THE MANOR CHESHIRE HOME,CARE ESTABLISHMENT,LD - East Locality - Cost of Care,LD - East Cambs - Care,Residential Care
Cambridgeshire County Council,06-Sep-21,51301637909,"-1,678.32",THE MANOR CHESHIRE HOME,CARE ESTABLISHMENT,LD - East Locality - Cost of Care,LD - East Cambs - Care,Residential Care
Cambridgeshire County Council,06-Sep-21,51301637909,"-1,678.32",THE MANOR CHESHIRE HOME,CARE ESTABLISHMENT,LD - East Locality - Cost of Care,LD - East Cambs - Care,Residential Care
Cambridgeshire County Council,06-Sep-21,51301637909,"-1,678.32",THE MANOR CHESHIRE HOME,CARE ESTABLISHMENT,LD - East Locality - Cost of Care,LD - East Cambs - Care,Residential Care
Cambridgeshire County Council,06-Sep-21,51301637909,"-1,678.32",THE MANOR CHESHIRE HOME,CARE ESTABLISHMENT,LD - East Locality - Cost of Care,LD - East Cambs - Care,Residential Care
Cambridgeshire County Council,06-Sep-21,51301637909,"-1,678.32",THE MANOR CHESHIRE HOME,CARE ESTABLISHMENT,LD - East Locality - Cost of Care,LD - East Cambs - Care,Residential Care
Cambridgeshire County Council,06-Sep-21,51301637909,"-1,678.32",THE MANOR CHESHIRE HOME,CARE ESTABLISHMENT,LD - East Locality - Cost of Care,LD - East Cambs - Care,Residential Care
Cambridgeshire County Council,06-Sep-21,51301637909,"-1,678.32",THE MANOR CHESHIRE HOME,CARE ESTABLISHMENT,LD - East Locality - Cost of Care,LD - East Cambs - Care,Residential Care
Cambridgeshire County Council,06-Sep-21,51301637909,"-1,678.32",THE MANOR CHESHIRE HOME,CARE ESTABLISHMENT,LD - East Locality - Cost of Care,LD - East Cambs - Care,Residential Care
Cambridgeshire County Council,06-Sep-21,51301637909,"-1,678.32",THE MANOR CHESHIRE HOME,CARE ESTABLISHMENT,LD - East Locality - Cost of Care,LD - East Cambs - Care,Residential Care
Cambridgeshire County Council,06-Sep-21,51301637909,"-1,678.32",THE MANOR CHESHIRE HOME,CARE ESTABLISHMENT,LD - East Locality - Cost of Care,LD - East Cambs - Care,Residential Care
Cambridgeshire County Council,06-Sep-21,51301637909,"-1,678.32",THE MANOR CHESHIRE HOME,CARE ESTABLISHMENT,LD - East Locality - Cost of Care,LD - East Cambs - Care,Residential Care
Cambridgeshire County Council,06-Sep-21,51301637909,"-1,678.32",THE MANOR CHESHIRE HOME,CARE ESTABLISHMENT,LD - East Locality - Cost of Care,LD - East Cambs - Care,Residential Care
Cambridgeshire County Council,06-Sep-21,51301637909,"-1,678.32",THE MANOR CHESHIRE HOME,CARE ESTABLISHMENT,LD - East Locality - Cost of Care,LD - East Cambs - Care,Residential Care
Cambridgeshire County Council,06-Sep-21,51301637909,"-1,678.32",THE MANOR CHESHIRE HOME,CARE ESTABLISHMENT,LD - East Locality - Cost of Care,LD - East Cambs - Care,Residential Care
Cambridgeshire County Council,06-Sep-21,51301637909,"-1,678.32",THE MANOR CHESHIRE HOME,CARE ESTABLISHMENT,LD - East Locality - Cost of Care,LD - East Cambs - Care,Residential Care
Cambridgeshire County Council,06-Sep-21,51301637909,"-1,678.32",THE MANOR CHESHIRE HOME,CARE ESTABLISHMENT,LD - East Locality - Cost of Care,LD - East Cambs - Care,Residential Care
Cambridgeshire County Council,06-Sep-21,51301637909,"-1,678.32",THE MANOR CHESHIRE HOME,CARE ESTABLISHMENT,LD - East Locality - Cost of Care,LD - East Cambs - Care,Residential Care
Cambridgeshire County Council,01-Sep-21,51301631179,"-1,674.00",TRANSITION CARE PETERBOROUGH LTD,CARE ESTABLISHMENT,LAC Placements,Placements - supported accommodation,Agency Placements - In County
Cambridgeshire County Council,01-Sep-21,51301631182,"-1,674.00",TRANSITION CARE PETERBOROUGH LTD,CARE ESTABLISHMENT,LAC Placements,Placements - supported accommodation,Agency Placements - In County
Cambridgeshire County Council,17-Sep-21,51301642753,"-1,661.02",AFFINITY TRUST,CARE ESTABLISHMENT,LD - Fenland Locality - Cost of Care,LD - Fenland  - Care,Supported Living
Cambridgeshire County Council,17-Sep-21,51301642753,"-1,661.02",AFFINITY TRUST,CARE ESTABLISHMENT,LD - Fenland Locality - Cost of Care,LD - Fenland  - Care,Supported Living
Cambridgeshire County Council,17-Sep-21,51301642753,"-1,661.02",AFFINITY TRUST,CARE ESTABLISHMENT,LD - Fenland Locality - Cost of Care,LD - Fenland  - Care,Supported Living
Cambridgeshire County Council,17-Sep-21,51301642753,"-1,661.02",AFFINITY TRUST,CARE ESTABLISHMENT,LD - Fenland Locality - Cost of Care,LD - Fenland  - Care,Supported Living
Cambridgeshire County Council,17-Sep-21,51301642753,"-1,661.02",AFFINITY TRUST,CARE ESTABLISHMENT,LD - Fenland Locality - Cost of Care,LD - Fenland  - Care,Supported Living
Cambridgeshire County Council,17-Sep-21,51301642753,"-1,661.02",AFFINITY TRUST,CARE ESTABLISHMENT,LD - Fenland Locality - Cost of Care,LD - Fenland  - Care,Supported Living
Cambridgeshire County Council,17-Sep-21,51301642753,"-1,661.02",AFFINITY TRUST,CARE ESTABLISHMENT,LD - Fenland Locality - Cost of Care,LD - Fenland  - Care,Supported Living
Cambridgeshire County Council,17-Sep-21,51301642753,"-1,661.02",AFFINITY TRUST,CARE ESTABLISHMENT,LD - Fenland Locality - Cost of Care,LD - Fenland  - Care,Supported Living
Cambridgeshire County Council,17-Sep-21,51301642753,"-1,661.02",AFFINITY TRUST,CARE ESTABLISHMENT,LD - Fenland Locality - Cost of Care,LD - Fenland  - Care,Supported Living
Cambridgeshire County Council,17-Sep-21,51301642753,"-1,661.02",AFFINITY TRUST,CARE ESTABLISHMENT,LD - Fenland Locality - Cost of Care,LD - Fenland  - Care,Supported Living
Cambridgeshire County Council,17-Sep-21,51301642753,"-1,661.02",AFFINITY TRUST,CARE ESTABLISHMENT,LD - Fenland Locality - Cost of Care,LD - Fenland  - Care,Supported Living
Cambridgeshire County Council,17-Sep-21,51301642753,"-1,661.02",AFFINITY TRUST,CARE ESTABLISHMENT,LD - Fenland Locality - Cost of Care,LD - Fenland  - Care,Supported Living
Cambridgeshire County Council,17-Sep-21,51301642753,"-1,661.02",AFFINITY TRUST,CARE ESTABLISHMENT,LD - Fenland Locality - Cost of Care,LD - Fenland  - Care,Supported Living
Cambridgeshire County Council,17-Sep-21,51301642753,"-1,661.02",AFFINITY TRUST,CARE ESTABLISHMENT,LD - Fenland Locality - Cost of Care,LD - Fenland  - Care,Supported Living
Cambridgeshire County Council,17-Sep-21,51301642753,"-1,661.02",AFFINITY TRUST,CARE ESTABLISHMENT,LD - Fenland Locality - Cost of Care,LD - Fenland  - Care,Supported Living
Cambridgeshire County Council,17-Sep-21,51301642753,"-1,661.02",AFFINITY TRUST,CARE ESTABLISHMENT,LD - Fenland Locality - Cost of Care,LD - Fenland  - Care,Supported Living
Cambridgeshire County Council,17-Sep-21,51301642753,"-1,661.02",AFFINITY TRUST,CARE ESTABLISHMENT,LD - Fenland Locality - Cost of Care,LD - Fenland  - Care,Supported Living
Cambridgeshire County Council,17-Sep-21,51301642753,"-1,661.02",AFFINITY TRUST,CARE ESTABLISHMENT,LD - Fenland Locality - Cost of Care,LD - Fenland  - Care,Supported Living
Cambridgeshire County Council,17-Sep-21,51301642753,"-1,661.02",AFFINITY TRUST,CARE ESTABLISHMENT,LD - Fenland Locality - Cost of Care,LD - Fenland  - Care,Supported Living
Cambridgeshire County Council,17-Sep-21,51301642753,"-1,661.02",AFFINITY TRUST,CARE ESTABLISHMENT,LD - Fenland Locality - Cost of Care,LD - Fenland  - Care,Supported Living
Cambridgeshire County Council,17-Sep-21,51301642753,"-1,661.02",AFFINITY TRUST,CARE ESTABLISHMENT,LD - Fenland Locality - Cost of Care,LD - Fenland  - Care,Supported Living
Cambridgeshire County Council,17-Sep-21,51301642753,"-1,661.02",AFFINITY TRUST,CARE ESTABLISHMENT,LD - Fenland Locality - Cost of Care,LD - Fenland  - Care,Supported Living
Cambridgeshire County Council,17-Sep-21,51301642753,"-1,661.02",AFFINITY TRUST,CARE ESTABLISHMENT,LD - Fenland Locality - Cost of Care,LD - Fenland  - Care,Supported Living
Cambridgeshire County Council,17-Sep-21,51301642753,"-1,661.02",AFFINITY TRUST,CARE ESTABLISHMENT,LD - Fenland Locality - Cost of Care,LD - Fenland  - Care,Supported Living
Cambridgeshire County Council,17-Sep-21,51301642753,"-1,661.02",AFFINITY TRUST,CARE ESTABLISHMENT,LD - Fenland Locality - Cost of Care,LD - Fenland  - Care,Supported Living
Cambridgeshire County Council,17-Sep-21,51301642753,"-1,661.02",AFFINITY TRUST,CARE ESTABLISHMENT,LD - Fenland Locality - Cost of Care,LD - Fenland  - Care,Supported Living
Cambridgeshire County Council,17-Sep-21,51301642753,"-1,661.02",AFFINITY TRUST,CARE ESTABLISHMENT,LD - Fenland Locality - Cost of Care,LD - Fenland  - Care,Supported Living
Cambridgeshire County Council,17-Sep-21,51301642753,"-1,661.02",AFFINITY TRUST,CARE ESTABLISHMENT,LD - Fenland Locality - Cost of Care,LD - Fenland  - Care,Supported Living
Cambridgeshire County Council,17-Sep-21,51301642753,"-1,661.02",AFFINITY TRUST,CARE ESTABLISHMENT,LD - Fenland Locality - Cost of Care,LD - Fenland  - Care,Supported Living
Cambridgeshire County Council,17-Sep-21,51301642753,"-1,661.02",AFFINITY TRUST,CARE ESTABLISHMENT,LD - Fenland Locality - Cost of Care,LD - Fenland  - Care,Supported Living
Cambridgeshire County Council,17-Sep-21,51301642753,"-1,661.02",AFFINITY TRUST,CARE ESTABLISHMENT,LD - Fenland Locality - Cost of Care,LD - Fenland  - Care,Supported Living
Cambridgeshire County Council,17-Sep-21,51301642753,"-1,661.02",AFFINITY TRUST,CARE ESTABLISHMENT,LD - Fenland Locality - Cost of Care,LD - Fenland  - Care,Supported Living
Cambridgeshire County Council,17-Sep-21,51301642753,"-1,661.02",AFFINITY TRUST,CARE ESTABLISHMENT,LD - Fenland Locality - Cost of Care,LD - Fenland  - Care,Supported Living
Cambridgeshire County Council,17-Sep-21,51301642753,"-1,661.02",AFFINITY TRUST,CARE ESTABLISHMENT,LD - Fenland Locality - Cost of Care,LD - Fenland  - Care,Supported Living
Cambridgeshire County Council,17-Sep-21,51301642753,"-1,661.02",AFFINITY TRUST,CARE ESTABLISHMENT,LD - Fenland Locality - Cost of Care,LD - Fenland  - Care,Supported Living
Cambridgeshire County Council,17-Sep-21,51301642753,"-1,661.02",AFFINITY TRUST,CARE ESTABLISHMENT,LD - Fenland Locality - Cost of Care,LD - Fenland  - Care,Supported Living
Cambridgeshire County Council,17-Sep-21,51301642753,"-1,661.02",AFFINITY TRUST,CARE ESTABLISHMENT,LD - Fenland Locality - Cost of Care,LD - Fenland  - Care,Supported Living
Cambridgeshire County Council,17-Sep-21,51301642753,"-1,661.02",AFFINITY TRUST,CARE ESTABLISHMENT,LD - Fenland Locality - Cost of Care,LD - Fenland  - Care,Supported Living
Cambridgeshire County Council,17-Sep-21,51301642753,"-1,661.02",AFFINITY TRUST,CARE ESTABLISHMENT,LD - Fenland Locality - Cost of Care,LD - Fenland  - Care,Supported Living
Cambridgeshire County Council,17-Sep-21,51301642753,"-1,661.02",AFFINITY TRUST,CARE ESTABLISHMENT,LD - Fenland Locality - Cost of Care,LD - Fenland  - Care,Supported Living
Cambridgeshire County Council,17-Sep-21,51301642753,"-1,661.02",AFFINITY TRUST,CARE ESTABLISHMENT,LD - Fenland Locality - Cost of Care,LD - Fenland  - Care,Supported Living
Cambridgeshire County Council,17-Sep-21,51301642753,"-1,661.02",AFFINITY TRUST,CARE ESTABLISHMENT,LD - Fenland Locality - Cost of Care,LD - Fenland  - Care,Supported Living
Cambridgeshire County Council,17-Sep-21,51301642753,"-1,661.02",AFFINITY TRUST,CARE ESTABLISHMENT,LD - Fenland Locality - Cost of Care,LD - Fenland  - Care,Supported Living
Cambridgeshire County Council,17-Sep-21,51301642753,"-1,661.02",AFFINITY TRUST,CARE ESTABLISHMENT,LD - Fenland Locality - Cost of Care,LD - Fenland  - Care,Supported Living
Cambridgeshire County Council,17-Sep-21,51301642753,"-1,661.02",AFFINITY TRUST,CARE ESTABLISHMENT,LD - Fenland Locality - Cost of Care,LD - Fenland  - Care,Supported Living
Cambridgeshire County Council,17-Sep-21,51301642753,"-1,661.02",AFFINITY TRUST,CARE ESTABLISHMENT,LD - Fenland Locality - Cost of Care,LD - Fenland  - Care,Supported Living
Cambridgeshire County Council,17-Sep-21,51301642753,"-1,661.02",AFFINITY TRUST,CARE ESTABLISHMENT,LD - Fenland Locality - Cost of Care,LD - Fenland  - Care,Supported Living
Cambridgeshire County Council,17-Sep-21,51301642753,"-1,661.02",AFFINITY TRUST,CARE ESTABLISHMENT,LD - Fenland Locality - Cost of Care,LD - Fenland  - Care,Supported Living
Cambridgeshire County Council,17-Sep-21,51301642753,"-1,661.02",AFFINITY TRUST,CARE ESTABLISHMENT,LD - Fenland Locality - Cost of Care,LD - Fenland  - Care,Supported Living
Cambridgeshire County Council,17-Sep-21,51301642753,"-1,661.02",AFFINITY TRUST,CARE ESTABLISHMENT,LD - Fenland Locality - Cost of Care,LD - Fenland  - Care,Supported Living
Cambridgeshire County Council,17-Sep-21,51301642753,"-1,661.02",AFFINITY TRUST,CARE ESTABLISHMENT,LD - Fenland Locality - Cost of Care,LD - Fenland  - Care,Supported Living
Cambridgeshire County Council,17-Sep-21,51301642753,"-1,661.02",AFFINITY TRUST,CARE ESTABLISHMENT,LD - Fenland Locality - Cost of Care,LD - Fenland  - Care,Supported Living
Cambridgeshire County Council,17-Sep-21,51301642753,"-1,661.02",AFFINITY TRUST,CARE ESTABLISHMENT,LD - Fenland Locality - Cost of Care,LD - Fenland  - Care,Supported Living
Cambridgeshire County Council,17-Sep-21,51301642753,"-1,661.02",AFFINITY TRUST,CARE ESTABLISHMENT,LD - Fenland Locality - Cost of Care,LD - Fenland  - Care,Supported Living
Cambridgeshire County Council,17-Sep-21,51301642753,"-1,661.02",AFFINITY TRUST,CARE ESTABLISHMENT,LD - Fenland Locality - Cost of Care,LD - Fenland  - Care,Supported Living
Cambridgeshire County Council,17-Sep-21,51301642753,"-1,661.02",AFFINITY TRUST,CARE ESTABLISHMENT,LD - Fenland Locality - Cost of Care,LD - Fenland  - Care,Supported Living
Cambridgeshire County Council,17-Sep-21,51301642753,"-1,661.02",AFFINITY TRUST,CARE ESTABLISHMENT,LD - Fenland Locality - Cost of Care,LD - Fenland  - Care,Supported Living
Cambridgeshire County Council,17-Sep-21,51301642753,"-1,661.02",AFFINITY TRUST,CARE ESTABLISHMENT,LD - Fenland Locality - Cost of Care,LD - Fenland  - Care,Supported Living
Cambridgeshire County Council,17-Sep-21,51301642753,"-1,661.02",AFFINITY TRUST,CARE ESTABLISHMENT,LD - Fenland Locality - Cost of Care,LD - Fenland  - Care,Supported Living
Cambridgeshire County Council,17-Sep-21,51301642753,"-1,661.02",AFFINITY TRUST,CARE ESTABLISHMENT,LD - Fenland Locality - Cost of Care,LD - Fenland  - Care,Supported Living
Cambridgeshire County Council,17-Sep-21,51301642753,"-1,661.02",AFFINITY TRUST,CARE ESTABLISHMENT,LD - Fenland Locality - Cost of Care,LD - Fenland  - Care,Supported Living
Cambridgeshire County Council,17-Sep-21,51301642753,"-1,661.02",AFFINITY TRUST,CARE ESTABLISHMENT,LD - Fenland Locality - Cost of Care,LD - Fenland  - Care,Supported Living
Cambridgeshire County Council,30-Sep-21,51301646410,"-1,658.95",Redacted Personal Data,SERVICE USER,LD - Hunts Locality - Cost of Care,LD - Huntingdonshire - Care,Direct Payments
Cambridgeshire County Council,30-Sep-21,51301646410,"-1,658.95",Redacted Personal Data,SERVICE USER,LD - Hunts Locality - Cost of Care,LD - Huntingdonshire - Care,Direct Payments
Cambridgeshire County Council,30-Sep-21,51301646410,"-1,658.95",Redacted Personal Data,SERVICE USER,LD - Hunts Locality - Cost of Care,LD - Huntingdonshire - Care,Direct Payments
Cambridgeshire County Council,30-Sep-21,51301646410,"-1,658.95",Redacted Personal Data,SERVICE USER,LD - Hunts Locality - Cost of Care,LD - Huntingdonshire - Care,Direct Payments
Cambridgeshire County Council,30-Sep-21,51301646410,"-1,658.95",Redacted Personal Data,SERVICE USER,LD - Hunts Locality - Cost of Care,LD - Huntingdonshire - Care,Direct Payments
Cambridgeshire County Council,30-Sep-21,51301646410,"-1,658.95",Redacted Personal Data,SERVICE USER,LD - Hunts Locality - Cost of Care,LD - Huntingdonshire - Care,Direct Payments
Cambridgeshire County Council,30-Sep-21,51301646410,"-1,658.95",Redacted Personal Data,SERVICE USER,LD - Hunts Locality - Cost of Care,LD - Huntingdonshire - Care,Direct Payments
Cambridgeshire County Council,30-Sep-21,51301646410,"-1,658.95",Redacted Personal Data,SERVICE USER,LD - Hunts Locality - Cost of Care,LD - Huntingdonshire - Care,Direct Payments
Cambridgeshire County Council,30-Sep-21,51301646410,"-1,658.95",Redacted Personal Data,SERVICE USER,LD - Hunts Locality - Cost of Care,LD - Huntingdonshire - Care,Direct Payments
Cambridgeshire County Council,30-Sep-21,51301646410,"-1,658.95",Redacted Personal Data,SERVICE USER,LD - Hunts Locality - Cost of Care,LD - Huntingdonshire - Care,Direct Payments
Cambridgeshire County Council,30-Sep-21,51301646410,"-1,658.95",Redacted Personal Data,SERVICE USER,LD - Hunts Locality - Cost of Care,LD - Huntingdonshire - Care,Direct Payments
Cambridgeshire County Council,30-Sep-21,51301646410,"-1,658.95",Redacted Personal Data,SERVICE USER,LD - Hunts Locality - Cost of Care,LD - Huntingdonshire - Care,Direct Payments
Cambridgeshire County Council,30-Sep-21,51301646410,"-1,658.95",Redacted Personal Data,SERVICE USER,LD - Hunts Locality - Cost of Care,LD - Huntingdonshire - Care,Direct Payments
Cambridgeshire County Council,30-Sep-21,51301646410,"-1,658.95",Redacted Personal Data,SERVICE USER,LD - Hunts Locality - Cost of Care,LD - Huntingdonshire - Care,Direct Payments
Cambridgeshire County Council,06-Sep-21,51301609013,"-1,626.23",DELL COMPUTER CORPORATION LTD,TRADE SUPPLIER,ICT Service,ICT Service Sales,Materials for resale
Cambridgeshire County Council,15-Sep-21,51301642154,"-1,622.59",MEARS CARE LTD,CARE ESTABLISHMENT,OP - Hunts Locality - Cost of Care,Hunts OP Team - Care,Supported Living
Cambridgeshire County Council,10-Sep-21,51301640430,"-1,600.83",CAERUS CARE LTD,CARE ESTABLISHMENT,LD - Young Adults Team,LD - Young Adults - Care,Supported Living
Cambridgeshire County Council,17-Sep-21,51301642796,"-1,589.74",AFFINITY TRUST,CARE ESTABLISHMENT,LD - Fenland Locality - Cost of Care,LD - Fenland  - Care,Domiciliary Care
Cambridgeshire County Council,17-Sep-21,51301642796,"-1,589.74",AFFINITY TRUST,CARE ESTABLISHMENT,LD - Fenland Locality - Cost of Care,LD - Fenland  - Care,Domiciliary Care
Cambridgeshire County Council,17-Sep-21,51301642796,"-1,589.74",AFFINITY TRUST,CARE ESTABLISHMENT,LD - Fenland Locality - Cost of Care,LD - Fenland  - Care,Domiciliary Care
Cambridgeshire County Council,17-Sep-21,51301642796,"-1,589.74",AFFINITY TRUST,CARE ESTABLISHMENT,LD - Fenland Locality - Cost of Care,LD - Fenland  - Care,Domiciliary Care
Cambridgeshire County Council,17-Sep-21,51301642796,"-1,589.74",AFFINITY TRUST,CARE ESTABLISHMENT,LD - Fenland Locality - Cost of Care,LD - Fenland  - Care,Domiciliary Care
Cambridgeshire County Council,17-Sep-21,51301642796,"-1,589.74",AFFINITY TRUST,CARE ESTABLISHMENT,LD - Fenland Locality - Cost of Care,LD - Fenland  - Care,Domiciliary Care
Cambridgeshire County Council,17-Sep-21,51301642796,"-1,589.74",AFFINITY TRUST,CARE ESTABLISHMENT,LD - Fenland Locality - Cost of Care,LD - Fenland  - Care,Domiciliary Care
Cambridgeshire County Council,17-Sep-21,51301642796,"-1,589.74",AFFINITY TRUST,CARE ESTABLISHMENT,LD - Fenland Locality - Cost of Care,LD - Fenland  - Care,Domiciliary Care
Cambridgeshire County Council,17-Sep-21,51301642796,"-1,589.74",AFFINITY TRUST,CARE ESTABLISHMENT,LD - Fenland Locality - Cost of Care,LD - Fenland  - Care,Domiciliary Care
Cambridgeshire County Council,17-Sep-21,51301642796,"-1,589.74",AFFINITY TRUST,CARE ESTABLISHMENT,LD - Fenland Locality - Cost of Care,LD - Fenland  - Care,Domiciliary Care
Cambridgeshire County Council,17-Sep-21,51301642796,"-1,589.74",AFFINITY TRUST,CARE ESTABLISHMENT,LD - Fenland Locality - Cost of Care,LD - Fenland  - Care,Domiciliary Care
Cambridgeshire County Council,17-Sep-21,51301642796,"-1,589.74",AFFINITY TRUST,CARE ESTABLISHMENT,LD - Fenland Locality - Cost of Care,LD - Fenland  - Care,Domiciliary Care
Cambridgeshire County Council,17-Sep-21,51301642796,"-1,589.74",AFFINITY TRUST,CARE ESTABLISHMENT,LD - Fenland Locality - Cost of Care,LD - Fenland  - Care,Domiciliary Care
Cambridgeshire County Council,17-Sep-21,51301642796,"-1,589.74",AFFINITY TRUST,CARE ESTABLISHMENT,LD - Fenland Locality - Cost of Care,LD - Fenland  - Care,Domiciliary Care
Cambridgeshire County Council,17-Sep-21,51301642796,"-1,589.74",AFFINITY TRUST,CARE ESTABLISHMENT,LD - Fenland Locality - Cost of Care,LD - Fenland  - Care,Domiciliary Care
Cambridgeshire County Council,17-Sep-21,51301642796,"-1,589.74",AFFINITY TRUST,CARE ESTABLISHMENT,LD - Fenland Locality - Cost of Care,LD - Fenland  - Care,Domiciliary Care
Cambridgeshire County Council,17-Sep-21,51301642796,"-1,589.74",AFFINITY TRUST,CARE ESTABLISHMENT,LD - Fenland Locality - Cost of Care,LD - Fenland  - Care,Domiciliary Care
Cambridgeshire County Council,17-Sep-21,51301642796,"-1,589.74",AFFINITY TRUST,CARE ESTABLISHMENT,LD - Fenland Locality - Cost of Care,LD - Fenland  - Care,Domiciliary Care
Cambridgeshire County Council,17-Sep-21,51301642796,"-1,589.74",AFFINITY TRUST,CARE ESTABLISHMENT,LD - Fenland Locality - Cost of Care,LD - Fenland  - Care,Domiciliary Care
Cambridgeshire County Council,17-Sep-21,51301642796,"-1,589.74",AFFINITY TRUST,CARE ESTABLISHMENT,LD - Fenland Locality - Cost of Care,LD - Fenland  - Care,Domiciliary Care
Cambridgeshire County Council,17-Sep-21,51301642796,"-1,589.74",AFFINITY TRUST,CARE ESTABLISHMENT,LD - Fenland Locality - Cost of Care,LD - Fenland  - Care,Domiciliary Care
Cambridgeshire County Council,17-Sep-21,51301642796,"-1,589.74",AFFINITY TRUST,CARE ESTABLISHMENT,LD - Fenland Locality - Cost of Care,LD - Fenland  - Care,Domiciliary Care
Cambridgeshire County Council,17-Sep-21,51301642796,"-1,589.74",AFFINITY TRUST,CARE ESTABLISHMENT,LD - Fenland Locality - Cost of Care,LD - Fenland  - Care,Domiciliary Care
Cambridgeshire County Council,17-Sep-21,51301642796,"-1,589.74",AFFINITY TRUST,CARE ESTABLISHMENT,LD - Fenland Locality - Cost of Care,LD - Fenland  - Care,Domiciliary Care
Cambridgeshire County Council,17-Sep-21,51301642796,"-1,589.74",AFFINITY TRUST,CARE ESTABLISHMENT,LD - Fenland Locality - Cost of Care,LD - Fenland  - Care,Domiciliary Care
Cambridgeshire County Council,17-Sep-21,51301642796,"-1,589.74",AFFINITY TRUST,CARE ESTABLISHMENT,LD - Fenland Locality - Cost of Care,LD - Fenland  - Care,Domiciliary Care
Cambridgeshire County Council,17-Sep-21,51301642796,"-1,589.74",AFFINITY TRUST,CARE ESTABLISHMENT,LD - Fenland Locality - Cost of Care,LD - Fenland  - Care,Domiciliary Care
Cambridgeshire County Council,17-Sep-21,51301642796,"-1,589.74",AFFINITY TRUST,CARE ESTABLISHMENT,LD - Fenland Locality - Cost of Care,LD - Fenland  - Care,Domiciliary Care
Cambridgeshire County Council,17-Sep-21,51301642796,"-1,589.74",AFFINITY TRUST,CARE ESTABLISHMENT,LD - Fenland Locality - Cost of Care,LD - Fenland  - Care,Domiciliary Care
Cambridgeshire County Council,17-Sep-21,51301642796,"-1,589.74",AFFINITY TRUST,CARE ESTABLISHMENT,LD - Fenland Locality - Cost of Care,LD - Fenland  - Care,Domiciliary Care
Cambridgeshire County Council,17-Sep-21,51301642796,"-1,589.74",AFFINITY TRUST,CARE ESTABLISHMENT,LD - Fenland Locality - Cost of Care,LD - Fenland  - Care,Domiciliary Care
Cambridgeshire County Council,17-Sep-21,51301642796,"-1,589.74",AFFINITY TRUST,CARE ESTABLISHMENT,LD - Fenland Locality - Cost of Care,LD - Fenland  - Care,Domiciliary Care
Cambridgeshire County Council,17-Sep-21,51301642796,"-1,589.74",AFFINITY TRUST,CARE ESTABLISHMENT,LD - Fenland Locality - Cost of Care,LD - Fenland  - Care,Domiciliary Care
Cambridgeshire County Council,17-Sep-21,51301642796,"-1,589.74",AFFINITY TRUST,CARE ESTABLISHMENT,LD - Fenland Locality - Cost of Care,LD - Fenland  - Care,Domiciliary Care
Cambridgeshire County Council,17-Sep-21,51301642796,"-1,589.74",AFFINITY TRUST,CARE ESTABLISHMENT,LD - Fenland Locality - Cost of Care,LD - Fenland  - Care,Domiciliary Care
Cambridgeshire County Council,17-Sep-21,51301642796,"-1,589.74",AFFINITY TRUST,CARE ESTABLISHMENT,LD - Fenland Locality - Cost of Care,LD - Fenland  - Care,Domiciliary Care
Cambridgeshire County Council,17-Sep-21,51301642796,"-1,589.74",AFFINITY TRUST,CARE ESTABLISHMENT,LD - Fenland Locality - Cost of Care,LD - Fenland  - Care,Domiciliary Care
Cambridgeshire County Council,17-Sep-21,51301642796,"-1,589.74",AFFINITY TRUST,CARE ESTABLISHMENT,LD - Fenland Locality - Cost of Care,LD - Fenland  - Care,Domiciliary Care
Cambridgeshire County Council,17-Sep-21,51301642796,"-1,589.74",AFFINITY TRUST,CARE ESTABLISHMENT,LD - Fenland Locality - Cost of Care,LD - Fenland  - Care,Domiciliary Care
Cambridgeshire County Council,17-Sep-21,51301642796,"-1,589.74",AFFINITY TRUST,CARE ESTABLISHMENT,LD - Fenland Locality - Cost of Care,LD - Fenland  - Care,Domiciliary Care
Cambridgeshire County Council,17-Sep-21,51301642796,"-1,589.74",AFFINITY TRUST,CARE ESTABLISHMENT,LD - Fenland Locality - Cost of Care,LD - Fenland  - Care,Domiciliary Care
Cambridgeshire County Council,17-Sep-21,51301642796,"-1,589.74",AFFINITY TRUST,CARE ESTABLISHMENT,LD - Fenland Locality - Cost of Care,LD - Fenland  - Care,Domiciliary Care
Cambridgeshire County Council,17-Sep-21,51301642796,"-1,589.74",AFFINITY TRUST,CARE ESTABLISHMENT,LD - Fenland Locality - Cost of Care,LD - Fenland  - Care,Domiciliary Care
Cambridgeshire County Council,17-Sep-21,51301642796,"-1,589.74",AFFINITY TRUST,CARE ESTABLISHMENT,LD - Fenland Locality - Cost of Care,LD - Fenland  - Care,Domiciliary Care
Cambridgeshire County Council,17-Sep-21,51301642796,"-1,589.74",AFFINITY TRUST,CARE ESTABLISHMENT,LD - Fenland Locality - Cost of Care,LD - Fenland  - Care,Domiciliary Care
Cambridgeshire County Council,17-Sep-21,51301642796,"-1,589.74",AFFINITY TRUST,CARE ESTABLISHMENT,LD - Fenland Locality - Cost of Care,LD - Fenland  - Care,Domiciliary Care
Cambridgeshire County Council,17-Sep-21,51301642796,"-1,589.74",AFFINITY TRUST,CARE ESTABLISHMENT,LD - Fenland Locality - Cost of Care,LD - Fenland  - Care,Domiciliary Care
Cambridgeshire County Council,17-Sep-21,51301642796,"-1,589.74",AFFINITY TRUST,CARE ESTABLISHMENT,LD - Fenland Locality - Cost of Care,LD - Fenland  - Care,Domiciliary Care
Cambridgeshire County Council,17-Sep-21,51301642796,"-1,589.74",AFFINITY TRUST,CARE ESTABLISHMENT,LD - Fenland Locality - Cost of Care,LD - Fenland  - Care,Domiciliary Care
Cambridgeshire County Council,17-Sep-21,51301642796,"-1,589.74",AFFINITY TRUST,CARE ESTABLISHMENT,LD - Fenland Locality - Cost of Care,LD - Fenland  - Care,Domiciliary Care
Cambridgeshire County Council,17-Sep-21,51301642796,"-1,589.74",AFFINITY TRUST,CARE ESTABLISHMENT,LD - Fenland Locality - Cost of Care,LD - Fenland  - Care,Domiciliary Care
Cambridgeshire County Council,17-Sep-21,51301642796,"-1,589.74",AFFINITY TRUST,CARE ESTABLISHMENT,LD - Fenland Locality - Cost of Care,LD - Fenland  - Care,Domiciliary Care
Cambridgeshire County Council,17-Sep-21,51301642796,"-1,589.74",AFFINITY TRUST,CARE ESTABLISHMENT,LD - Fenland Locality - Cost of Care,LD - Fenland  - Care,Domiciliary Care
Cambridgeshire County Council,17-Sep-21,51301642796,"-1,589.74",AFFINITY TRUST,CARE ESTABLISHMENT,LD - Fenland Locality - Cost of Care,LD - Fenland  - Care,Domiciliary Care
Cambridgeshire County Council,17-Sep-21,51301642796,"-1,589.74",AFFINITY TRUST,CARE ESTABLISHMENT,LD - Fenland Locality - Cost of Care,LD - Fenland  - Care,Domiciliary Care
Cambridgeshire County Council,17-Sep-21,51301642796,"-1,589.74",AFFINITY TRUST,CARE ESTABLISHMENT,LD - Fenland Locality - Cost of Care,LD - Fenland  - Care,Domiciliary Care
Cambridgeshire County Council,17-Sep-21,51301642796,"-1,589.74",AFFINITY TRUST,CARE ESTABLISHMENT,LD - Fenland Locality - Cost of Care,LD - Fenland  - Care,Domiciliary Care
Cambridgeshire County Council,17-Sep-21,51301642796,"-1,589.74",AFFINITY TRUST,CARE ESTABLISHMENT,LD - Fenland Locality - Cost of Care,LD - Fenland  - Care,Domiciliary Care
Cambridgeshire County Council,17-Sep-21,51301642796,"-1,589.74",AFFINITY TRUST,CARE ESTABLISHMENT,LD - Fenland Locality - Cost of Care,LD - Fenland  - Care,Domiciliary Care
Cambridgeshire County Council,17-Sep-21,51301642796,"-1,589.74",AFFINITY TRUST,CARE ESTABLISHMENT,LD - Fenland Locality - Cost of Care,LD - Fenland  - Care,Domiciliary Care
Cambridgeshire County Council,17-Sep-21,51301642796,"-1,589.74",AFFINITY TRUST,CARE ESTABLISHMENT,LD - Fenland Locality - Cost of Care,LD - Fenland  - Care,Domiciliary Care
Cambridgeshire County Council,17-Sep-21,51301642796,"-1,589.74",AFFINITY TRUST,CARE ESTABLISHMENT,LD - Fenland Locality - Cost of Care,LD - Fenland  - Care,Domiciliary Care
Cambridgeshire County Council,17-Sep-21,51301642790,"-1,552.05",AFFINITY TRUST,CARE ESTABLISHMENT,LD - Fenland Locality - Cost of Care,LD - Fenland  - Care,Domiciliary Care
Cambridgeshire County Council,17-Sep-21,51301642790,"-1,552.05",AFFINITY TRUST,CARE ESTABLISHMENT,LD - Fenland Locality - Cost of Care,LD - Fenland  - Care,Domiciliary Care
Cambridgeshire County Council,17-Sep-21,51301642790,"-1,552.05",AFFINITY TRUST,CARE ESTABLISHMENT,LD - Fenland Locality - Cost of Care,LD - Fenland  - Care,Domiciliary Care
Cambridgeshire County Council,17-Sep-21,51301642790,"-1,552.05",AFFINITY TRUST,CARE ESTABLISHMENT,LD - Fenland Locality - Cost of Care,LD - Fenland  - Care,Domiciliary Care
Cambridgeshire County Council,17-Sep-21,51301642790,"-1,552.05",AFFINITY TRUST,CARE ESTABLISHMENT,LD - Fenland Locality - Cost of Care,LD - Fenland  - Care,Domiciliary Care
Cambridgeshire County Council,17-Sep-21,51301642790,"-1,552.05",AFFINITY TRUST,CARE ESTABLISHMENT,LD - Fenland Locality - Cost of Care,LD - Fenland  - Care,Domiciliary Care
Cambridgeshire County Council,17-Sep-21,51301642790,"-1,552.05",AFFINITY TRUST,CARE ESTABLISHMENT,LD - Fenland Locality - Cost of Care,LD - Fenland  - Care,Domiciliary Care
Cambridgeshire County Council,17-Sep-21,51301642790,"-1,552.05",AFFINITY TRUST,CARE ESTABLISHMENT,LD - Fenland Locality - Cost of Care,LD - Fenland  - Care,Domiciliary Care
Cambridgeshire County Council,17-Sep-21,51301642790,"-1,552.05",AFFINITY TRUST,CARE ESTABLISHMENT,LD - Fenland Locality - Cost of Care,LD - Fenland  - Care,Domiciliary Care
Cambridgeshire County Council,17-Sep-21,51301642790,"-1,552.05",AFFINITY TRUST,CARE ESTABLISHMENT,LD - Fenland Locality - Cost of Care,LD - Fenland  - Care,Domiciliary Care
Cambridgeshire County Council,17-Sep-21,51301642790,"-1,552.05",AFFINITY TRUST,CARE ESTABLISHMENT,LD - Fenland Locality - Cost of Care,LD - Fenland  - Care,Domiciliary Care
Cambridgeshire County Council,17-Sep-21,51301642790,"-1,552.05",AFFINITY TRUST,CARE ESTABLISHMENT,LD - Fenland Locality - Cost of Care,LD - Fenland  - Care,Domiciliary Care
Cambridgeshire County Council,17-Sep-21,51301642790,"-1,552.05",AFFINITY TRUST,CARE ESTABLISHMENT,LD - Fenland Locality - Cost of Care,LD - Fenland  - Care,Domiciliary Care
Cambridgeshire County Council,17-Sep-21,51301642790,"-1,552.05",AFFINITY TRUST,CARE ESTABLISHMENT,LD - Fenland Locality - Cost of Care,LD - Fenland  - Care,Domiciliary Care
Cambridgeshire County Council,17-Sep-21,51301642790,"-1,552.05",AFFINITY TRUST,CARE ESTABLISHMENT,LD - Fenland Locality - Cost of Care,LD - Fenland  - Care,Domiciliary Care
Cambridgeshire County Council,17-Sep-21,51301642790,"-1,552.05",AFFINITY TRUST,CARE ESTABLISHMENT,LD - Fenland Locality - Cost of Care,LD - Fenland  - Care,Domiciliary Care
Cambridgeshire County Council,17-Sep-21,51301642790,"-1,552.05",AFFINITY TRUST,CARE ESTABLISHMENT,LD - Fenland Locality - Cost of Care,LD - Fenland  - Care,Domiciliary Care
Cambridgeshire County Council,17-Sep-21,51301642790,"-1,552.05",AFFINITY TRUST,CARE ESTABLISHMENT,LD - Fenland Locality - Cost of Care,LD - Fenland  - Care,Domiciliary Care
Cambridgeshire County Council,17-Sep-21,51301642790,"-1,552.05",AFFINITY TRUST,CARE ESTABLISHMENT,LD - Fenland Locality - Cost of Care,LD - Fenland  - Care,Domiciliary Care
Cambridgeshire County Council,17-Sep-21,51301642790,"-1,552.05",AFFINITY TRUST,CARE ESTABLISHMENT,LD - Fenland Locality - Cost of Care,LD - Fenland  - Care,Domiciliary Care
Cambridgeshire County Council,17-Sep-21,51301642790,"-1,552.05",AFFINITY TRUST,CARE ESTABLISHMENT,LD - Fenland Locality - Cost of Care,LD - Fenland  - Care,Domiciliary Care
Cambridgeshire County Council,17-Sep-21,51301642790,"-1,552.05",AFFINITY TRUST,CARE ESTABLISHMENT,LD - Fenland Locality - Cost of Care,LD - Fenland  - Care,Domiciliary Care
Cambridgeshire County Council,17-Sep-21,51301642790,"-1,552.05",AFFINITY TRUST,CARE ESTABLISHMENT,LD - Fenland Locality - Cost of Care,LD - Fenland  - Care,Domiciliary Care
Cambridgeshire County Council,17-Sep-21,51301642790,"-1,552.05",AFFINITY TRUST,CARE ESTABLISHMENT,LD - Fenland Locality - Cost of Care,LD - Fenland  - Care,Domiciliary Care
Cambridgeshire County Council,17-Sep-21,51301642790,"-1,552.05",AFFINITY TRUST,CARE ESTABLISHMENT,LD - Fenland Locality - Cost of Care,LD - Fenland  - Care,Domiciliary Care
Cambridgeshire County Council,17-Sep-21,51301642790,"-1,552.05",AFFINITY TRUST,CARE ESTABLISHMENT,LD - Fenland Locality - Cost of Care,LD - Fenland  - Care,Domiciliary Care
Cambridgeshire County Council,17-Sep-21,51301642790,"-1,552.05",AFFINITY TRUST,CARE ESTABLISHMENT,LD - Fenland Locality - Cost of Care,LD - Fenland  - Care,Domiciliary Care
Cambridgeshire County Council,17-Sep-21,51301642790,"-1,552.05",AFFINITY TRUST,CARE ESTABLISHMENT,LD - Fenland Locality - Cost of Care,LD - Fenland  - Care,Domiciliary Care
Cambridgeshire County Council,17-Sep-21,51301642790,"-1,552.05",AFFINITY TRUST,CARE ESTABLISHMENT,LD - Fenland Locality - Cost of Care,LD - Fenland  - Care,Domiciliary Care
Cambridgeshire County Council,17-Sep-21,51301642790,"-1,552.05",AFFINITY TRUST,CARE ESTABLISHMENT,LD - Fenland Locality - Cost of Care,LD - Fenland  - Care,Domiciliary Care
Cambridgeshire County Council,17-Sep-21,51301642790,"-1,552.05",AFFINITY TRUST,CARE ESTABLISHMENT,LD - Fenland Locality - Cost of Care,LD - Fenland  - Care,Domiciliary Care
Cambridgeshire County Council,17-Sep-21,51301642790,"-1,552.05",AFFINITY TRUST,CARE ESTABLISHMENT,LD - Fenland Locality - Cost of Care,LD - Fenland  - Care,Domiciliary Care
Cambridgeshire County Council,17-Sep-21,51301642790,"-1,552.05",AFFINITY TRUST,CARE ESTABLISHMENT,LD - Fenland Locality - Cost of Care,LD - Fenland  - Care,Domiciliary Care
Cambridgeshire County Council,17-Sep-21,51301642790,"-1,552.05",AFFINITY TRUST,CARE ESTABLISHMENT,LD - Fenland Locality - Cost of Care,LD - Fenland  - Care,Domiciliary Care
Cambridgeshire County Council,17-Sep-21,51301642790,"-1,552.05",AFFINITY TRUST,CARE ESTABLISHMENT,LD - Fenland Locality - Cost of Care,LD - Fenland  - Care,Domiciliary Care
Cambridgeshire County Council,17-Sep-21,51301642790,"-1,552.05",AFFINITY TRUST,CARE ESTABLISHMENT,LD - Fenland Locality - Cost of Care,LD - Fenland  - Care,Domiciliary Care
Cambridgeshire County Council,17-Sep-21,51301642790,"-1,552.05",AFFINITY TRUST,CARE ESTABLISHMENT,LD - Fenland Locality - Cost of Care,LD - Fenland  - Care,Domiciliary Care
Cambridgeshire County Council,17-Sep-21,51301642790,"-1,552.05",AFFINITY TRUST,CARE ESTABLISHMENT,LD - Fenland Locality - Cost of Care,LD - Fenland  - Care,Domiciliary Care
Cambridgeshire County Council,17-Sep-21,51301642790,"-1,552.05",AFFINITY TRUST,CARE ESTABLISHMENT,LD - Fenland Locality - Cost of Care,LD - Fenland  - Care,Domiciliary Care
Cambridgeshire County Council,17-Sep-21,51301642790,"-1,552.05",AFFINITY TRUST,CARE ESTABLISHMENT,LD - Fenland Locality - Cost of Care,LD - Fenland  - Care,Domiciliary Care
Cambridgeshire County Council,17-Sep-21,51301642790,"-1,552.05",AFFINITY TRUST,CARE ESTABLISHMENT,LD - Fenland Locality - Cost of Care,LD - Fenland  - Care,Domiciliary Care
Cambridgeshire County Council,17-Sep-21,51301642790,"-1,552.05",AFFINITY TRUST,CARE ESTABLISHMENT,LD - Fenland Locality - Cost of Care,LD - Fenland  - Care,Domiciliary Care
Cambridgeshire County Council,17-Sep-21,51301642790,"-1,552.05",AFFINITY TRUST,CARE ESTABLISHMENT,LD - Fenland Locality - Cost of Care,LD - Fenland  - Care,Domiciliary Care
Cambridgeshire County Council,17-Sep-21,51301642790,"-1,552.05",AFFINITY TRUST,CARE ESTABLISHMENT,LD - Fenland Locality - Cost of Care,LD - Fenland  - Care,Domiciliary Care
Cambridgeshire County Council,17-Sep-21,51301642790,"-1,552.05",AFFINITY TRUST,CARE ESTABLISHMENT,LD - Fenland Locality - Cost of Care,LD - Fenland  - Care,Domiciliary Care
Cambridgeshire County Council,17-Sep-21,51301642790,"-1,552.05",AFFINITY TRUST,CARE ESTABLISHMENT,LD - Fenland Locality - Cost of Care,LD - Fenland  - Care,Domiciliary Care
Cambridgeshire County Council,17-Sep-21,51301642790,"-1,552.05",AFFINITY TRUST,CARE ESTABLISHMENT,LD - Fenland Locality - Cost of Care,LD - Fenland  - Care,Domiciliary Care
Cambridgeshire County Council,17-Sep-21,51301642790,"-1,552.05",AFFINITY TRUST,CARE ESTABLISHMENT,LD - Fenland Locality - Cost of Care,LD - Fenland  - Care,Domiciliary Care
Cambridgeshire County Council,17-Sep-21,51301642790,"-1,552.05",AFFINITY TRUST,CARE ESTABLISHMENT,LD - Fenland Locality - Cost of Care,LD - Fenland  - Care,Domiciliary Care
Cambridgeshire County Council,17-Sep-21,51301642790,"-1,552.05",AFFINITY TRUST,CARE ESTABLISHMENT,LD - Fenland Locality - Cost of Care,LD - Fenland  - Care,Domiciliary Care
Cambridgeshire County Council,17-Sep-21,51301642790,"-1,552.05",AFFINITY TRUST,CARE ESTABLISHMENT,LD - Fenland Locality - Cost of Care,LD - Fenland  - Care,Domiciliary Care
Cambridgeshire County Council,17-Sep-21,51301642790,"-1,552.05",AFFINITY TRUST,CARE ESTABLISHMENT,LD - Fenland Locality - Cost of Care,LD - Fenland  - Care,Domiciliary Care
Cambridgeshire County Council,17-Sep-21,51301642790,"-1,552.05",AFFINITY TRUST,CARE ESTABLISHMENT,LD - Fenland Locality - Cost of Care,LD - Fenland  - Care,Domiciliary Care
Cambridgeshire County Council,17-Sep-21,51301642790,"-1,552.05",AFFINITY TRUST,CARE ESTABLISHMENT,LD - Fenland Locality - Cost of Care,LD - Fenland  - Care,Domiciliary Care
Cambridgeshire County Council,17-Sep-21,51301642790,"-1,552.05",AFFINITY TRUST,CARE ESTABLISHMENT,LD - Fenland Locality - Cost of Care,LD - Fenland  - Care,Domiciliary Care
Cambridgeshire County Council,17-Sep-21,51301642790,"-1,552.05",AFFINITY TRUST,CARE ESTABLISHMENT,LD - Fenland Locality - Cost of Care,LD - Fenland  - Care,Domiciliary Care
Cambridgeshire County Council,17-Sep-21,51301642790,"-1,552.05",AFFINITY TRUST,CARE ESTABLISHMENT,LD - Fenland Locality - Cost of Care,LD - Fenland  - Care,Domiciliary Care
Cambridgeshire County Council,17-Sep-21,51301642790,"-1,552.05",AFFINITY TRUST,CARE ESTABLISHMENT,LD - Fenland Locality - Cost of Care,LD - Fenland  - Care,Domiciliary Care
Cambridgeshire County Council,17-Sep-21,51301642790,"-1,552.05",AFFINITY TRUST,CARE ESTABLISHMENT,LD - Fenland Locality - Cost of Care,LD - Fenland  - Care,Domiciliary Care
Cambridgeshire County Council,17-Sep-21,51301642790,"-1,552.05",AFFINITY TRUST,CARE ESTABLISHMENT,LD - Fenland Locality - Cost of Care,LD - Fenland  - Care,Domiciliary Care
Cambridgeshire County Council,17-Sep-21,51301642790,"-1,552.05",AFFINITY TRUST,CARE ESTABLISHMENT,LD - Fenland Locality - Cost of Care,LD - Fenland  - Care,Domiciliary Care
Cambridgeshire County Council,17-Sep-21,51301642790,"-1,552.05",AFFINITY TRUST,CARE ESTABLISHMENT,LD - Fenland Locality - Cost of Care,LD - Fenland  - Care,Domiciliary Care
Cambridgeshire County Council,21-Sep-21,51301643259,"-1,530.00",THE ELMS NURSING HOME,CARE ESTABLISHMENT,OP - Fenland Blocks,Fenland - Long term blocks,Residential Care
Cambridgeshire County Council,27-Sep-21,51301642535,"-1,528.80",CCS MEDIA LIMITED,TRADE SUPPLIER,ICT Service,ICT Service Sales,Materials for resale
Cambridgeshire County Council,17-Sep-21,51301642738,"-1,521.53",AFFINITY TRUST,CARE ESTABLISHMENT,LD - Fenland Locality - Cost of Care,LD - Fenland  - Care,Supported Living
Cambridgeshire County Council,17-Sep-21,51301642746,"-1,465.10",AFFINITY TRUST,CARE ESTABLISHMENT,LD - Fenland Locality - Cost of Care,LD - Fenland  - Care,Supported Living
Cambridgeshire County Council,17-Sep-21,51301642746,"-1,465.10",AFFINITY TRUST,CARE ESTABLISHMENT,LD - Fenland Locality - Cost of Care,LD - Fenland  - Care,Supported Living
Cambridgeshire County Council,17-Sep-21,51301642746,"-1,465.10",AFFINITY TRUST,CARE ESTABLISHMENT,LD - Fenland Locality - Cost of Care,LD - Fenland  - Care,Supported Living
Cambridgeshire County Council,17-Sep-21,51301642746,"-1,465.10",AFFINITY TRUST,CARE ESTABLISHMENT,LD - Fenland Locality - Cost of Care,LD - Fenland  - Care,Supported Living
Cambridgeshire County Council,17-Sep-21,51301642746,"-1,465.10",AFFINITY TRUST,CARE ESTABLISHMENT,LD - Fenland Locality - Cost of Care,LD - Fenland  - Care,Supported Living
Cambridgeshire County Council,17-Sep-21,51301642746,"-1,465.10",AFFINITY TRUST,CARE ESTABLISHMENT,LD - Fenland Locality - Cost of Care,LD - Fenland  - Care,Supported Living
Cambridgeshire County Council,17-Sep-21,51301642746,"-1,465.10",AFFINITY TRUST,CARE ESTABLISHMENT,LD - Fenland Locality - Cost of Care,LD - Fenland  - Care,Supported Living
Cambridgeshire County Council,17-Sep-21,51301642746,"-1,465.10",AFFINITY TRUST,CARE ESTABLISHMENT,LD - Fenland Locality - Cost of Care,LD - Fenland  - Care,Supported Living
Cambridgeshire County Council,17-Sep-21,51301642746,"-1,465.10",AFFINITY TRUST,CARE ESTABLISHMENT,LD - Fenland Locality - Cost of Care,LD - Fenland  - Care,Supported Living
Cambridgeshire County Council,17-Sep-21,51301642746,"-1,465.10",AFFINITY TRUST,CARE ESTABLISHMENT,LD - Fenland Locality - Cost of Care,LD - Fenland  - Care,Supported Living
Cambridgeshire County Council,17-Sep-21,51301642746,"-1,465.10",AFFINITY TRUST,CARE ESTABLISHMENT,LD - Fenland Locality - Cost of Care,LD - Fenland  - Care,Supported Living
Cambridgeshire County Council,17-Sep-21,51301642746,"-1,465.10",AFFINITY TRUST,CARE ESTABLISHMENT,LD - Fenland Locality - Cost of Care,LD - Fenland  - Care,Supported Living
Cambridgeshire County Council,17-Sep-21,51301642746,"-1,465.10",AFFINITY TRUST,CARE ESTABLISHMENT,LD - Fenland Locality - Cost of Care,LD - Fenland  - Care,Supported Living
